{"text_format":"1","workbook":"xlsx","n_sheets":7,"sheets":["1 Specifikation","2 Priskorg","2.1 Priskorg övriga tjänster","3 Avtalstecknande","4 Leverantör och Ort","Admin","SysAdmin"],"not_rendered":{"charts":0,"images":2,"macros":1,"external_links":1,"defined_names":95,"comments":0,"pivot_tables":0},"unopened":[],"bounds":{"document_bytes":16777216,"sheet_cells":100000,"rows_first":2000,"rows_last":500,"rows_between":2000,"halvings":0,"cell_chars":16384,"cell_head_chars":4096},"cells_cut":0,"cells_raw":0,"read":"whole","date_system":"1900"}

{"sheet":"1 Specifikation","index":0,"n_rows":233,"n_cols":34,"rows_kept":233,"cut":false,"hidden":false,"merged":[[172,23,221,27],[217,1,217,8],[145,18,145,19],[190,1,190,8],[190,15,190,18],[177,1,177,8],[218,1,218,8],[185,1,185,8],[216,1,216,8],[215,1,215,8],[196,1,196,8],[197,1,199,8],[201,1,201,5],[191,1,191,8],[192,1,192,8],[193,1,193,8],[157,1,157,13],[149,15,149,16],[149,17,149,18],[150,1,152,13],[146,18,146,19],[152,25,152,27],[168,1,168,8],[170,15,170,18],[160,20,160,21],[170,1,170,8],[167,1,167,5],[171,1,171,8],[131,1,131,2],[127,1,127,2],[143,11,143,12],[158,1,164,13],[160,18,160,19],[159,18,159,19],[159,20,159,21],[151,17,152,18],[134,12,134,13],[135,12,135,13],[134,19,134,20],[157,20,157,21],[163,20,163,21],[143,20,143,21],[144,18,144,19],[129,8,129,11],[131,3,131,7],[127,3,127,7],[138,18,140,23],[141,22,142,23],[125,3,125,7],[123,3,123,7],[125,1,125,2],[119,1,119,4],[120,8,120,11],[121,8,121,11],[123,8,123,11],[125,8,125,11],[115,1,115,2],[115,3,115,7],[115,8,115,13],[115,16,115,23],[129,1,129,2],[129,3,129,7],[129,16,129,23],[106,8,106,13],[107,8,107,13],[109,8,109,13],[123,16,123,23],[131,16,131,23],[125,16,125,23],[127,16,127,23],[127,8,127,11],[131,8,131,11],[121,16,121,23],[120,16,120,23],[107,16,107,23],[109,16,109,23],[111,16,111,23],[113,16,113,23],[117,16,117,23],[106,16,106,23],[107,1,107,2],[109,1,109,2],[106,3,106,7],[142,11,142,12],[138,17,140,17],[138,15,140,16],[134,17,134,18],[133,12,133,13],[143,22,145,23],[143,18,143,19],[141,16,142,16],[134,21,134,22],[232,19,232,22],[229,15,230,22],[226,15,226,22],[225,15,225,22],[228,15,228,22],[224,15,224,22],[176,15,176,18],[141,18,142,19],[146,20,146,21],[157,18,157,19],[164,20,164,21],[161,17,162,19],[158,20,158,21],[144,20,144,21],[163,18,163,19],[145,20,145,21],[222,15,223,22],[182,15,182,18],[215,15,215,22],[218,15,218,22],[141,20,142,21],[141,17,142,17],[216,15,216,22],[217,15,217,22],[2,1,2,4],[2,15,2,17],[2,19,2,22],[3,1,4,8],[3,15,4,22],[7,1,7,6],[7,7,7,8],[7,15,7,20],[7,21,7,22],[5,1,5,8],[6,1,6,8],[5,9,6,14],[3,9,3,14],[4,9,4,14],[7,9,7,14],[8,15,8,20],[11,15,11,18],[44,1,44,2],[39,1,39,2],[8,1,8,6],[8,7,8,8],[8,21,8,22],[9,1,9,3],[9,4,9,6],[16,4,16,8],[16,18,16,22],[16,15,16,17],[12,19,12,20],[10,15,10,18],[11,19,11,20],[11,21,11,22],[12,15,12,18],[11,1,11,3],[12,1,12,3],[10,19,10,22],[12,21,12,22],[13,15,13,18],[16,1,16,3],[15,1,15,3],[9,7,9,8],[13,1,13,3],[12,7,12,8],[12,4,12,6],[9,15,9,18],[9,19,9,22],[10,4,10,6],[10,7,10,8],[11,4,11,6],[11,7,11,8],[10,1,10,3],[13,4,13,8],[13,19,13,22],[53,1,53,7],[54,1,54,7],[55,1,55,7],[56,1,56,7],[57,1,57,7],[58,1,58,7],[59,1,59,7],[60,1,60,7],[52,1,52,7],[52,8,52,9],[41,3,41,4],[42,1,42,2],[27,15,27,22],[51,1,51,5],[42,3,42,4],[39,6,39,8],[41,6,41,8],[42,6,43,7],[42,8,43,8],[47,1,47,2],[48,1,48,2],[47,3,47,4],[48,3,48,4],[41,1,41,2],[39,3,39,4],[45,1,45,2],[45,3,45,4],[44,3,44,4],[36,1,36,2],[30,1,30,8],[33,1,33,8],[15,4,15,8],[15,18,15,22],[38,3,38,4],[14,15,14,18],[14,19,14,22],[26,15,26,22],[14,1,14,3],[27,1,27,8],[38,6,38,8],[38,1,38,2],[14,4,14,8],[15,15,15,17],[19,1,24,8],[35,1,35,2],[35,6,35,7],[36,6,36,7],[19,15,23,22],[8,9,8,14],[9,9,9,14],[224,1,224,8],[134,1,134,2],[182,1,182,8],[172,1,172,8],[173,1,173,8],[184,1,184,8],[187,1,187,8],[179,1,179,8],[178,1,178,8],[176,1,176,8],[202,1,202,8],[203,1,212,8],[144,1,144,3],[186,1,186,8],[183,1,183,8],[93,11,96,13],[118,11,118,13],[93,1,93,3],[106,1,106,2],[95,1,95,3],[120,1,120,2],[61,8,61,9],[62,8,62,9],[63,8,63,9],[64,8,64,9],[65,8,65,9],[66,8,66,9],[67,8,67,9],[68,8,68,9],[70,1,70,7],[69,1,69,7],[69,8,69,9],[70,8,70,9],[72,1,72,7],[78,8,78,9],[81,1,81,7],[81,8,81,9],[72,8,72,9],[73,8,73,9],[74,8,74,9],[75,8,75,9],[75,1,75,7],[76,1,76,7],[71,1,71,7],[71,8,71,9],[96,1,96,9],[53,8,53,9],[54,8,54,9],[55,8,55,9],[56,8,56,9],[57,8,57,9],[58,8,58,9],[59,8,59,9],[60,8,60,9],[90,1,90,9],[61,1,61,7],[62,1,62,7],[63,1,63,7],[64,1,64,7],[65,1,65,7],[66,1,66,7],[67,1,67,7],[68,1,68,7],[78,5,78,7],[73,1,73,7],[74,1,74,7],[76,8,76,9],[82,8,82,9],[83,8,83,9],[82,1,82,7],[83,1,83,7],[85,5,85,7],[85,8,85,9],[94,1,94,9],[105,1,105,4],[91,1,91,9],[99,1,100,9],[98,1,98,9],[87,5,87,7],[87,8,87,9],[103,1,103,9],[102,1,102,5],[107,3,107,7],[109,3,109,7],[111,3,111,7],[113,1,113,2],[111,1,111,2],[118,7,118,9],[123,1,123,2],[121,1,121,2],[117,1,117,2],[120,3,120,7],[121,3,121,7],[111,8,111,13],[113,8,113,13],[117,8,117,13],[113,3,113,7],[117,3,117,7]]}
[]
[null,null,null,null,null,null,null,null,null,null,null,null,null,null,{"$f":"\"Avrop nr: \"&B15","v":"Avrop nr: "},null,null,null,null,null,null,null,{"$f":"\"Avrop nr: \"&B15","v":"Avrop nr: "}]
[null,"Avropsförfrågan",null,null,null,null,null,null,null,null,null,null,null,null,null,"Avropssvar",null,null,null,{"$f":"IF(LarmStatus,\"Minst ett av de obligatoriska kraven är inte ifyllda eller besvarade med Nej\",\"\")","v":"Minst ett av de obligatoriska kraven är inte ifyllda eller besvarade med Nej"},null,null,null,null,null,null,null,null,null,null,null,null,null,{"$f":"OR(AH4:AH878)","v":true}]
[null,"Instruktion till avropande organisation: \nSpara ned blanketten på din dator.\nGulmarkerade rutor fylls i av avropare innan blanketten skickas.\n\nBlanketten skickas med e-post till antagna leverantörer inom aktuellt avropsområde.\nSe vidare \"Vägledning vid avrop\".",null,null,null,null,null,null,null,"Ramavtalsområde",null,null,null,null,null,"Instruktion till leverantör:\nBlåmarkerade rutor fylls i av leverantören.\nLäs och kontrollera obligatoriska krav.\nReturnera blanketten med e-post till avropande organisation (oavsett Ja eller Nej).\nMer information finns under vissa rubriker"]
[null,null,null,null,null,null,null,null,null,"Företagshälsa"]
[null,"Steg 1 - Administrativa uppgifter",null,null,null,null,null,null,null,"Avrop med förnyad konkurrensutsättning\nKammarkollegiets diarienr. "]
[null,"Uppgifter om avropande organisation",null,null,null,null,null,null,null,null,null,null,null,null,null,"Uppgifter om Ramavtalsleverantören"]
[null,"Myndighet/Organisation (namn)",null,null,null,null,null,"Organisationsnummer",null,"23.3-2523-19",null,null,null,null,null,"Ramavtalsleverantörens namn",null,null,null,null,null,"Organisationsnummer"]
[null,null,null,null,null,null,null,null,null,"Avropsblankett"]
[null,"Postadress",null,null,"Postnummer",null,null,"Ort",null,"Version 2,11",null,null,null,null,null,"Kontaktperson",null,null,null,"E-post"]
[]
[null,"Avdelning, enhet etc",null,null,"Kontaktperson",null,null,"Telefon",null,null,null,null,null,null,null,"Postadress",null,null,null,"Postnummer",null,"Ort"]
[]
[null,"Referens/diarienr för avropet",null,null,"E-post",null,null,null,null,null,null,null,null,null,null,"Telefon",null,null,null,"Offertnummer el likn för detta avropssvar"]
[null,null,null,null,"     "]
[null,null,null,null,null,null,null,null,null,null,null,null,null,null,null,"Avropssvar lämnas Ja/Nej",null,null,"Om Nej, motivering"]
[null,null,null,null,"     ",null,null,null,null,null,null,null,null,null,null,null,null,null,null,null,null,null,null,null,null,null,null,null,null,null,null,null,null,{"$f":"IF(AND(P17=0,P17<>\"Ja\"),TRUE,FALSE)","v":true}]
[]
[null,"Förnyad kontroll av leverantörskrav (ESPD)",null,null,null,null,null,null,null,null,null,null,null,null,null,"Leverantörskrav (ESPD) - Ramavtalsleverantörens intygande"]
[null,"Av 15 kap. 1 samt 4 §§ LOU framgår att ramavtalsleverantören ska lämna en ny egenförsäkran samt att en ny kontroll av kvalificeringskrav och uteslutningsgrunder ska genomföras vid avrop genom förnyad konkurrensutsättning. Kammarkollegiet ansvarar för denna kontrollskyldighet genom att löpande genomföra leverantörsprövning under hela ramavtalsperioden. \nKontrollskyldigheten bör också hanteras så att ramavtalsleverantören i sitt avropssvar bekräftar att i ramavtalsupphandlingen lämnad egenförsäkran fortfarande är korrekt, samt att ingivna bevis fortfarande är aktuella. Avropande myndighet kan själv begära in ett eller flera bevis enligt punkten 2 till höger.",null,null,null,null,null,null,null,null,null,null,null,null,null,"Genom att lämna avropssvar, bekräftar ramavtalsleverantören följande:\n1.\tAtt i ramavtalsupphandlingen lämnad egenförsäkran fortfarande är korrekt.\n2.\tAtt i ramavtalsupphandlingen ingivna bevis, såsom Sanningsförsäkran avseende uteslutningsgrunder (gällande leverantören och ev. åberopade företag) fortfarande aktuella.\n3.\tAtt ramavtalsleverantören har säkerställt att ev. åberopade företag inte omfattas av någon uteslutningsgrund.\nMed \"åberopat företag\" avses specifikt en underleverantör som har åberopats i ramavtalsupphandlingen för att uppfylla krav på ekonomisk, teknisk och yrkesmässig kapacitet”."]
[]
[]
[]
[]
[]
[null,null,null,null,null,null,null,null,null,null,null,null,null,null,null,"Uppgift om underleverantörer (i förekommande fall)"]
[null,"Information om avropet, t ex syfte och omfattning",null,null,null,null,null,null,null,null,null,null,null,null,null,"Redogör för vilka underleverantör/er inkl. org. nr. som kommer att medverka till fullgörandet av kontraktet samt vilka delar underleverantörerna fullgör. \nMed Underleverantör avses en juridisk eller fysisk person som Ramavtalsleverantören anlitar för att fullgöra hela eller delar av det åtagande som följer av Ramavtalet och Kontrakt. \n"]
[]
[]
[null,"Samordning"]
[null,"Avropsberättigad med verksamhet på flera orter som efter avrop erhåller mer än en Ramavtalsleverantör kan välja att ange att någon av dessa ramavtalsleverantörer ska hantera samordning av de olika Ramavtalsleverantörerna i enlighet med överenskommelse mellan parterna. Avropsberättigad ska i detta fall ange vad som ingår i rollen. Tjänsten kan utföras av Företagssköterska, legitimerad sjuksköterska, Rehabiliteringskoordinator eller annan adekvat kompetens. Avropsberättigad ska även specificera annan adekvat kompetens som ska utföra tjänsten om detta är aktuellt."]
[]
[null,"Beskrivning av samordningen"]
[]
[null,"Prissättning av samordning"]
[null,"Ange kompetens (i lista)",null,"Enhet","Volym/Antal","Pris","Summa\n(Vägs in i totalen på rad 83)"]
[null,null,null,"Timmar",null,null,{"$f":"F37*E37","v":0}]
[null,"Administrativa villkor"]
[null,"Sista dag för att ställa frågor",null,"Sista dag för \nsvar på frågor",null,null,"E-post för frågor (om annan än ovan)"]
[]
[]
[null,"Sista dag för avropssvar",null,"Avropssvarets giltighetstid",null,null,"Avtalsspärr efter tilldelningsbeslut"]
[null,null,null,null,null,null,"Avtalsspärr kommer att iakttas?"]
[]
[null,"Kontraktets giltighetstid (fr.o.m. datum)",null,"Kontraktets giltighetstid (t.o.m. datum)"]
[]
[]
[null,"Förlängningsoption\n(fr.o.m. datum)",null,"Förlängningsoption\n(t.o.m. datum)"]
[]
[]
[]
[null,"Steg 2 - Sammanställning av priskorg"]
[null,"Tjänst",null,null,null,null,null,null,"Summa"]
[null,{"$f":"'2 Priskorg'!B35","v":"2.1.1.1 Hälsotest (individ och grupp)"},null,null,null,null,null,null,{"$f":"SUM('2 Priskorg'!$P$50:$P$52)","v":0}]
[null,{"$f":"'2 Priskorg'!B62","v":"2.1.1.2 Rådgivning livsstil (individ)"},null,null,null,null,null,null,{"$f":"SUM('2 Priskorg'!$P$73:$P$75)","v":0}]
[null,{"$f":"'2 Priskorg'!B85","v":"2.1.1.3 Hälsofrämjande rådgivning (organisation)"},null,null,null,null,null,null,{"$f":"SUM('2 Priskorg'!$P$96:$P$98)","v":0}]
[null,{"$f":"'2 Priskorg'!B111","v":"2.2.1.2 Förebyggande samtalsstöd "},null,null,null,null,null,null,{"$f":"SUM('2 Priskorg'!$P$122:$P$125)","v":0}]
[null,{"$f":"'2 Priskorg'!B135","v":"2.2.1.3 Chefsstöd (individ och grupp)"},null,null,null,null,null,null,{"$f":"SUM('2 Priskorg'!$P$146:$P$150)","v":0}]
[null,{"$f":"'2 Priskorg'!B161","v":"2.2.2.1 Systematiskt arbetsmiljöarbete (SAM)"},null,null,null,null,null,null,{"$f":"SUM('2 Priskorg'!$P$172:P$176)","v":0}]
[null,{"$f":"'2 Priskorg'!B187","v":"2.2.3.1 Ergonomisk genomgång av arbetsplats (individ)"},null,null,null,null,null,null,{"$f":"SUM('2 Priskorg'!$P$198)","v":0}]
[null,{"$f":"'2 Priskorg'!B208","v":"2.2.3.2 Ergonomisk genomgång av arbetsplatser (grupp)"},null,null,null,null,null,null,{"$f":"SUM('2 Priskorg'!$P$219)","v":0}]
[null,{"$f":"'2 Priskorg'!B229","v":"2.2.3.3 Ergonomisk genomgång av arbetsplatser (Organisation)"},null,null,null,null,null,null,{"$f":"SUM('2 Priskorg'!$P$240:$P$241)","v":0}]
[null,{"$f":"'2 Priskorg'!B252","v":"2.2.4.1 Liten hälsoundersökning"},null,null,null,null,null,null,{"$f":"SUM('2 Priskorg'!$P$263)","v":0}]
[null,{"$f":"'2 Priskorg'!B265","v":"2.2.4.2 Stor hälsoundersökning "},null,null,null,null,null,null,{"$f":"SUM('2 Priskorg'!$P$276)","v":0}]
[null,{"$f":"'2 Priskorg'!B278","v":"2.2.4.3 Valfri hälsoundersökning "},null,null,null,null,null,null,{"$f":"SUM('2 Priskorg'!$P$289)","v":0}]
[null,{"$f":"'2 Priskorg'!B299","v":"2.2.4.4 Hälsoundersökning, medicinska kontroller "},null,null,null,null,null,null,{"$f":"SUM('2 Priskorg'!$P$310:$P$312)","v":0}]
[null,{"$f":"'2 Priskorg'!B323","v":"2.2.5.1 Vaccination - influensa och andra epidemiska sjukdomar "},null,null,null,null,null,null,{"$f":"SUM('2 Priskorg'!$P$335)","v":0}]
[null,{"$f":"'2 Priskorg'!B345","v":"2.2.5.2 Vaccination vid smittexponering i tjänsten "},null,null,null,null,null,null,{"$f":"SUM('2 Priskorg'!$P$356)","v":0}]
[null,{"$f":"'2 Priskorg'!B367","v":"2.2.6.1 Utbildningar och seminarier inom arbetsmiljö- och hälsoområdet (grupp)"},null,null,null,null,null,null,{"$f":"SUM('2 Priskorg'!$P$378:$P$381)","v":0}]
[null,{"$f":"'2 Priskorg'!B392","v":"2.3.1.1 Konflikthantering (individ och grupp)"},null,null,null,null,null,null,{"$f":"SUM('2 Priskorg'!$P$403:$P$407)","v":0}]
[null,{"$f":"'2 Priskorg'!B417","v":"2.3.1.2 Krishantering (individ och grupp)"},null,null,null,null,null,null,{"$f":"SUM('2 Priskorg'!$P$428:$P$432)","v":0}]
[null,{"$f":"'2 Priskorg'!B442","v":"2.3.1.3 Stresshantering (individ)"},null,null,null,null,null,null,{"$f":"SUM('2 Priskorg'!$P$453:$P$455)","v":0}]
[null,{"$f":"'2 Priskorg'!B465","v":"2.3.1.4 Utredning kränkande särbehandling (individ och grupp)"},null,null,null,null,null,null,{"$f":"SUM('2 Priskorg'!$P$476:$P$477)","v":0}]
[null,{"$f":"'2 Priskorg'!B491","v":"2.3.2.2 Rehabiliterande samtalsstöd (individ)"},null,null,null,null,null,null,{"$f":"SUM('2 Priskorg'!$P$502:$P$505)","v":0}]
[null,{"$f":"'2 Priskorg'!B515","v":"2.3.2.3 Arbetsanpassning och rehabilitering (individ och organisation)"},null,null,null,null,null,null,{"$f":"SUM('2 Priskorg'!$P$526:$P$530)","v":0}]
[null,{"$f":"'2 Priskorg'!B540","v":"2.3.2.4 Arbetsförmågebedömning(individ och organisation)"},null,null,null,null,null,null,{"$f":"SUM('2 Priskorg'!$P$551:$P$555)","v":0}]
[null,{"$f":"'2 Priskorg'!B565","v":"2.3.2.5 Utredning och stöd vid missbruk (individ och organisation)"},null,null,null,null,null,null,{"$f":"SUM('2 Priskorg'!$P$576:$P$578)","v":0}]
[]
[null,null,null,null,null,"Summa priskorg: ",null,null,{"$f":"SUM($I$54:$J$77)","v":0}]
[]
[null,"Steg 2.1 - Sammanställning av priskorg övriga tjänster"]
[null,"Övrig tjänst",null,null,null,null,null,null,"Summa"]
[null,{"$f":"'2.1 Priskorg övriga tjänster'!B8","v":"2.1.1.1 24-timmars krisstöd"},null,null,null,null,null,null,{"$f":"SUM('2.1 Priskorg övriga tjänster'!$P$18:$P$21)","v":0}]
[null,{"$f":"'2.1 Priskorg övriga tjänster'!B31","v":"2.1.1.2 Besök - övriga kompetenser"},null,null,null,null,null,null,{"$f":"SUM('2.1 Priskorg övriga tjänster'!$P$42:$P$46)","v":0}]
[]
[null,null,null,null,null,"Summa priskorg övriga tjänster: ",null,null,{"$f":"SUM(I83:J84)","v":0}]
[]
[null,null,null,null,null,"Summa priskorgar inklusive \nsubtotal från 2 Priskorg:",null,null,{"$f":"$I$86+$I$79+'2 Priskorg'!$F$24+$G$37","v":0}]
[]
[null,"Steg 3 - Grund för tilldelning av kontrakt"]
[null,"I enlighet med ramavtalet sker tilldelning av kontrakt utifrån tilldelningsgrunden: Ekonomiskt mest fördelaktiga utifrån bästa förhållande mellan pris och kvalitet"]
[null,"Alt. 2. Ekonomiskt mest fördelaktiga utifrån bästa förhållande mellan pris och kvalitet",null,null,null,null,null,null,null,null,"(Tag bort detta fält och valmöjligheten, tilldelningsgrunden ska vara fast utifrån respektive ramavtal.)"]
[1]
[1,"Utvärderingsmodell",null,null,null,null,null,null,null,null,null,"Instruktion:\nObservera att de två föreslagna alternativen (utöver Lägsta pris) endast är exempel på vanligt förekommande utvärderings-modeller. Det är alltid den avropande organisationen som avgör om man vill använda sig av dem. Det går även att ange egen modell."]
[1,"Ange nedan utvärderingsmodell som kommer att tillämpas för att utse vinnande avropssvar. \n"]
[1]
[1,"Välj utvärdering….."]
[]
[null,"Förfarande  om två avropssvar har erhållit samma poängsumma/utvärderingspris"]
[null,"(plats för text utifrån aktuellt ramavtal)"]
[]
[]
[null,"Steg 4 - Kravspecifikation"]
[null,"Nedan anges de utvärderingskriterier som kan användas vid avrop om så önskas. Angivna kriterier kan användas som obligatoriska krav (ska-krav) eller som tilldelningskriterier (bör-krav). Nedan angivna kriterier är inte fullständiga, om kraven tillämpas ska avropsberättigad precisera dessa i avropsförfrågan. Gulmarkerade rutor fylls i av avropsberättigad innan avropsförfrågan skickas."]
[]
[null,"Obligatoriska krav (\"ska-krav\")",null,null,null,null,null,null,null,null,null,null,null,null,null,"Kravuppfyllnad"]
[null,"Utvärderingskriterie",null,"Spec enligt upphandlingen",null,null,null,null,"Precisera skakravet i fritext eller hänvisa till bilaga\n",null,null,null,null,null,null,"Uppfylls kravet?\nJa/Nej","Beskrivning av hur leverantören uppfyller kravet eller referera till bilaga."]
[null,"1. Pris",null,"Avropsberättigad fyller i flik 2 Priskorg samt i förekommande fall flik 2.1 Priskorg övriga tjänster.\nLeverantören fyller i priser för resp rad och ett totalt pris för priskorgen beräknas och utvärderas.\n- Totalpris\n- Pris för enstaka tjänster\n- Fakturering",null,null,null,null,null,null,null,null,null,null,null,null,null,null,null,null,null,null,null,null,null,null,{"$f":"IF(I108=\"\",TRUE,FALSE)","v":true},{"$f":"IF(P108<>\"Ja\",TRUE,IF(Q108<>\"\",TRUE,FALSE))","v":true},null,null,null,null,null,{"$f":"IF(AA108=AB108,FALSE,TRUE)","v":false}]
[]
[null,"2. Tillgänglighet",null,"- Närhet till allmänna kommunikationsmedel\n- Placering, adress för mottagning\n- Vara placerad inom ett geografiskt avstånd som gör det möjligt att nå företagshälsan med allmänna transportmedel inom en viss tid\n- Tillgänglighetsanpassning för funktionsnedsättningar",null,null,null,null,null,null,null,null,null,null,null,null,null,null,null,null,null,null,null,null,null,null,{"$f":"IF(I110=\"\",TRUE,FALSE)","v":true},{"$f":"IF(P110<>\"Ja\",TRUE,IF(Q110<>\"\",TRUE,FALSE))","v":true},null,null,null,null,null,{"$f":"IF(AA110=AB110,FALSE,TRUE)","v":false}]
[]
[null,"3. Statistik",null,"- Lättförståeliga rapporter\n- Detaljinformation\n- Redovisningsperioder\n- Återrapportering\n- Kundportal med möjlighet för Avropsberättigad att själv ta del av statistik",null,null,null,null,null,null,null,null,null,null,null,null,null,null,null,null,null,null,null,null,null,null,{"$f":"IF(I112=\"\",TRUE,FALSE)","v":true},{"$f":"IF(P112<>\"Ja\",TRUE,IF(Q112<>\"\",TRUE,FALSE))","v":true},null,null,null,null,null,{"$f":"IF(AA112=AB112,FALSE,TRUE)","v":false}]
[]
[null,"4. Uppdrag",null,"- Kvalitet\n- Kompetens\n- Övriga kompetenser\n- Tjänster\n- Övriga tjänster\n- Samarbete och flexibilitet\n- Uppföljning\n- Beskriva det aktuella uppdragets utförande",null,null,null,null,null,null,null,null,null,null,null,null,null,null,null,null,null,null,null,null,null,null,{"$f":"IF(I114=\"\",TRUE,FALSE)","v":true},{"$f":"IF(P114<>\"Ja\",TRUE,IF(Q114<>\"\",TRUE,FALSE))","v":true},null,null,null,null,null,{"$f":"IF(AA114=AB114,FALSE,TRUE)","v":false}]
[]
[null,"5. Kommunikation",null,"- Kompetens att tillhandahålla efterfrågade tjänster och kompetenser på engelska\n- Möjlighet att tillhandahålla efterfrågade tjänster digitalt.",null,null,null,null,null,null,null,null,null,null,null,null,null,null,null,null,null,null,null,null,null,null,{"$f":"IF(I116=\"\",TRUE,FALSE)","v":true},{"$f":"IF(P116<>\"Ja\",TRUE,IF(Q116<>\"\",TRUE,FALSE))","v":true},null,null,null,null,null,{"$f":"IF(AA116=AB116,FALSE,TRUE)","v":false}]
[]
[null,"6. Åtgärdsförslag",null,"- Beskrivning på vilket sätt företagshälsans insatser kan minska korttidssjukfrånvaron.\n- Beskrivning på vilket sätt arbetsanpassning och rehabiliterande åtgärder kan utformas för att nå uppsatta mål.\n- Beskrivning på vilket sätt proaktiva åtgärder kan utformas för att nå uppsatta mål.\n- Beskrivning över på vilket sätt insatser kan utformas för att nå uppsatta mål avseende den organisatoriska och sociala arbetsmiljön.\n- Beskrivning på vilket sätt åtgärder kan genomföras vid en\norganisationsförändring.",null,null,null,null,null,null,null,null,null,null,null,null,null,null,null,null,null,null,null,null,null,null,{"$f":"IF(I118=\"\",TRUE,FALSE)","v":true},{"$f":"IF(P118<>\"Ja\",TRUE,IF(Q118<>\"\",TRUE,FALSE))","v":true},null,null,null,null,null,{"$f":"IF(AA118=AB118,FALSE,TRUE)","v":false}]
[]
[null,"Tilldelningskriterier (\"bör-krav\")"]
[null,"Utvärderingskriterie",null,"Spec enligt upphandlingen\n",null,null,null,null,"Precisera börkravet i fritext eller hänvisa till bilaga\n\n",null,null,null,{"$f":"IF(TillDelVal=1,\"\",\"Ange poäng-värde\n\")","v":"Ange poäng-värde\n"},{"$f":"IF(TillDelVal=1,\"\",\"Ange prisavdrag från totalpriset (kr)\n\")","v":"Ange prisavdrag från totalpriset (kr)\n"},null,"Uppfyller kravet?","Beskrivning av hur leverantören uppfyller kravet eller referera till bilaga"]
[null,"1. Pris",null,"Avropsberättigad fyller i flik 2 Priskorg samt i förekommande fall flik 2.1 Priskorg övriga tjänster.\nLeverantören fyller i priser för resp rad och ett totalt pris för priskorgen beräknas och utvärderas.\n- Totalpris\n- Pris för enstaka tjänster\n- Fakturering",null,null,null,null,null,null,null,null,null,null,null,null,null,null,null,null,null,null,null,null,null,null,{"$f":"IF(I122=\"\",TRUE,FALSE)","v":true},{"$f":"IF(P122<>\"Ja\",TRUE,IF(Q122<>\"\",TRUE,FALSE))","v":true},null,null,null,null,null,{"$f":"IF(AA122=AB122,FALSE,TRUE)","v":false}]
[]
[null,"2. Tillgänglighet",null,"- Närhet till allmänna kommunikationsmedel\n- Placering, adress för mottagning\n- Vara placerad inom ett geografiskt avstånd som gör det möjligt att nå företagshälsan med allmänna transportmedel inom en viss tid\n- Tillgänglighetsanpassning för funktionsnedsättningar",null,null,null,null,null,null,null,null,null,null,null,null,null,null,null,null,null,null,null,null,null,null,{"$f":"IF(I124=\"\",TRUE,FALSE)","v":true},{"$f":"IF(P124<>\"Ja\",TRUE,IF(Q124<>\"\",TRUE,FALSE))","v":true},null,null,null,null,null,{"$f":"IF(AA124=AB124,FALSE,TRUE)","v":false}]
[]
[null,"3. Statistik",null,"- Lättförståeliga rapporter\n- Detaljinformation\n- Redovisningsperioder\n- Återrapportering\n- Kundportal med möjlighet för Avropsberättigad att själv ta del av statistik",null,null,null,null,null,null,null,null,null,null,null,null,null,null,null,null,null,null,null,null,null,null,{"$f":"IF(I126=\"\",TRUE,FALSE)","v":true},{"$f":"IF(P126<>\"Ja\",TRUE,IF(Q126<>\"\",TRUE,FALSE))","v":true},null,null,null,null,null,{"$f":"IF(AA126=AB126,FALSE,TRUE)","v":false}]
[]
[null,"4. Uppdrag",null,"- Kvalitet\n- Kompetens\n- Övriga kompetenser\n- Tjänster\n- Övriga tjänster\n- Samarbete och flexibilitet\n- Uppföljning\n- Beskriva det aktuella uppdragets utförande",null,null,null,null,null,null,null,null,null,null,null,null,null,null,null,null,null,null,null,null,null,null,{"$f":"IF(I128=\"\",TRUE,FALSE)","v":true},{"$f":"IF(P128<>\"Ja\",TRUE,IF(Q128<>\"\",TRUE,FALSE))","v":true},null,null,null,null,null,{"$f":"IF(AA128=AB128,FALSE,TRUE)","v":false}]
[]
[null,"5. Kommunikation",null,"- Kompetens att tillhandahålla efterfrågade tjänster och kompetenser på engelska\n- Möjlighet att tillhandahålla efterfrågade tjänster digitalt.",null,null,null,null,null,null,null,null,null,null,null,null,null,null,null,null,null,null,null,null,null,null,{"$f":"IF(I130=\"\",TRUE,FALSE)","v":true},{"$f":"IF(P130<>\"Ja\",TRUE,IF(Q130<>\"\",TRUE,FALSE))","v":true},null,null,null,null,null,{"$f":"IF(AA130=AB130,FALSE,TRUE)","v":false}]
[]
[null,"6. Åtgärdsförslag",null,"- Beskrivning på vilket sätt företagshälsans insatser kan minska korttidssjukfrånvaron.\n- Beskrivning på vilket sätt arbetsanpassning och rehabiliterande åtgärder kan utformas för att nå uppsatta mål.\n- Beskrivning på vilket sätt proaktiva åtgärder kan utformas för att nå uppsatta mål.\n- Beskrivning över på vilket sätt insatser kan utformas för att nå uppsatta mål avseende den organisatoriska och sociala arbetsmiljön.\n- Beskrivning på vilket sätt åtgärder kan genomföras vid en\norganisationsförändring.",null,null,null,null,null,null,null,null,null,null,null,null,null,null,null,null,null,null,null,null,null,null,{"$f":"IF(I132=\"\",TRUE,FALSE)","v":true},{"$f":"IF(P132<>\"Ja\",TRUE,IF(Q132<>\"\",TRUE,FALSE))","v":true},null,null,null,null,null,{"$f":"IF(AA132=AB132,FALSE,TRUE)","v":false}]
[1,1,1,1,1,1,1,1,1,1,1,1,1,1,1]
[1,null,null,null,null,null,null,null,null,null,null,{"$f":"IF(UtvarderingsVal=\"Alt3\",\"\",\"Max poäng för uppfyllda bör-krav\")","v":"Max poäng för uppfyllda bör-krav"},{"$f":"IF(UtvarderingsVal=\"Alt2\",\"\",\"Max prisavdrag för uppfyllda bör-krav\")","v":"Max prisavdrag för uppfyllda bör-krav"}]
[1,null,null,null,null,null,null,null,null,null,null,{"$f":"IF(UtvarderingsVal=\"Alt3\",\"\",SUM(M122:M132))","v":0},{"$f":"IF(UtvarderingsVal=\"Alt2\",\"\",SUM(N122:N132))","v":0},null,null,{"$f":"IF(UtvarderingsVal=\"Alt3\",\"\",\"Total erhållen poängsumma:\")","v":"Total erhållen poängsumma:"},{"$f":"IF(UtvarderingsVal=\"Alt3\",\"\",SUMIF(P122:P132,\"Ja\",M122:M132))","v":0},null,null,{"$f":"IF(UtvarderingsVal=\"Alt2\",\"\",\"Totalt erhållet prisavdrag:\")","v":"Totalt erhållet prisavdrag:"},null,{"$f":"IF(UtvarderingsVal=\"Alt2\",\"\",SUMIF(P122:P132,\"Ja\",N122:N132))","v":0}]
[]
[]
[]
["Ut1","Alt. 2. Summan av viktade poäng för pris och uppfyllda bör-krav, högsta slutsumma vinner.",null,null,null,null,null,null,null,null,null,null,null,null,null,"Sammanställning för detta avropssvar",null,"Fyll i det gula fältet efter att samtliga avropssvar inkommit!","När det gula fältet är ifyllt sker en automatisk poängberäkning. Lägst inkomna pris divideras med det aktuella avropssvarets pris, multipliceras med 100 och därefter med angiven viktning. Poängsumman för uppfyllda bör-krav divideras med max poäng för uppfyllda bör-krav, multipliceras med 100 och därefter med angiven viktning. En slutlig poängsumma för detta avropssvar kommer att framgå av fältet längst ned. Denna slutliga poängsumma ska jämföras med övriga inkomna avropssvar och ligger till grund för tilldelningsbeslutet."]
["Ut1","Priset jämförs mellan avropssvaren. Poäng för uppfyllda bör-krav jämförs med möjlig maxpoäng. "]
["Ut1","Tilldelningskriterier"]
["Ut1","Ange kriterievikt för pris respektive bör-krav i tabellen nedan",null,null,null,null,null,null,null,"Viktning %",null,null,null,null,null,null,"Viktning","Lägsta inkomna totalpris","Erhållen poäng för totalpris",null,"Viktade poäng per kriterium",null,"Slutlig poängsumma för detta avropssvar\n(utvärderas)"]
["Ut1","Pris",null,null,null,null,null,null,"Utvärdering av det totala sammanräknade priset: ",1,null,null,null,null,null,"Totalpris"]
["Ut1","Utvärderingskrav \n(bör-krav)",null,null,null,null,null,null,"Utvärdering av ställda bör-krav på avropade tjänster: ",0,null,null,null,null,null,{"$f":"$I$88","v":0},{"$f":"J143","v":1},null,{"$f":"IFERROR(R144/P144*100,0)","v":0},null,{"$f":"IFERROR(S144*Q144,\"\")","v":0},null,{"$f":"IFERROR(SUM(U144+U146),\"\")","v":""}]
["Ut1","Summa kriterievikt:",null,null,null,null,null,null,"(ska alltid summera till 100 %)",{"$f":"J144+J143","v":1},null,null,null,null,null,"Poängsumma för uppfyllda bör-krav"]
["Ut1",null,null,null,null,null,null,null,null,null,null,null,null,null,null,{"$f":"Q135","v":0},{"$f":"J144","v":0},null,null,null,{"$f":"IFERROR(((P146/L135)*100)*Q146,\"\")","v":""}]
["Ut1"]
["Ut1"]
[]
["Ut2","Alt. 3. Prisavdrag för uppfyllda bör-krav, lägsta utvärderingskostnad vinner. ",null,null,null,null,null,null,null,null,null,null,null,null,null,"Prisavdrag för uppfyllda bör-krav. ",null,"Summa utvärderingskostnad för detta avropssvar"]
["Ut2","Det erhållna prisavdraget för uppfyllda utvärderingskrav (bör-krav) dras ifrån det totala priset för avropade tjänster. Resultatet blir en utvärderingskostnad som ligger till grund för tilldelningsbeslutet.",null,null,null,null,null,null,null,null,null,null,null,null,null,{"$f":"V135","v":0},null,{"$f":"I88-P151","v":0}]
["Ut2",null,null,null,null,null,null,null,null,null,null,null,null,null,null,null,null,"OBS! Ej detsamma som kontraktssumma"]
["Ut2"]
["Ut2"]
[]
["Ut3","Alt. 4. Annan utvärderingsmodell (än de ovan föreslagna)"]
["Ut3"]
["Ut3","Avropande organisations beskrivning av den utvärderingsmodell som kommer att tillämpas (eller hänvisning till bilaga)"]
["Ut3"]
["Ut3"]
["Ut3"]
["Ut3"]
["Ut3"]
["Ut3"]
["Ut3"]
[]
[]
[null,"Steg 5 - Övriga kontraktsvillkor"]
[null,"Ramavtalets allmänna villkor utgör alltid en del av kontraktet."]
[null,"Leveranstid"]
[null,"Ange ev leveranstid/er för varor/tjänster"]
[]
[]
[]
[]
[null,"Leveransadress (om annan än ovan)"]
[null,"Ange ev adress för uppdraget/uppdragen"]
[]
[]
[]
[]
[null,"Faktureringsuppgifter "]
[null,"Ange fakturaadress, fakturareferens, adress för e-faktura"]
[]
[]
[]
[]
[]
[]
[null,"Leveransvillkor (framgår av ramavtalets allmänna villkor)"]
[null,"Ev. precisering av leveransvillkor"]
[]
[]
[]
[]
[null,"Kompletterande avtalsdokument"]
[null,"T.ex. säkerhetsskyddsavtal, personuppgiftsbiträdesavtal, sekretessavtal, servicenivåavtal. (alternativt enl separat bilaga) \nObservera att det måste framgå av ramavtalet att krav kan ställas på sådana avtal."]
[]
[]
[]
[]
[null,"Övrig information"]
[null,"Ange övriga specifika förutsättningar (tex ev budgetrestriktioner), förhållanden eller önskemål som kan vara viktiga för leverantören och som inte framgår på annan plats i dokumentet."]
[]
[]
[]
[]
[]
[]
[]
[]
[]
[]
[]
[null,"Bilagor från avropande organisation (kontraktshandlingar framgår av flik 3)",null,null,null,null,null,null,null,null,null,null,null,null,null,"Bilagor från leverantören"]
[null,"Specificera ev. bilagor som medföljer denna avropsförfrågan",null,null,null,null,null,null,null,null,null,null,null,null,null,"Specificera ev. bilagor som medföljer detta avropssvar"]
[]
[]
[]
[]
[]
[]
[null,null,null,null,null,null,null,null,null,null,null,null,null,null,null,"Leverantören har lämnat begärda prisuppgifter som gäller för offererade varor och tjänster enligt ställda krav samt accepterar i övrigt kraven i avropsförfrågan och är införstådd med att samtliga lämnade uppgifter i avropssvaret är bindande\n"]
[]
[null,"OBS! Spara inte blanketten i PDF-format. Då kan inte leverantörerna fylla i den. Lås blanketten med \"låsknappen\" nedan innan ni skickar blanketten till leverantörerna.",null,null,null,null,null,null,null,null,null,null,null,null,null,{"$f":"\"Leverantören intygar att avropssvaret är giltigt minst den tid som avropande organisation angett ovan. \"&CHAR(10)&\"(\"&TEXT(D43,\"ÅÅÅÅ-MM-DD\")&\")\"","v":"Leverantören intygar att avropssvaret är giltigt minst den tid som avropande organisation angett ovan. \n(1900-01-00)"}]
[null,null,null,null,null,null,null,null,null,null,null,null,null,null,null,"Ort, datum"]
[null,null,null,null,null,null,null,null,null,null,null,null,null,null,null,null,null,null,null,null,null,null,null,null,null,null,null,null,null,null,null,null,null,{"$f":"IF(P227=0,TRUE,FALSE)","v":true}]
[]
[null,null,null,null,null,null,null,null,null,null,null,null,null,null,null,"Namn, befattning (behörig företrädare för leverantören)"]
[]
[null,null,null,null,null,null,null,null,null,null,null,null,null,null,null,null,null,null,null,null,null,null,null,null,null,null,null,null,null,null,null,null,null,{"$f":"IF(P230=0,TRUE,FALSE)","v":true}]
[]
[null,null,null,null,null,null,null,null,null,null,null,null,null,null,null,null,null,null,null,{"$f":"IF(LarmStatus,\"Minst ett av de obligatoriska kraven är inte ifyllda eller besvarde med Nej\",\"\")","v":"Minst ett av de obligatoriska kraven är inte ifyllda eller besvarde med Nej"}]

{"sheet":"2 Priskorg","index":1,"n_rows":588,"n_cols":16,"rows_kept":588,"cut":false,"hidden":false,"merged":[[430,2,430,3],[430,8,430,13],[431,2,431,3],[431,8,431,13],[529,2,529,3],[529,8,529,13],[554,2,554,3],[554,8,554,13],[91,1,91,6],[161,1,161,6],[162,1,162,6],[163,1,165,6],[166,1,166,6],[178,1,183,6],[99,1,99,6],[100,1,105,6],[94,2,94,3],[95,2,95,3],[96,2,96,3],[97,2,97,3],[109,1,109,6],[117,1,117,6],[118,1,118,6],[140,1,140,6],[73,2,73,3],[74,2,74,3],[68,1,68,6],[69,1,69,6],[71,2,71,3],[72,2,72,3],[76,1,76,6],[77,1,82,6],[86,1,86,6],[87,1,89,6],[90,1,90,6],[136,1,136,6],[137,1,139,6],[125,1,125,6],[119,1,119,6],[111,1,111,10],[112,1,112,6],[113,1,115,6],[116,1,116,6],[92,1,92,6],[120,2,120,3],[121,2,121,3],[122,2,122,3],[123,2,123,3],[124,2,124,3],[126,1,126,6],[127,1,132,6],[135,1,135,6],[50,2,50,3],[53,1,53,6],[54,1,59,6],[63,1,63,6],[64,1,66,6],[67,1,67,6],[51,2,51,3],[48,8,48,13],[49,8,49,13],[50,8,50,13],[51,8,51,13],[9,1,9,2],[10,1,10,2],[11,1,11,2],[12,1,12,2],[13,1,13,2],[14,1,14,2],[15,1,15,2],[16,1,16,2],[17,1,17,2],[18,1,18,2],[19,1,19,2],[20,1,20,2],[21,1,21,2],[49,2,49,3],[42,1,46,6],[47,1,47,6],[40,1,40,6],[41,1,41,6],[37,1,39,6],[31,1,31,5],[36,1,36,6],[26,1,27,6],[141,1,141,6],[142,1,142,6],[144,2,144,3],[145,2,145,3],[146,2,146,3],[147,2,147,3],[148,2,148,3],[149,2,149,3],[150,1,150,6],[143,1,143,6],[189,1,191,6],[192,1,192,6],[193,1,193,6],[194,1,194,6],[199,1,199,6],[167,1,167,6],[168,1,168,6],[170,2,170,3],[171,2,171,3],[172,2,172,3],[173,2,173,3],[174,2,174,3],[175,2,175,3],[177,1,177,6],[197,2,197,3],[188,1,188,6],[200,1,205,6],[209,1,209,6],[210,1,212,6],[213,1,213,6],[214,1,214,6],[215,1,215,6],[217,2,217,3],[218,2,218,3],[220,1,220,6],[216,1,216,6],[221,1,226,6],[230,1,230,6],[231,1,233,6],[234,1,234,6],[235,1,235,6],[236,1,236,6],[238,2,238,3],[239,2,239,3],[240,2,240,3],[272,1,272,6],[274,2,274,3],[275,2,275,3],[279,1,279,6],[280,1,282,6],[273,1,273,6],[242,1,242,6],[243,1,248,6],[253,1,253,6],[254,1,256,6],[257,1,257,6],[258,1,258,6],[259,1,259,6],[261,2,261,3],[262,2,262,3],[260,1,260,6],[266,1,266,6],[267,1,269,6],[270,1,270,6],[271,1,271,6],[336,1,336,6],[337,1,342,6],[345,1,345,6],[346,1,346,6],[347,1,349,6],[350,1,350,6],[351,1,351,6],[352,1,352,6],[354,2,354,4],[325,1,325,6],[326,1,328,6],[329,1,329,6],[330,1,330,6],[331,1,331,6],[333,2,333,3],[333,4,333,5],[334,2,334,3],[334,4,334,5],[332,1,332,6],[429,2,429,3],[433,1,433,6],[434,1,439,6],[432,1,432,6],[457,1,462,6],[392,1,392,10],[393,1,393,6],[394,1,396,6],[397,1,397,6],[398,1,398,6],[399,1,399,6],[403,2,403,3],[404,2,404,3],[408,1,408,6],[409,1,414,6],[401,8,401,13],[402,8,402,13],[403,8,403,13],[404,8,404,13],[429,8,429,13],[405,2,405,3],[405,8,405,13],[406,2,406,3],[406,8,406,13],[309,2,309,3],[310,2,310,3],[311,2,311,3],[313,1,313,6],[314,1,319,6],[312,1,312,6],[307,1,307,6],[304,1,304,6],[283,1,283,6],[284,1,284,6],[285,1,285,6],[287,2,287,3],[288,2,288,3],[290,1,290,6],[291,1,296,6],[300,1,300,6],[301,1,303,6],[286,1,286,6],[289,1,289,6],[491,1,491,6],[492,1,492,6],[493,1,495,6],[496,1,496,6],[487,1,488,6],[522,1,522,6],[524,2,524,3],[525,2,525,3],[526,2,526,3],[523,1,523,6],[497,1,497,6],[498,1,498,6],[500,2,500,3],[501,2,501,3],[502,2,502,3],[503,2,503,3],[504,2,504,3],[506,1,506,6],[507,1,512,6],[505,1,505,6],[517,1,519,6],[478,1,478,6],[479,1,484,6],[428,2,428,3],[425,1,425,6],[401,2,401,3],[402,2,402,3],[579,1,579,6],[580,1,585,6],[52,1,52,6],[566,1,566,6],[567,1,569,6],[570,1,570,6],[571,1,571,6],[572,1,572,6],[574,2,574,3],[575,2,575,3],[576,2,576,3],[577,2,577,3],[573,1,573,6],[547,1,547,6],[549,2,549,3],[520,1,520,6],[373,1,373,6],[374,1,374,6],[473,1,473,6],[477,1,477,6],[375,1,375,6],[465,1,465,10],[466,1,466,6],[467,1,469,6],[470,1,470,6],[471,1,471,6],[472,1,472,6],[474,2,474,3],[474,8,474,13],[454,2,454,3],[456,1,456,6],[455,1,455,6],[400,1,400,6],[448,1,448,6],[449,1,449,6],[451,2,451,3],[452,2,452,3],[453,2,453,3],[450,1,450,6],[383,1,387,6],[475,2,475,3],[476,2,476,3],[71,8,71,13],[217,8,217,13],[218,8,218,13],[238,8,238,13],[239,8,239,13],[240,8,240,13],[261,8,261,13],[262,8,262,13],[274,8,274,13],[72,8,72,13],[73,8,73,13],[74,8,74,13],[94,8,94,13],[95,8,95,13],[96,8,96,13],[97,8,97,13],[196,8,196,13],[197,8,197,13],[170,8,170,13],[171,8,171,13],[172,8,172,13],[173,8,173,13],[174,8,174,13],[147,8,147,13],[578,1,578,6],[499,1,499,6],[550,2,550,3],[551,2,551,3],[552,2,552,3],[553,2,553,3],[556,1,556,6],[557,1,562,6],[565,1,565,6],[548,1,548,6],[555,1,555,6],[527,2,527,3],[528,2,528,3],[531,1,531,6],[532,1,537,6],[540,1,540,6],[541,1,541,6],[542,1,544,6],[545,1,545,6],[546,1,546,6],[530,1,530,6],[515,1,515,6],[516,1,516,6],[521,1,521,6],[151,1,151,6],[152,1,157,6],[355,2,355,4],[407,1,407,6],[357,1,357,6],[358,1,363,6],[148,8,148,13],[149,8,149,13],[426,8,426,13],[417,1,417,10],[418,1,418,6],[419,1,421,6],[422,1,422,6],[423,1,423,6],[424,1,424,6],[426,2,426,3],[275,8,275,13],[287,8,287,13],[288,8,288,13],[367,1,367,6],[376,5,376,6],[377,5,377,6],[378,5,378,6],[379,5,379,6],[175,8,175,13],[442,1,442,10],[443,1,443,6],[444,1,446,6],[447,1,447,6],[308,8,308,13],[309,8,309,13],[310,8,310,13],[311,8,311,13],[335,1,335,6],[353,1,353,6],[356,1,356,6],[368,1,368,4],[368,5,368,6],[369,1,371,4],[369,5,371,6],[427,8,427,13],[428,8,428,13],[427,2,427,3],[380,5,380,6],[382,1,382,6],[305,1,305,6],[306,1,306,6],[308,2,308,3],[31,8,31,12],[4,1,4,7],[504,8,504,13],[524,8,524,13],[525,8,525,13],[526,8,526,13],[527,8,527,13],[528,8,528,13],[549,8,549,13],[500,8,500,13],[120,8,120,13],[121,8,121,13],[122,8,122,13],[123,8,123,13],[124,8,124,13],[451,8,451,13],[452,8,452,13],[453,8,453,13],[454,8,454,13],[144,8,144,13],[145,8,145,13],[146,8,146,13],[333,8,333,13],[334,8,334,13],[331,14,331,15],[574,8,574,13],[575,8,575,13],[587,13,587,14],[352,14,352,15],[552,8,552,13],[553,8,553,13],[475,8,475,13],[476,8,476,13],[376,8,376,13],[377,8,377,13],[378,8,378,13],[379,8,379,13],[380,8,380,13],[501,8,501,13],[502,8,502,13],[503,8,503,13],[374,14,374,15],[576,8,576,13],[577,8,577,13],[550,8,550,13],[551,8,551,13],[354,8,354,13],[355,8,355,13]]}
[]
[null,"Förslag Priskorg"]
[]
[null,"Instruktion:"]
[null,"Avropsberättigad ska fylla i volymer för de tjänster och kompetenser som de behöver. Angivna uppgifter speglar avropsberättigads uppfattade behov under angiven kontraktsperiod (kontraktsperioden anges i flik 1 Specifikation).\n\nRamavtalsleverantören fyller i priser per timme/st/grupp osv för de olika kompetenserna, vilka summeras till ett totalpris för priskorgen. Ifylld avropsblankett ska skickas med till ramavtalsleverantören vid avropsförfrågan. Blå celler fylls i av ramavtalsleverantören och gula celler fylls i av avropsberättigad.\n\nAvropsberättigad ska i sin behovsanalys som skickas med avropsförfrågan ange om de olika tjänsterna ska utföras hos avropsberättigad eller hos företagshälsan."]
[]
[null,"Förklaringar:"]
[null,"Timpriset avser påbörjad timme. 1 timme = 60 min"]
[]
[null,"Pris SEK/tim, ska anges för respektive kompetens.\nObs! ramavtalets takpris får ej överskridas",null,"Uppskattat behov (tim) utöver nedan specificerade tjänster","Pris för detta avrop","Totalt Pris"]
[null,"Företagsläkare",null,null,null,{"$f":"E11*D11","v":0}]
[null,"Legitimerad läkare",null,null,null,{"$f":"E12*D12","v":0}]
[null,"Företagssköterska",null,null,null,0]
[null,"Legitimerad sjuksköterska",null,null,null,0]
[null,"Beteendevetare",null,null,null,0]
[null,"Legitimerad psykolog",null,null,null,0]
[null,"Rehabiliteringskoordinator",null,null,null,0]
[null,"Arbetsmiljöingenjör",null,null,null,0]
[null,"Ergonom",null,null,null,0]
[null,"Fysioterapeut",null,null,null,0]
[null,"Organisationskonsult",null,null,null,0]
[null,"Hälsopedagog",null,null,null,0]
[]
[null,null,null,null,"Subtotal: ",{"$f":"SUM($F$11:$F$22)","v":0}]
[]
[null,"Priser för specificerade tjänster (utöver ovan angivna timmar/kompetens)"]
[null,"Syftet med avsnittet nedan är göra det möjligt att ange specifika behov av tjänster och/eller att konkurrensutsätta dessa tjänster. Tjänsterna utvärderas tillsammans med uppskattade timvolymer per kompetens ovan.\n \nSamtliga tjänster (2.1, 2.2 och 2.3) nedan ingår i avropet såvida inte annat anges. Tjänsterna behöver inte specificeras utan kan anges som uppskattade timmar ovan (om ej annat anges).\n\nNotera att hälsoundersökning och hälsotest inte omfattas av några takpriser. Det är därför en fördel att avropsberättigad fyller i tänkta volymer för dessa tjänster i syfte att undvika höga priser. Dessa tjänster prissätts lämpligast per person eller per grupp (givet att myndigheten specificerar hur många personer som ingår i en grupp)\n\n Om fliken fylls i kommer priserna att summeras i Totalpriset för priskorgerna i flik 1, tillsammans med de ifyllda beloppen i flik 2.1 Priskorg övriga tjänster.\n"]
[]
[null,"Färgade celler i avropsmallen har följande betydelse:","Fylls i av \nAvropsberättigad","Fylls i av\nLeverantör","Uvärderas","Ska ej fyllas i"]
[]
[]
[null,"Steg 2 - Specifikation av varor/tjänster",null,null,null,null,null,null,"Leverantörens svar"]
[null,"2.1 Proaktiva Tjänster"]
[null,"2.1.1 Hälso och friskvårdstjänster"]
[null,"2.1.1.1 Hälsotest (individ och grupp)"]
[null,"Tjänsten ska utföras av en hälsopedagog och/ eller företagssköterska eller annan adekvat kompetens"]
[null,"Information / syfte (beskrivning som fylls i av avropsberättigad).\nAvropsberättigad ska specificera vilken annan adekvat kompetens som ska utföra tjänsten om detta är aktuellt.\n(OBS! Vid grupp ange antalet individer / grupp\nNotera att denna tjänst INTE har takpris. Det är därför fördel att fylla i tänkta volymer i syfte för att undvika höga priser.\nNotera även att tjänsten lämpligast prissätts per person eller grupp."]
[]
[]
[]
[]
[null,"Tjänsten omfattar minst nedan:"]
[null,"• Frågeformulär om kost, alkohol, droger, spel, tobak, motion, stress, sömn och upplevelse av egen hälsa.\n• Blodtryck, puls, BMI, midjemått, skelettmätning och konditionstest.\n• Personligt samtal med återkoppling av resultat på individnivå och dialog om individuell handlingsplan.\n• Återkoppling av resultat på gruppnivå och förslag på handlingsplan till avropsberättigad.\n• Uppföljning av handlingsplan för individ/grupp inom tre (3) månader\n• Kostnadsfri remittering"]
[]
[]
[]
[]
[]
[null,"Målgrupp","Plats",null,"Enhet",{"$f":"\"Volym/Antal (\"&IF(E52=\"styck\",C52&\"er\",E52)&\")\"","v":"Volym/Antal ()"},"Kompetens",null,"Vid behov specificera tjänster, annan information eller hänvisa till bilaga.",null,null,null,null,null,"Pris/enhet\n","Pris totalt"]
[null,null,null,null,null,null,null,null,null,null,null,null,null,null,null,{"$f":"O50*F50","v":0}]
[null,null,null,null,null,null,null,null,null,null,null,null,null,null,null,{"$f":"O51*F51","v":0}]
[null,null,null,null,null,null,null,null,null,null,null,null,null,null,null,0]
[]
[null,"Här anger man ev ytterligare behov än de minimikrav som anges ovan:\nAvropsberättigads beskrivning av ytterligare krav på vad som ska omfattas av tjänsten (vid behov)."]
[]
[]
[]
[]
[]
[]
[]
[null,"2.1.1.2 Rådgivning livsstil (individ)"]
[null,"Tjänsten ska utföras av en hälsopedagog och/ eller företagssköterska  eller annan adekvat kompetens."]
[null,"Information / syfte\nAvropsberättigad ska specificera vilken annan adekvat kompetens som ska utföra tjänsten om detta är aktuellt.\n"]
[]
[]
[]
[]
[null,"Tjänsten omfattar minst nedan:"]
[null,"• Motiverande samtal om kost- och motionsvanor, alkohol, droger,spel,  tobak, stress och sömn.\n• Handlingsplan med aktiviteter för en god livsstil.\n• Kostnadsfri remittering"]
[]
[null,"Målgrupp","Plats",null,"Enhet",{"$f":"\"Volym/Antal (\"&E75&\")\"","v":"Volym/Antal (Timmar)"},"Kompetens",null,"Vid behov specificera tjänster, annan information eller hänvisa till bilaga.",null,null,null,null,null,"Pris/tim","Pris totalt"]
[null,"Individ",null,null,"Timmar",null,"Hälsopedagog",null,null,null,null,null,null,null,null,{"$f":"O73*F73","v":0}]
[null,"Individ",null,null,"Timmar",null,"Företagssköterska",null,null,null,null,null,null,null,null,0]
[null,"Individ",null,null,"Timmar",null,"Annan adekvat kompetens",null,null,null,null,null,null,null,null,0]
[]
[null,"Här anger man ev ytterligare behov än de minimikrav som anges ovan:\nAvropsberättigads beskrivning av ytterligare krav på vad som ska omfattas av tjänsten (vid behov)."]
[]
[]
[]
[]
[]
[]
[]
[null,"2.1.1.3 Hälsofrämjande rådgivning (organisation)"]
[null,"Tjänsten ska utföras av en hälsopedagog eller organisationskonsult eller annan adekvat kompetens."]
[null,"Information / syfte\nAvropsberättigad ska specificera vilken annan adekvat kompetens som ska utföra tjänsten om detta är aktuellt."]
[]
[]
[]
[]
[null,"Tjänsten omfattar minst nedan:"]
[null,"• Nulägesbeskrivning vid behov.\n• Målformulering vid behov.\n• Metoder och aktiviteter för att bidra till en hälsosam arbetsplats.\n• Återrapportering och uppföljning enligt överenskommelse med avropsberättigad."]
[]
[null,"Målgrupp","Plats",null,"Enhet",{"$f":"\"Volym/Antal (\"&E98&\")\"","v":"Volym/Antal (Timmar)"},"Kompetens",null,"Vid behov specificera tjänster, annan information eller hänvisa till bilaga.",null,null,null,null,null,"Pris/tim","Pris totalt"]
[null,"Organisation",null,null,"Timmar",null,"Hälsopedagog",null,null,null,null,null,null,null,null,{"$f":"O96*F96","v":0}]
[null,"Organisation",null,null,"Timmar",null,"Organisations konsult",null,null,null,null,null,null,null,null,0]
[null,"Organisation",null,null,"Timmar",null,"Annan adekvat kompetens",null,null,null,null,null,null,null,null,0]
[]
[null,"Avropsberättigads beskrivning av ytterligare krav på vad som ska omfattas av tjänsten (vid behov)."]
[]
[]
[]
[]
[]
[]
[]
[null,"2.2.1 Förebyggande tjänster"]
[null,"2.2.1.1 Förebyggande besök( individ)"]
[null,"\nTjänsten ger individen möjlighet att besöka företagshälsan för utredning av arbetspåverkande besvär. I tjänsten ingår individuella besök, dialog om missbruk och/eller missbruk, såsom alkohol, droger, läkemedel och spel samt kostnadsfri remittering .\nSpecificera uppskattade timmar per kompetens i avsnitt \"Priser för olika kompetenser\" högst upp."]
[null,"2.2.1.2 Förebyggande samtalsstöd "]
[null,"Tjänsten ska utföras av beteendevetare, leg. psykolog eller annan adekvat kompetens.\nEnligt överenskommelse med avropsberättigad så kan tjänsten utföras av företagssköterska."]
[null,"Information / syfte\nAvropsberättigad ska specificera vilken annan adekvat kompetens som ska utföra tjänsten om detta är aktuellt."]
[]
[]
[]
[]
[null,"Tjänsten omfattar minst nedan:"]
[null,"• Definition av problembild med förslag till åtgärder (skriftligt om avropsberättigad så begär)\n• Stöd i form av samtal.\n• Avstämning och uppföljning enligt överenskommelse med avropsberättigad.\n• Samtalsstöd med inriktning på kognitiv beteendeterapi vid  behov. \n• Kostnadsfri remittering"]
[]
[null,"Målgrupp","Plats",null,"Enhet","Volym/Antal","Kompetens",null,"Vid behov specificera tjänster, annan information eller hänvisa till bilaga.",null,null,null,null,null,"Pris/tim","Pris totalt"]
[null,"Individ",null,null,"Timmar",null,"Beteendevetare",null,null,null,null,null,null,null,null,{"$f":"O122*F122","v":0}]
[null,"Individ",null,null,"Timmar",null,"Legitimerad psykolog",null,null,null,null,null,null,null,null,0]
[null,"Individ",null,null,"Timmar",null,"Företagssköterska",null,null,null,null,null,null,null,null,0]
[null,"Individ",null,null,"Timmar",null,"Annan adekvat kompetens",null,null,null,null,null,null,null,null,0]
[]
[null,"Avropsberättigads beskrivning av ytterligare krav på vad som ska omfattas av tjänsten (vid behov)."]
[]
[]
[]
[]
[]
[]
[]
[null,"2.2.1.3 Chefsstöd (individ och grupp)"]
[null,"Tjänsten ska utföras av lämplig kompetens inom området såsom leg. psykolog, beteendevetare, organisationskonsult och arbetsmiljöingengör eller annan adekvat kompetens."]
[null,"Information / syfte\nAvropsberättigad ska specificera vilken annan adekvat kompetens som ska utföra tjänsten om detta är aktuellt."]
[]
[]
[]
[]
[null,"Tjänsten omfattar minst nedan:"]
[null,"• Definition av problembild med förslag till åtgärder. (skriftligt om så avropsberättigad begär)\n• Stöd i förebyggande arbetsmiljö- och hälsoarbete samt arbetsanpassning och rehabilitering.\n• Avstämning och uppföljning enligt överenskommelse med avropsberättigad."]
[]
[null,"Målgrupp","Plats",null,"Enhet","Volym/Antal","Kompetens",null,"Vid behov specificera tjänster, annan information eller hänvisa till bilaga.",null,null,null,null,null,"Pris/tim","Pris totalt"]
[null,null,null,null,"Timmar",null,"Beteendevetare",null,null,null,null,null,null,null,null,{"$f":"O146*F146","v":0}]
[null,null,null,null,"Timmar",null,"Legitimerad psykolog",null,null,null,null,null,null,null,null,0]
[null,null,null,null,"Timmar",null,"Organisations konsult",null,null,null,null,null,null,null,null,0]
[null,null,null,null,"Timmar",null,"Arbetsmiljöingenjör",null,null,null,null,null,null,null,null,0]
[null,null,null,null,"Timmar",null,"Annan adekvat kompetens",null,null,null,null,null,null,null,null,0]
[]
[null,"Avropsberättigads beskrivning av ytterligare krav på vad som ska omfattas av tjänsten (vid behov)."]
[]
[]
[]
[]
[]
[]
[]
[null,"2.2.2 Arbetsmiljötjänster"]
[null,"2.2.2.1 Systematiskt arbetsmiljöarbete (SAM)"]
[null,"Tjänsten ska utföras av adekvat kompetens. Gör en marknadsanalys för att undersöka vilken kompetens som är lämplig för tjänstens utförande.\n\nAvseende systematiskt arbetsmiljöarbete kan det vara svårt att ange vilken kompetens som är adekvat vid utförandet av tjänsten. I dylika fall kan avropsberättigad nyttja den kompetens leverantören anser är adekvat och debiteras de timpriser som anges i ”Priser för olika kompetenser”. "]
[null,"Information / syfte\nAvropsberättigad ska specificera vilken annan adekvat kompetens som ska utföra tjänsten om detta är aktuellt.\n"]
[]
[]
[]
[]
[null,"Tjänsten omfattar minst nedan:"]
[null,"• Rådgivning och stöd inom det systematiska arbetsmiljöarbetet, t.ex. med arbetsmiljöpolicy, rutiner, handlingsplaner och aktiviteter.\n• Undersökning av organisatorisk och social arbetsmiljö vid behov.\n• Undersökning av fysisk arbetsmiljö vid behov.\n• Riskanalys av arbetsmiljön.\n• Skriftlig rapport med åtgärdsförslag.\n• Uppföljning enligt överenskommelse med avropsberättigad."]
[]
[null,"Målgrupp","Plats*",null,"Enhet",{"$f":"\"Volym/Antal (tim)\"","v":"Volym/Antal (tim)"},"Kompetens",null,"Vid behov specificera tjänster, annan information eller hänvisa till bilaga.",null,null,null,null,null,"Pris/tim","Pris totalt"]
[null,"Organisation",null,null,"Timmar",null,"Arbetsmiljöingenjör",null,null,null,null,null,null,null,null,{"$f":"O172*F172","v":0}]
[null,"Organisation",null,null,"Timmar",null,"Annan adekvat kompetens",null,null,null,null,null,null,null,null,0]
[null,"Organisation",null,null,"Timmar",null,"Annan adekvat kompetens",null,null,null,null,null,null,null,null,0]
[null,"Organisation",null,null,"Timmar",null,"Annan adekvat kompetens",null,null,null,null,null,null,null,null,0]
[null,"Organisation",null,null,"Timmar",null,"Annan adekvat kompetens",null,null,null,null,null,null,null,null,0]
[]
[null,"Avropsberättigads beskrivning av ytterligare krav på vad som ska omfattas av tjänsten (vid behov)."]
[]
[]
[]
[]
[]
[]
[]
[null,"2.2.3 Ergonomitjänster"]
[null,"2.2.3.1 Ergonomisk genomgång av arbetsplats (individ)"]
[null,"Tjänsten ska utföras av ergonom eller annan adekvat kompetens"]
[null,"Information / syfte"]
[]
[]
[]
[]
[null,"Tjänsten omfattar minst nedan:"]
[null,"• Besök av ergonom på arbetsplatsen.\n• Individuell bedömning avseende arbetsteknik, arbetsställning, utrustning, belysning, arbete vid bildskärm samt arbetsanpassade hjälpmedel etc.\n• Rådgivning till individen.\n• Skriftlig rekommendation om åtgärder till chefen och/eller vid behov även kopia till individen.\n• Eventuell uppföljning enligt överenskommelse med avropsberättigad."]
[]
[null,"Målgrupp","Plats*",null,"Enhet",{"$f":"\"Volym/Antal (\"&E198&\")\"","v":"Volym/Antal (Timmar)"},"Kompetens",null,"Vid behov specificera tjänster, annan information eller hänvisa till bilaga.",null,null,null,null,null,"Pris/tim","Pris totalt"]
[null,"Individ",null,null,"Timmar",null,null,null,null,null,null,null,null,null,null,{"$f":"O198*F198","v":0}]
[]
[null,"Avropsberättigads beskrivning av ytterligare krav på vad som ska omfattas av tjänsten (vid behov)."]
[]
[]
[]
[]
[]
[]
[]
[null,"2.2.3.2 Ergonomisk genomgång av arbetsplatser (grupp)"]
[null,"Tjänsten ska utföras av ergonom eller annan adekvat kompetens"]
[null,"Information / syfte"]
[]
[]
[]
[]
[null,"Tjänsten omfattar minst nedan:"]
[null,"• Besök av ergonom på arbetsplatsen.\n• Stöd i arbete med att ta fram uppdragsbeskrivning.\n• Undersökning av arbetsteknik, arbetsställningar, utrustning, belysning, arbete vid bildskärm, arbetsanpassade hjälpmedel samt arbetsorganisation.\n• Riskbedömning av belastningsergonomin baserad på arbetsmiljöns utformning (enl. t.ex. Arbetsmiljöverkets checklista).\n• Skriftlig rekommendation om åtgärder.\n• Eventuellt stöd vid genomförande av åtgärder.\n• Eventuell uppföljning enligt överenskommelse med avropsberättigad."]
[]
[null,"Målgrupp","Plats",null,"Enhet",{"$f":"\"Volym/Antal (\"&E219&\")\"","v":"Volym/Antal (Timmar)"},"Kompetens",null,"Vid behov specificera tjänster, annan information eller hänvisa till bilaga.",null,null,null,null,null,"Pris/tim","Pris totalt"]
[null,"Grupp",null,null,"Timmar",null,null,null,null,null,null,null,null,null,null,{"$f":"O219*F219","v":0}]
[]
[null,"Avropsberättigads beskrivning av ytterligare krav på vad som ska omfattas av tjänsten (vid behov)."]
[]
[]
[]
[]
[]
[]
[]
[null,"2.2.3.3 Ergonomisk genomgång av arbetsplatser (Organisation)"]
[null,"Tjänsten ska utföras av ergonom och/eller arbetsmiljöingenjör."]
[null,"Information / syfte"]
[]
[]
[]
[]
[null,"Tjänsten omfattar minst nedan:"]
[null,"• Stöd i arbete med att ta fram uppdragsbeskrivning vid behov.\n• Undersökning av arbetsteknik, arbetsställningar, utrustning, hjälpmedel samt arbetsorganisation.\n• Skriftlig rapport med åtgärdsförslag till avropsberättigad.\n• Stöd vid genomförande av åtgärder.\n• Uppföljning enligt överenskommelse med avropsberättigad."]
[]
[null,"Målgrupp","Plats*",null,"Enhet",{"$f":"\"Volym/Antal (\"&E241&\")\"","v":"Volym/Antal (Timmar)"},"Kompetens",null,"Vid behov specificera tjänster, annan information eller hänvisa till bilaga.",null,null,null,null,null,"Pris/tim","Pris totalt"]
[null,"Organistation",null,null,"Timmar",null,"Ergonom",null,null,null,null,null,null,null,null,{"$f":"O240*F240","v":0}]
[null,"Organistation",null,null,"Timmar",null,"Arbetsmiljöingenjör",null,null,null,null,null,null,null,null,0]
[]
[null,"Avropsberättigads beskrivning av ytterligare krav på vad som ska omfattas av tjänsten (vid behov)."]
[]
[]
[]
[]
[]
[]
[]
[null,"2.2.4 Hälsovårdstjänster"]
[null,"2.2.4.1 Liten hälsoundersökning"]
[null,"Tjänsten ska utföras av företagssköterska och vid behov av företagsläkare eller annan adekvat kompetens."]
[null,"Information / syfte (beskrivning som fylls i av avropsberättigad)\nAvropsberättigad ska specificera vilken annan adekvat kompetens som ska utföra tjänsten om detta är aktuellt.\nOBS! Vid grupp ange antalet individer / grupp\nNotera att denna tjänst INTE har takpris. Det är därför fördel att fylla i tänkta volymer i syfte för att undvika höga priser.\nNotera även att tjänsten lämpligast prissätts per person eller grupp."]
[]
[]
[]
[]
[null,"Tjänsten omfattar:"]
[null,"• Anpassat frågeformulär för hälsotillstånd.\n• Blodprov (blodvärde, blodsocker, blodfetter), kontroll av äggvita, blodtrycksmätning, längd- och viktkontroll, midjemått och beräkning av BMI.\n• Återkoppling till individ med rekommendationer om åtgärder. \n• Ett uppföljande läkarbesök eller brevsvar med provtagningsresultat ska ingå när provavvikelser förekommer.\n• Rekommendationer om eventuella åtgärder eller uppföljande läkarbesök med klinisk undersökning kan därefter bli aktuellt.\n• Kostnadsfri remittering\nOBS! Innehållet i \"Liten hälsoundersökning\" är fastställt. Efterfrågas annat innehåll så finns möjlighet att nyttja tjänsten \"valfri hälsoundersökning\"."]
[]
[null,"Målgrupp","Plats",null,"Enhet",{"$f":"\"Volym/Antal (\"&E263&\")\"","v":"Volym/Antal ()"},"Kompetens",null,"Vid behov specificera tjänster, annan information eller hänvisa till bilaga.",null,null,null,null,null,"Pris/enhet","Pris totalt"]
[null,"Individ",null,null,null,null,null,null,null,null,null,null,null,null,null,{"$f":"O263*F263","v":0}]
[]
[null,"2.2.4.2 Stor hälsoundersökning "]
[null,"Tjänsten ska utföras av företagssköterska och vid behov av företagsläkare eller annan adekvat kompetens."]
[null,"Information / syfte (beskrivning som fylls i av avropsberättigad)\nAvropsberättigad ska specificera vilken annan adekvat kompetens som ska utföra tjänsten om detta är aktuellt.\nOBS! Vid grupp ange antalet individer / grupp\nNotera att denna tjänst INTE har takpris. Det är därför fördel att fylla i tänkta volymer i syfte för att undvika höga priser.\nNotera även att tjänsten lämpligast prissätts per person eller grupp."]
[]
[]
[]
[]
[null,"Tjänsten omfattar:"]
[null,"• Anpassat frågeformulär för hälsotillstånd.\n• Blodprov (blodsocker, blodfetter, kalcium, njur- och leverprover), kontroll av äggvita, blodtrycksmätning, längd- och viktkontroll, syn- och hörseltest samt konditionstest.\n• Återkoppling till individ med rekommendationer om åtgärder. \n• Ett uppföljande läkarbesök eller brevsvar med provtagningsresultat ska ingå när provavvikelser förekommer.\n• Rekommendationer om eventuella åtgärder eller uppföljande läkarbesök med klinisk undersökning kan därefter bli aktuellt.\n• Kostnadsfri remittering\nOBS! innehållet i \"Stor hälsoundersökning\" är fastställt. Efterfrågas annat innehåll så finns möjlighet att nyttja tjänsten \"valfri hälsoundersökning\"."]
[]
[null,"Målgrupp","Plats",null,"Enhet",{"$f":"\"Volym/Antal (\"&E276&\")\"","v":"Volym/Antal (Personer)"},"Kompetens",null,"Vid behov specificera tjänster, annan information eller hänvisa till bilaga.",null,null,null,null,null,"Pris/enhet","Pris totalt"]
[null,"Individ",null,null,"Personer",null,null,null,null,null,null,null,null,null,null,{"$f":"O276*F276","v":0}]
[]
[null,"2.2.4.3 Valfri hälsoundersökning "]
[null,"Tjänsten ska utföras av företagssköterska och vid behov av företagsläkare eller annan adekvat kompetens."]
[null,"Information / syfte (beskrivning som fylls i av avropsberättigad)\nAvropsberättigad ska specificera vilken annan adekvat kompetens som ska utföra tjänsten om detta är aktuellt.\nOBS! Vid grupp ange antalet individer / grupp"]
[]
[]
[]
[]
[null,"Tjänsten omfattar:"]
[null,"Denna hälsoundersökning möjliggör för avropsberättigad att själv, utifrån aktuellt behov, välja vad som ska ingå i den aktuella undersökningen. Avropsberättigad specificerar själv vad undersökningen ska innehålla.\nNotera att tjänsten lämpligast prissätts per person eller grupp."]
[]
[null,"Målgrupp","Plats",null,"Enhet",{"$f":"\"Volym/Antal (\"&E289&\")\"","v":"Volym/Antal ()"},"Kompetens",null,"Vid behov specificera tjänster, annan information eller hänvisa till bilaga.",null,null,null,null,null,"Pris/enhet","Pris totalt"]
[null,"Individ",null,null,null,null,null,null,null,null,null,null,null,null,null,{"$f":"O289*F289","v":0}]
[]
[null,"Avropsberättigad specificerar nedan vad hälsoundersökningen ska innehålla."]
[]
[]
[]
[]
[]
[]
[]
[null,"2.2.4.4 Hälsoundersökning, medicinska kontroller "]
[null,"Tjänsten ska utföras av företagssköterska och vid behov av företagsläkare eller annan adekvat kompetens."]
[null,"Information / syfte\nAvropsberättigad ska specificera vilken annan adekvat kompetens som ska utföra tjänsten om detta är aktuellt."]
[]
[]
[]
[]
[null,"Leverantören ska minst kunna erbjuda:"]
[null,"• Samtliga undersökningar/kontroller (inkl. arbets-EKG) enligt AFS 2019:3 och/eller andra förordningar.\n• Utfärdande av tjänstbarhetsintyg när så krävs.\n• Utfärdande av körkortsintyg samt förlängning av detsamma enligt gällande föreskrift.\n• Återkoppling till arbetsgivare och arbetstagare.\n• Kostnadsfri remittering.\nOBS! viktigt att avropsberättigad myndighet tydligt specificerar sitt behov av Hälsoundersökningar medicinska kontroller för en korrekt prisuppgift.\nNotera även att tjänsten lämpligast prissätts per person eller grupp."]
[]
[null,"Målgrupp","Plats",null,"Enhet","Volym/Antal","Kompetens",null,"Vid behov specificera tjänster, annan information eller hänvisa till bilaga.",null,null,null,null,null,"Pris/enhet","Pris totalt"]
[null,"Individ",null,null,null,null,null,null,null,null,null,null,null,null,null,{"$f":"O310*F310","v":0}]
[null,"Individ",null,null,null,null,null,null,null,null,null,null,null,null,null,0]
[null,"Individ",null,null,null,null,null,null,null,null,null,null,null,null,null,0]
[]
[null,"Avropsberättigads beskrivning av ytterligare krav på vad som ska omfattas av tjänsten (vid behov)."]
[]
[]
[]
[]
[]
[]
[]
[null,"2.2.5 Vaccinationstjänster"]
[null,"2.2.5.1 Vaccination - influensa och andra epidemiska sjukdomar "]
[null,"Kompetenser: Tjänsten ska utföras i enlighet med Socialstyrelsens föreskrifter och allmänna råd (HSLF-FS), 2017:37 och 1999:26."]
[null,"Ramavtalets takpriser för tjänsten får ej öveskridas. Takprislistor finns under resp leverantör."]
[null,"Information / syfte"]
[]
[]
[]
[]
[null,"Leverantören ska minst kunna erbjuda:"]
[null,"• Allmänna råd och information om vaccinationer och eventuella biverkningar.\n• Bedömning.\n• Vaccination.\n• Dokumentation.\n• Vaccinationsjournal för varje anställd.",null,null,null,null,null,null,null,null,null,null,null,null,{"$f":"\"*Pris per \"&E335&\" inkl alla nödvändiga kompetenser.\nSjälva vaccinet debiteras utöver\"","v":"*Pris per  inkl alla nödvändiga kompetenser.\nSjälva vaccinet debiteras utöver"}]
[]
[null,"Målgrupp","Plats",null,"Enhet",null,{"$f":"\"Volym/Antal (\"&E335&\")\"","v":"Volym/Antal ()"},null,"Vid behov specificera tjänster, annan information eller hänvisa till bilaga.",null,null,null,null,null,"Pris/enhet*","Pris totalt"]
[null,"Individ",null,null,null,null,null,null,null,null,null,null,null,null,null,{"$f":"O335*G335","v":0}]
[]
[null,"Avropsberättigads beskrivning av ytterligare krav på vad som ska omfattas av tjänsten (vid behov)."]
[]
[]
[]
[]
[]
[]
[]
[null,"2.2.5.2 Vaccination vid smittexponering i tjänsten "]
[null,"Kompetenser: Tjänsten ska utföras i enlighet med Socialstyrelsens föreskrifter och allmänna råd (HSLF-FS), 2017:37 och 1999:26."]
[null,"Ramavtalets takpris för tjänsten får ej överskridas. Takprislistor finns under resp leverantör."]
[]
[]
[]
[]
[null,"Tjänsten omfattar minst nedan:"]
[null,"• Allmänna råd och information om vaccinationer och eventuella biverkningar.\n• Bedömning.\n• Vaccination, (t.ex. TBE,  Hepatit A + B, Polio, Difteri).\n• Uppföljning.\n• Dokumentation.\n• Vaccinationsjournal för varje anställd.",null,null,null,null,null,null,null,null,null,null,null,null,{"$f":"\"*Pris per \"&F356&\" inkl alla nödvändiga kompetenser.\nSjälva vaccinet debiteras utöver\"","v":"*Pris per  inkl alla nödvändiga kompetenser.\nSjälva vaccinet debiteras utöver"}]
[]
[null,"Målgrupp","Plats",null,null,"Enhet",{"$f":"\"Volym/Antal (\"&F356&\")\"","v":"Volym/Antal ()"},null,"Vid behov specificera tjänster, annan information eller hänvisa till bilaga.",null,null,null,null,null,"Pris/enhet*","Pris totalt"]
[null,"Individ",null,null,null,null,null,null,null,null,null,null,null,null,null,{"$f":"O356*G356","v":0}]
[]
[null,"Avropsberättigads beskrivning av ytterligare krav på vad som ska omfattas av tjänsten (vid behov)."]
[]
[]
[]
[]
[]
[]
[]
[null,"2.2.6 Utbildningar och seminarier"]
[null,"2.2.6.1 Utbildningar och seminarier inom arbetsmiljö- och hälsoområdet (grupp)"]
[null,"Tjänsten ska utföras av lämplig kompetens inom de områden som utbildningarna och seminarierna avser.\n\nAvropsberättigad avgör i samråd med anbudsgivaren om tjänsten ska utföras på företagshälsans mottagning och/eller i avropsberättigads lokaler.\n\nAvseende utbildningar och seminarier kan det vara lämpligt att fastställa innehåll och pris under kontraktsperioden och inte vid avropet. Anledningen till detta är att det kan vara svårt för avropsberättigad att vid avropet känna till vilka behov av utbildningar och seminarier som föreligger och innehållet i dessa. Det blir därför även svårt för leverantörerna att prissätta utbildningar och seminarier. "]
[null,"Avropsberättigads Information om / syfte med utbildningen",null,null,null,"Leverantörens beskrivning av utbildningen\n(alt ref till bilaga)"]
[]
[]
[]
[]
[null,"Tjänsten kan innehålla"]
[null,"• Utbildningar och seminarier om livsstil, kost, motion, stress och sömn.\n• Utbildningar och seminarier om ledarskap, organisationsutveckling och förändringsarbete samt dess betydelse för arbetsmiljön.\n• Utbildningar och seminarier om den fysiska, sociala och organisatoriska arbetsmiljön och det systematiska arbetsmiljöarbetet.\n• Utbildningar inom HLR och första hjälpen.",null,null,null,null,null,null,null,null,null,null,null,null,"* st avser pris per utbildning/seminarium\n(alla med utbildningen/\nseminariet förenade kostnader ska anges och ingå i offerten)"]
[]
[null,"Specificerat innehåll (alternativt referera till bilaga)","Plats","Omfattning/\ntillfälle längd\n(tim, dagar)","Volym/Antal (st)","Leverantörens beskrivning av innehåll\n(alternativt referera till bilaga)",null,null,"Vid behov specificera tjänster, annan information eller hänvisa till bilaga.",null,null,null,null,null,"Pris/st*","Pris totalt"]
[null,null,null,null,null,null,null,null,null,null,null,null,null,null,null,{"$f":"O378*E378","v":0}]
[null,null,null,null,null,null,null,null,null,null,null,null,null,null,null,{"$f":"O379*E379","v":0}]
[null,null,null,null,null,null,null,null,null,null,null,null,null,null,null,0]
[null,null,null,null,null,null,null,null,null,null,null,null,null,null,null,0]
[]
[null,"Avropsberättigads beskrivning av ytterligare krav på vad som ska omfattas av tjänsten (vid behov)."]
[]
[]
[]
[]
[]
[]
[null,"2.3 Reaktiva tjänster"]
[null,"2.3.1 Stöd och rådgivning"]
[null,"2.3.1.1 Konflikthantering (individ och grupp)"]
[null,"Tjänsten ska utföras av leg. psykolog, beteendevetare eller annan adekvat kompetens."]
[null,"Information / syfte\nAvropsberättigad ska specificera vilken annan adekvat kompetens som ska utföra tjänsten om detta är aktuellt."]
[]
[]
[]
[]
[null,"Tjänsten omfattar minst nedan:"]
[null,"• Definition av problembild samt förslag till åtgärder.\n• Stöd till ïndividen/gruppen i samråd med avropsberättigad.\n• Avstämning och uppföljning enligt överenskommelse med avropsberättigad. \n• Kostnadsfri remittering vid behov."]
[]
[null,"Målgrupp","Plats",null,"Enhet","Volym/Antal","Kompetens",null,"Vid behov specificera tjänster, annan information eller hänvisa till bilaga.",null,null,null,null,null,"Pris/tim","Pris totalt"]
[null,null,null,null,"Timmar",null,null,null,null,null,null,null,null,null,null,{"$f":"O403*F403","v":0}]
[null,null,null,null,"Timmar",null,null,null,null,null,null,null,null,null,null,{"$f":"O404*F404","v":0}]
[null,null,null,null,"Timmar",null,null,null,null,null,null,null,null,null,null,0]
[null,null,null,null,"Timmar",null,null,null,null,null,null,null,null,null,null,0]
[null,null,null,null,"Timmar",null,null,null,null,null,null,null,null,null,null,0]
[]
[null,"Avropsberättigads beskrivning av ytterligare krav på vad som ska omfattas av tjänsten (vid behov)."]
[]
[]
[]
[]
[]
[]
[]
[null,"2.3.1.2 Krishantering (individ och grupp)"]
[null,"Tjänsten ska utföras av leg. psykolog, beteendevetare eller annan adekvat kompetens."]
[null,"Information / syfte\nAvropsberättigad ska specificera vilken annan adekvat kompetens som ska utföra tjänsten om detta är aktuellt."]
[]
[]
[]
[]
[null,"Tjänsten omfattar minst nedan:"]
[null,"• Definition av problembild,skriftlig bedömning samt förslag till åtgärder.\n• Stöd till individ/grupp i samråd med avropsberättigad.\n• Avstämning och uppföljning i överenskommelse med avropsberättigad.\n• Kostnadsfri remittering vid behov."]
[]
[null,"Målgrupp","Plats",null,"Enhet","Volym/Antal","Kompetens",null,"Vid behov specificera tjänster, annan information eller hänvisa till bilaga.",null,null,null,null,null,"Pris/tim","Pris totalt"]
[null,null,null,null,"Timmar",null,null,null,null,null,null,null,null,null,null,{"$f":"O428*F428","v":0}]
[null,null,null,null,"Timmar",null,null,null,null,null,null,null,null,null,null,{"$f":"O429*F429","v":0}]
[null,null,null,null,"Timmar",null,null,null,null,null,null,null,null,null,null,0]
[null,null,null,null,"Timmar",null,null,null,null,null,null,null,null,null,null,0]
[null,null,null,null,"Timmar",null,null,null,null,null,null,null,null,null,null,0]
[]
[null,"Avropsberättigads beskrivning av ytterligare krav på vad som ska omfattas av tjänsten (vid behov)."]
[]
[]
[]
[]
[]
[]
[]
[null,"2.3.1.3 Stresshantering (individ)"]
[null,"Tjänsten ska utföras av leg. psykolog eller beteendevetare eller annan adekvat kompetens."]
[null,"Information / syfte\nAvropsberättigad ska specificera vilken annan adekvat kompetens som ska utföra tjänsten om detta är aktuellt."]
[]
[]
[]
[]
[null,"Tjänsten omfattar minst nedan:"]
[null,"• Definition av problembild, skriftlig bedömning samt förslag till åtgärder.\n• Stresshantering.\n• Avstämning och uppföljning enligt överenskommelse med avropsberättigad.\n• Kostnadsfri remittering vid behov"]
[]
[null,"Målgrupp","Plats",null,"Enhet","Volym/Antal","Kompetens",null,"Vid behov specificera tjänster, annan information eller hänvisa till bilaga.",null,null,null,null,null,"Pris/tim","Pris totalt"]
[null,"Individ",null,null,"Timmar",null,"Beteendevetare",null,null,null,null,null,null,null,null,{"$f":"O453*F453","v":0}]
[null,"Individ",null,null,"Timmar",null,"Legitimerad psykolog",null,null,null,null,null,null,null,null,0]
[null,"Individ",null,null,"Timmar",null,"Annan adekvat kompetens",null,null,null,null,null,null,null,null,0]
[]
[null,"Avropsberättigads beskrivning av ytterligare krav på vad som ska omfattas av tjänsten (vid behov)."]
[]
[]
[]
[]
[]
[]
[]
[null,"2.3.1.4 Utredning kränkande särbehandling (individ och grupp)"]
[null,"Tjänsten ska utföras av leg. psykolog eller beteendevetare."]
[null,"Information / syfte"]
[]
[]
[]
[]
[null,"Tjänsten omfattar minst nedan:"]
[null,"• Utredning av mobbning och kränkningar utifrån aktuell lagstiftning.\n• Skriftlig bedömning med förslag om eventuella behov av vidare stödinsatser på både grupp- och individnivå.\n• Samtal på grupp-och indivinivå\n• Stöd till chefer och ledningsgrupper.\n• Uppföljning i samråd med avropsberättigad"]
[]
[null,"Målgrupp","Plats",null,"Enhet","Volym/Antal","Kompetens",null,"Vid behov specificera tjänster, annan information eller hänvisa till bilaga.",null,null,null,null,null,"Pris/tim","Pris totalt"]
[null,null,null,null,"Timmar",null,"Beteendevetare",null,null,null,null,null,null,null,null,{"$f":"O476*F476","v":0}]
[null,null,null,null,"Timmar",null,"Legitimerad psykolog",null,null,null,null,null,null,null,null,0]
[]
[null,"Avropsberättigads beskrivning av ytterligare krav på vad som ska omfattas av tjänsten (vid behov)."]
[]
[]
[]
[]
[]
[]
[]
[null,"2.3.2 Rehabiliterande tjänster"]
[null,"2.3.2.1 Rehabiliterande besök (individ)\nTjänsten ger individen möjlighet att besöka företagshälsan för  arbetspåverkande besvär. I tjänsten ingår individuella besök och kostnadsfri remittering . Specificera uppskattade timmar per kompetens i avsnitt \"Priser för olika kompetenser\" högst upp."]
[]
[]
[null,"2.3.2.2 Rehabiliterande samtalsstöd (individ)"]
[null,"Tjänsten ska utföras av beteendevetare, leg. psykolog eller annan adekvat kompetens. Enligt överenskommelse med avropsberättigad kan tjänsten utföras av företagssköterska."]
[null,"Information / syfte\nAvropsberättigad ska specificera vilken annan adekvat kompetens som ska utföra tjänsten om detta är aktuellt."]
[]
[]
[]
[]
[null,"Tjänsten omfattar minst nedan:"]
[null,"• Definition av problembild med förslag till åtgärder.\n• Stöd i form av samtal.\n• Avstämning och uppföljning enligt överenskommelse med avropsberättigad.\n• Vid behov ska stöd med inriktning på kognitiv beteendeterapi kunna erbjudas. \n• Kostnadsfri remittering"]
[]
[null,"Målgrupp","Plats",null,"Enhet","Volym/Antal","Kompetens",null,"Vid behov specificera tjänster, annan information eller hänvisa till bilaga.",null,null,null,null,null,"Pris/tim","Pris totalt"]
[null,"Individ",null,null,"Timmar",null,"Beteendevetare",null,null,null,null,null,null,null,null,{"$f":"O502*F502","v":0}]
[null,"Individ",null,null,"Timmar",null,"Legitimerad psykolog",null,null,null,null,null,null,null,null,0]
[null,"Individ",null,null,"Timmar",null,"Företagssköterska",null,null,null,null,null,null,null,null,0]
[null,"Individ",null,null,"Timmar",null,"Annan adekvat kompetens",null,null,null,null,null,null,null,null,0]
[]
[null,"Avropsberättigads beskrivning av ytterligare krav på vad som ska omfattas av tjänsten (vid behov)."]
[]
[]
[]
[]
[]
[]
[]
[null,"2.3.2.3 Arbetsanpassning och rehabilitering (individ och organisation)"]
[null,"Tjänsten ska utföras av lämplig kompetens dock minst av företagsläkare, företagssköterska, leg psykolog och fysioterapeut eller rehabiliteringskoordinator"]
[null,"Information / syfte"]
[]
[]
[]
[]
[null,"Tjänsten omfattar minst nedan:"]
[null,"• Stöd till medarbetare.\n• Stöd till arbetsgivaren.\n• 1:a bedömningsbesök.\n• Samordningsansvar av rehabiliteringsaktiviteter.\n• Stöd i framtagande av skriftlig rehabiliteringsplan.\n• Kostnadsfri remittering."]
[]
[null,"Målgrupp","Plats",null,"Enhet","Volym/Antal","Kompetens",null,"Vid behov specificera tjänster, annan information eller hänvisa till bilaga.",null,null,null,null,null,"Pris/tim","Pris totalt"]
[null,"Organisation",null,null,"tim",null,"Företagsläkare",null,null,null,null,null,null,null,null,{"$f":"O526*F526","v":0}]
[null,"Organisation",null,null,"tim",null,"Företagssköterska",null,null,null,null,null,null,null,null,0]
[null,"Organisation",null,null,"tim",null,"Legitimerad psykolog",null,null,null,null,null,null,null,null,0]
[null,"Organisation",null,null,"tim",null,"Fysioterapeut.",null,null,null,null,null,null,null,null,0]
[null,"Organisation",null,null,"tim",null,"Rehabiliteringskoordinator",null,null,null,null,null,null,null,null,0]
[]
[null,"Avropsberättigads beskrivning av ytterligare krav på vad som ska omfattas av tjänsten (vid behov)."]
[]
[]
[]
[]
[]
[]
[]
[null,"2.3.2.4 Arbetsförmågebedömning(individ och organisation)"]
[null,"Tjänsten ska utföras av adekvata kompetenser dock minst företagsläkare, företagssköterska , rehabiliteringskoordinator och beteendevetare eller leg. psykolog."]
[null,"Information / syfte\nAvropsberättigad ska specificera vilken annan adekvat kompetens som ska utföra tjänsten om detta är aktuellt."]
[]
[]
[]
[]
[null,"Tjänsten omfattar minst nedan:"]
[null,"• Stöd i arbete med att ta fram uppdragsbeskrivning vid behov.\n• Bedömning av arbetsförmåga utifrån fysiska, psykiska, intellektuella eller sociala funktioner och utifrån utifrån befintlig position/yrkesroll på arbetsplatsen.\n• Skriftligt och fullgott beslutsunderlag om vilka arbetslivsinriktade rehabiliteringsåtgärder och/eller\narbetsanpassningar och arbetsuppgifter som är lämpliga utifrån arbetsförmåga.\n• Besök hos företagshälsan och vid behov arbetsplatsbesök.\n• Utlåtande om aktuella svårigheter och möjligheter och förmågor samt prognos för att återgå till ordinarie arbetsuppgifter och nuvarande arbetsgivare.\n• Avstämningsmöte inklusive upprättande av handlingsplan.\n• Uppföljning enligt överenskommelse med avropsberättigad.\n• Kostnadsfri remittering."]
[]
[null,"Målgrupp","Plats",null,"Enhet","Volym/Antal","Kompetens",null,"Vid behov specificera tjänster, annan information eller hänvisa till bilaga.",null,null,null,null,null,"Pris/enhet","Pris totalt"]
[null,null,null,null,null,null,null,null,null,null,null,null,null,null,null,{"$f":"O551*F551","v":0}]
[null,null,null,null,null,null,null,null,null,null,null,null,null,null,null,0]
[null,null,null,null,null,null,null,null,null,null,null,null,null,null,null,0]
[null,null,null,null,null,null,null,null,null,null,null,null,null,null,null,0]
[null,null,null,null,null,null,null,null,null,null,null,null,null,null,null,0]
[]
[null,"Avropsberättigads beskrivning av ytterligare krav på vad som ska omfattas av tjänsten (vid behov)."]
[]
[]
[]
[]
[]
[]
[]
[null,"2.3.2.5 Utredning och stöd vid missbruk (individ och organisation)"]
[null,"Tjänsten ska utföras av företagsläkare, företagssköterska och/eller annan adekvat kompetens."]
[null,"Information / syfte\nAvropsberättigad ska specificera vilken annan adekvat kompetens som ska utföra tjänsten om detta är aktuellt."]
[]
[]
[]
[]
[null,"Tjänsten omfattar minst nedan:"]
[null,"• Metodbeskrivning i arbetet med individen \n• Besök hos företagshälsan \n• Uppdragsdialog med ansvarig chef/HR samt råd och stöd under ärendets gång \n• Utredning och bedömning av alkohol-, drog-, läkemedels. och spelmissbruk samt grad av allvarlighet \n• Individanpassat rehabiliterings/behandlingsförslag \n• Utfärdande av förstadagsintyg\n• Rehabiliterings- och uppföljningsmöte \n• (Medicinsk bedömning och provtagning vid behov) \n• Kostnadsfri remittering"]
[]
[null,"Målgrupp","Plats",null,"Enhet","Volym/Antal","Kompetens",null,"Vid behov specificera tjänster, annan information eller hänvisa till bilaga.",null,null,null,null,null,"Pris/tim","Pris totalt"]
[null,null,null,null,"Timmar",null,"Företagsläkare",null,null,null,null,null,null,null,null,{"$f":"O576*F576","v":0}]
[null,null,null,null,"Timmar",null,"Företagssköterska",null,null,null,null,null,null,null,null,0]
[null,null,null,null,"Timmar",null,"Annan adekvat kompetens",null,null,null,null,null,null,null,null,0]
[]
[null,"Avropsberättigads beskrivning av ytterligare krav på vad som ska omfattas av tjänsten (vid behov)."]
[]
[]
[]
[]
[]
[]
[]
[null,null,null,null,null,null,null,null,null,null,null,null,null,"Totalt samtliga tjänster:",null,{"$f":"SUM($P$50:$P$587)+$F$24","v":0}]

{"sheet":"2.1 Priskorg övriga tjänster","index":2,"n_rows":56,"n_cols":16,"rows_kept":56,"cut":false,"hidden":false,"merged":[[5,1,5,10],[8,1,8,6],[9,1,9,6],[10,1,12,6],[13,1,13,6],[14,1,14,6],[39,1,39,6],[44,2,44,3],[45,2,45,3],[47,1,47,6],[21,2,21,6],[22,1,22,6],[23,1,28,6],[15,1,15,6],[16,2,16,4],[17,2,17,4],[18,2,18,4],[19,2,19,4],[20,2,20,4],[31,1,31,6],[48,1,53,6],[32,1,32,6],[33,1,35,6],[36,1,36,6],[40,2,40,3],[41,2,41,3],[42,2,42,3],[43,2,43,3],[16,8,16,13],[17,8,17,13],[18,8,18,13],[19,8,19,13],[20,8,20,13],[45,8,45,13],[55,12,55,14],[40,8,40,13],[41,8,41,13],[42,8,42,13],[43,8,43,13],[44,8,44,13]]}
[]
[]
[]
[]
[null,"Steg 2.1 - Övriga tjänster"]
[null,"Tjänsterna nedan bedöms efterfrågas endast i en begränsad omfattning.\nDärför ska tjänsterna tillhandahållas först i samband med att dessa efterfrågas av avropsberättigad vid avrop eller under kontraktets giltighetstid.\n\nAvropsberättigad ska ge anbudsgivaren en skälig tid för att tillhandahålla tjänsterna.\nAvropsberättigad definierar sitt behov av tjänsten.\n\nRamavtalsleverantören ska även tillhandahålla separat statistik för dessa tjänster."]
[null,"2.1.1 Tillhandahållande av övriga tjänster"]
[null,"2.1.1.1 24-timmars krisstöd"]
[null,"Tjänsten ska utföras av adekvat kompetens."]
[null,"Information / syfte\nAvropsberättigad ska specificera vilken annan adekvat kompetens som ska utföra tjänsten om detta är aktuellt."]
[]
[]
[]
[]
[null,"Tjänsten kan omfatta:"]
[null,"• Tillgänglighet per telefon 24 timmar per dygn årets alla dagar.\n• Erbjuda alternativa tider och former för tillgänglighet vid behov.\n• Erbjuda krisstöd på plats vid behov.\n• Anpassning till avropsberättigads krisorganisation.\n• Samverkan med övriga leverantörer av företagshälsa, som den avropsberättigade eventuellt anlitar.\n• Möjlighet till akut hjälp per telefon 24 timmar per dygn årets alla dagar.\n• Möjlighet till personligt möte med lämplig kompetens.\n• Statistik och uppföljning enligt överenskommelse med avropsberättigad."]
[null,"Målgrupp","Typ",null,null,"Enhet","Volym/Antal2",null,"Vid behov specificera tjänster, annan information eller hänvisa till bilaga.",null,null,null,null,null,"Pris/enhet","Pris totalt"]
[null,"Organisation","Abonnemang (pris/anställd och år)",null,null,"Antal",null,null,null,null,null,null,null,null,null,{"$f":"O18*G18","v":0}]
[null,"Organisation","Timkostnad helgfri vardag, 8:00 - 16:30",null,"tim.","Timmar",null,null,null,null,null,null,null,null,null,{"$f":"O19*G19","v":0}]
[null,"Organisation","Timkostnad helgfri kväll 16:30 - 8:00",null,"tim.","Timmar",null,null,null,null,null,null,null,null,null,0]
[null,"Organisation","Timkostnad helg1 och \"röda dagar\"",null,"tim.","Timmar",null,null,null,null,null,null,null,null,null,0]
[null,null,"1. Helg ovan avser även julafton, nyårsafton, påskafton och midsommarafton.\n2. Avropande organisation anger antal anställda resp uppskattade antal timmar.\n"]
[null,"Avropsberättigad anger förutsättningarna för utförandet av tjänsten baserat på verksamhetens behov, t.ex. antal anställda, vilka typer av verksamhet som bedrivs, organisationens uppbyggnad m.m. Det är viktigt att göra en marknadsanalys inför avrop för att få förståelse för marknaden och tjänsten."]
[]
[]
[]
[]
[]
[]
[]
[null,"2.1.1.2 Besök - övriga kompetenser"]
[null,"Tjänsten kan utföras av övriga kompetenser exempelvis, dipl massör, audiolog, kardiolog, ortoped, flygläkare, dykläkare, arbetsterapeut, psykiater, leg naprapat, leg kiropraktor, och dietist, eller annan adekvat kompetens. "]
[null,"Information / syfte\nAvropsberättigad ska specificera innehållet i denna tjänst samt vilken annan adekvat kompetens som ska utföra tjänsten om detta är aktuellt."]
[]
[]
[]
[]
[]
[]
[]
[null,"Målgrupp","Plats",null,"Enhet","Volym/Antal","Kompetens",null,"Vid behov specificera tjänster, annan information eller hänvisa till bilaga.",null,null,null,null,null,"Pris/tim","Pris totalt"]
[null,"Individ",null,null,"Timmar",null,null,null,null,null,null,null,null,null,null,{"$f":"O42*F42","v":0}]
[null,"Individ",null,null,"Timmar",null,null,null,null,null,null,null,null,null,null,{"$f":"O43*F43","v":0}]
[null,"Individ",null,null,"Timmar",null,null,null,null,null,null,null,null,null,null,0]
[null,"Individ",null,null,"Timmar",null,null,null,null,null,null,null,null,null,null,0]
[null,"Individ",null,null,"Timmar",null,null,null,null,null,null,null,null,null,null,0]
[]
[null,"Avropsberättigads beskrivning av ytterligare krav på vad som ska omfattas av tjänsten (vid behov)."]
[]
[]
[]
[]
[]
[]
[]
[null,null,null,null,null,null,null,null,null,null,null,null,"Totalt samtliga övriga tjänster:",null,null,{"$f":"SUM($P$9:$P$55)","v":0}]

{"sheet":"3 Avtalstecknande","index":3,"n_rows":33,"n_cols":4,"rows_kept":33,"cut":false,"hidden":false,"merged":[[37,1,37,3],[18,1,18,3],[33,1,33,3],[5,1,5,3],[34,1,34,3],[35,1,35,3],[36,1,36,3],[7,1,7,3],[9,1,9,3],[11,1,11,3],[14,1,14,3],[15,1,15,3]]}
[null,null,null,{"$f":"\"Avrop nr: \"&'1 Specifikation'!B15","v":"Avrop nr: "}]
[]
[]
[]
[null,"Kontrakt"]
[null,{"$f":"\"Detta kontrakt reglerar avrop från ramavtalsområde \"&'1 Specifikation'!J5&\", \"&'1 Specifikation'!J8","v":"Detta kontrakt reglerar avrop från ramavtalsområde Företagshälsa, 23.3-2523-19"}]
[null,"Kontraktets omfattning"]
[null,"Leveransens omfattning och villkor framgår av Kontraktet med tillhörande bilagor samt Ramavtalet. Om handlingarna innehåller motstridiga uppgifter ska handlingarna gälla i nedan nämnd ordning om inte omständigheterna uppenbarligen föranleder annat."]
[null,"1. Skriftliga ändringar och tillägg till Kontrakt"]
[null,"2. Kontrakt med bilagor, inkl. Allmänna villkor"]
[null,"3. Eventuellt kompletterande Avropsförfrågan"]
[null,"4. Avropsförfrågan med bilagor "]
[null,"5. Eventuella tillåtna kompletteringar av Avropssvar"]
[null,"6. Avropssvar med bilagor"]
[]
[null,"Innehåller leverantörens avropssvar uppgifter som inte efterfrågats i avropsblanketten är dessa uppgifter giltiga endast om en skriftlig överenskommelse träffas särskilt angående detta. Hänvisning till leverantörens egna allmänna villkor eller motsvarande är endast giltiga om en särskild överenskommelse avseende detta tecknas."]
[]
[null,"Underskrift"]
[null,"Underskriften avser ett kontraktstecknande. Efter undertecknande av bägge parter utgör denna blankett tillsammans med ramavtalets villkor enligt ovan ett kontrakt mellan parterna.\n\nDetta kontrakt har upprättats i två exemplar varav parterna tagit var sitt."]
[]
[null,"Avropande organisation",null,"Leverantör"]
[null,{"$f":"'1 Specifikation'!B9","v":0},null,{"$f":"'1 Specifikation'!P9","v":0}]
[null,"Org.nr.",null,"Org.nr."]
[null,{"$f":"'1 Specifikation'!H9","v":0},null,{"$f":"'1 Specifikation'!V9","v":0}]
[]
[null,"Ort, datum",null,"Ort, datum"]
[]
[]
[null,"Namn, befattning \n(behörig företrädare för avropande organisation)",null,"Namn, befattning \n(behörig företrädare för leverantören)"]
[]
[]
[]
[null,"Eventuella bilagor till kontraktet"]

{"sheet":"4 Leverantör och Ort","index":4,"n_rows":217,"n_cols":30,"rows_kept":217,"cut":false,"hidden":false,"merged":[]}
["Orter\nVälj orter \ni det gulmarkerade cellerna","Välj orter:","Falck Sverige AB","Arenakoncernen AB","Attundahälsan Företagshälsovård AB","Avonova Hälsa AB","ClaraHälsan AB","Feelgood Företagshälsovård AB","Hela Företagshälsovård AB","Feelgood Länshälsan AB","Omtanken Västerleden Vård AB","Personlig engagerad arbetsmiljöpartner i Väst AB (pe3 företagshälsa)","Jobbhälsan i Norr AB","Länshälsan Uppsala AB","Servicehälsan i Värmland AB",null,null,null,null,null,null,null,null,null,null,null,null,null,null,"Antal leverantörer på orten"]
[null,"Antal","Finns på orter av de valda",null,null,null,null,null,null,null,null,null,null,null,null,null,null,null,null,null,null,null,null,null,null,null,null,null,null,{"$f":"COUNTIF($C$4:$O$4,B4)","v":13}]
[null,null,{"$f":"C4=$B$4","v":true},true,true,true,true,true,true,true,true,{"$f":"L4=$B$4","v":true},true,{"$f":"N4=$B$4","v":true},true]
["Finns på antal orter",{"$f":"COUNTIF($B$5:$B$217,\"X\")","v":0},{"$f":"SUM(P5:P217)","v":0},{"$f":"SUM(Q5:Q217)","v":0},{"$f":"SUM(R5:R217)","v":0},{"$f":"SUM(S5:S217)","v":0},{"$f":"SUM(U5:U217)","v":0},{"$f":"SUM(V5:V217)","v":0},{"$f":"SUM(X5:X217)","v":0},0,0,{"$f":"SUM(T5:T217)","v":0},{"$f":"SUM(AA5:AA217)","v":0},{"$f":"SUM(AB5:AB217)","v":0},{"$f":"SUM(AC5:AC217)","v":0}]
["Alingsås",null,"X",null,null,"X",null,"X",null,null,null,null,"",null,"",{"$f":"IF($B5=\"X\",IF(C5=\"X\",1,0),0)","v":0},{"$f":"IF($B5=\"X\",IF(D5=\"X\",1,0),0)","v":0},{"$f":"IF($B5=\"X\",IF(E5=\"X\",1,0),0)","v":0},{"$f":"IF($B5=\"X\",IF(F5=\"X\",1,0),0)","v":0},{"$f":"IF($B5=\"X\",IF(L5=\"X\",1,0),0)","v":0},{"$f":"IF($B5=\"X\",IF(G5=\"X\",1,0),0)","v":0},{"$f":"IF($B5=\"X\",IF(H5=\"X\",1,0),0)","v":0},{"$f":"IF($B5=\"X\",IF(#REF!=\"X\",1,0),0)","v":0},{"$f":"IF($B5=\"X\",IF(I5=\"X\",1,0),0)","v":0},0,0,{"$f":"IF($B5=\"X\",IF(M5=\"X\",1,0),0)","v":0},0,0,{"$f":"SUM(P5:AC5)","v":0}]
["Aneby",null,"X",null,null,null,null,null,null,null,null,null,"",null,"",0,0,0,0,0,0,0,{"$f":"IF($B6=\"X\",IF(#REF!=\"X\",1,0),0)","v":0},0,0,0,0,0,0,0]
["Arboga",null,null,null,null,"X",null,null,null,null,null,null,null,null,null,0,0,0,0,0,0,0,{"$f":"IF($B7=\"X\",IF(#REF!=\"X\",1,0),0)","v":0},0,0,0,0,0,0,0]
["Arlanda ",null,"X",null,null,null,null,null,null,null,null,null,"",null,"",0,0,0,0,0,0,0,{"$f":"IF($B8=\"X\",IF(#REF!=\"X\",1,0),0)","v":0},0,0,0,0,0,0,0]
["Arvidsjaur",null,"X",null,null,"X",null,"X",null,null,null,null,null,null,null,0,0,0,0,0,0,0,{"$f":"IF($B9=\"X\",IF(#REF!=\"X\",1,0),0)","v":0},0,0,0,0,0,0,0]
["Arvika",null,"X",null,null,"X",null,null,null,null,null,null,"",null,"",0,0,0,0,0,0,0,{"$f":"IF($B10=\"X\",IF(#REF!=\"X\",1,0),0)","v":0},0,0,0,0,0,0,0]
["Askersund",null,"X",null,null,null,null,null,null,null,null,null,"",null,"",0,0,0,0,0,0,0,{"$f":"IF($B11=\"X\",IF(#REF!=\"X\",1,0),0)","v":0},0,0,0,0,0,0,0]
["Avesta",null,"X",null,null,"X",null,null,null,null,null,null,"",null,"",0,0,0,0,0,0,0,{"$f":"IF($B12=\"X\",IF(#REF!=\"X\",1,0),0)","v":0},0,0,0,0,0,0,0]
["Bankeryd",null,null,null,null,"X",null,null,null,null,null,null,"",null,"",0,0,0,0,0,0,0,{"$f":"IF($B13=\"X\",IF(#REF!=\"X\",1,0),0)","v":0},0,0,0,0,0,0,0]
["Bengtsfors",null,null,null,null,"X",null,null,null,null,null,null,"",null,"",0,0,0,0,0,0,0,{"$f":"IF($B14=\"X\",IF(#REF!=\"X\",1,0),0)","v":0},0,0,0,0,0,0,0]
["Bergsjö",null,null,null,null,"X",null,null,null,null,null,null,"X",null,"",0,0,0,0,0,0,0,{"$f":"IF($B15=\"X\",IF(#REF!=\"X\",1,0),0)","v":0},0,0,0,0,0,0,0]
["Boden",null,"X",null,null,null,null,null,null,null,null,null,"",null,"",0,0,0,0,0,0,0,{"$f":"IF($B16=\"X\",IF(#REF!=\"X\",1,0),0)","v":0},0,0,0,0,0,0,0]
["Bollnäs",null,"X",null,null,"X",null,"X",null,null,null,null,"",null,"",0,0,0,0,0,0,0,{"$f":"IF($B17=\"X\",IF(#REF!=\"X\",1,0),0)","v":0},0,0,0,0,0,0,0]
["Borlänge",null,"X",null,null,"X",null,"X",null,null,null,null,"",null,"",0,0,0,0,0,0,0,{"$f":"IF($B18=\"X\",IF(#REF!=\"X\",1,0),0)","v":0},0,0,0,0,0,0,0]
["Borås",null,"X","X",null,"X",null,"X",null,null,null,null,null,null,"",0,0,0,0,0,0,0,{"$f":"IF($B19=\"X\",IF(#REF!=\"X\",1,0),0)","v":0},0,0,0,0,0,0,0]
["Broby",null,null,null,null,"X",null,null,null,null,null,null,"",null,"",0,0,0,0,0,0,0,{"$f":"IF($B20=\"X\",IF(#REF!=\"X\",1,0),0)","v":0},0,0,0,0,0,0,0]
["Bromölla",null,null,null,null,"X",null,"X",null,null,null,null,"",null,"",0,0,0,0,0,0,0,{"$f":"IF($B21=\"X\",IF(#REF!=\"X\",1,0),0)","v":0},0,0,0,0,0,0,0]
["Charlottenberg",null,null,null,null,"X",null,null,null,null,null,null,"",null,"",0,0,0,0,0,0,0,{"$f":"IF($B22=\"X\",IF(#REF!=\"X\",1,0),0)","v":0},0,0,0,0,0,0,0]
["Domsjö",null,"X",null,null,null,null,null,null,null,null,null,"",null,"",0,0,0,0,0,0,0,{"$f":"IF($B23=\"X\",IF(#REF!=\"X\",1,0),0)","v":0},0,0,0,0,0,0,0]
["Dorotea",null,"X",null,null,null,null,null,null,null,null,null,"",null,"",0,0,0,0,0,0,0,{"$f":"IF($B24=\"X\",IF(#REF!=\"X\",1,0),0)","v":0},0,0,0,0,0,0,0]
["Ed",null,null,null,null,"X",null,null,null,null,null,null,"",null,"",0,0,0,0,0,0,0,{"$f":"IF($B25=\"X\",IF(#REF!=\"X\",1,0),0)","v":0},0,0,0,0,0,0,0]
["Edsbyn",null,"X",null,null,"X",null,"X",null,null,null,null,"",null,"",0,0,0,0,0,0,0,{"$f":"IF($B26=\"X\",IF(#REF!=\"X\",1,0),0)","v":0},0,0,0,0,0,0,0]
["Eksjö",null,"X",null,null,"X",null,null,null,null,null,null,null,null,"X",0,0,0,0,0,0,0,{"$f":"IF($B27=\"X\",IF(#REF!=\"X\",1,0),0)","v":0},0,0,0,0,0,0,0]
["Emmaboda",null,null,null,null,"X",null,null,null,null,null,null,"",null,"",0,0,0,0,0,0,0,{"$f":"IF($B28=\"X\",IF(#REF!=\"X\",1,0),0)","v":0},0,0,0,0,0,0,0]
["Enköping",null,"X",null,null,"X",null,null,null,null,null,null,null,null,null,0,0,0,0,0,0,0,{"$f":"IF($B29=\"X\",IF(#REF!=\"X\",1,0),0)","v":0},0,0,0,0,0,0,0]
["Eskilstuna",null,"X",null,null,"X",null,"X",null,null,null,null,"",null,"",0,0,0,0,0,0,0,{"$f":"IF($B30=\"X\",IF(#REF!=\"X\",1,0),0)","v":0},0,0,0,0,0,0,0]
["Eslöv",null,null,null,null,"X",null,null,null,null,null,null,"",null,"",0,0,0,0,0,0,0,{"$f":"IF($B31=\"X\",IF(#REF!=\"X\",1,0),0)","v":0},0,0,0,0,0,0,0]
["Fagersta",null,"X",null,null,"X",null,null,null,null,null,null,"",null,"",0,0,0,0,0,0,0,{"$f":"IF($B32=\"X\",IF(#REF!=\"X\",1,0),0)","v":0},0,0,0,0,0,0,0]
["Falkenberg",null,"X",null,null,"X",null,null,null,null,null,null,null,null,"",0,0,0,0,0,0,0,{"$f":"IF($B33=\"X\",IF(#REF!=\"X\",1,0),0)","v":0},0,0,0,0,0,0,0]
["Falköping",null,"X",null,null,"X",null,null,null,null,null,null,null,null,"",0,0,0,0,0,0,0,{"$f":"IF($B34=\"X\",IF(#REF!=\"X\",1,0),0)","v":0},0,0,0,0,0,0,0]
["Falun",null,"X",null,null,"X",null,"X",null,null,null,null,"",null,"",0,0,0,0,0,0,0,{"$f":"IF($B35=\"X\",IF(#REF!=\"X\",1,0),0)","v":0},0,0,0,0,0,0,0]
["Filipstad",null,null,null,null,"X",null,null,null,null,null,null,"",null,"",0,0,0,0,0,0,0,{"$f":"IF($B36=\"X\",IF(#REF!=\"X\",1,0),0)","v":0},0,0,0,0,0,0,0]
["Finspång",null,"X",null,null,"X",null,null,null,null,null,null,"",null,"",0,0,0,0,0,0,0,{"$f":"IF($B37=\"X\",IF(#REF!=\"X\",1,0),0)","v":0},0,0,0,0,0,0,0]
["Flen",null,"X",null,null,null,null,"X",null,null,null,null,"",null,"",0,0,0,0,0,0,0,{"$f":"IF($B38=\"X\",IF(#REF!=\"X\",1,0),0)","v":0},0,0,0,0,0,0,0]
["Gullspång",null,null,null,null,"X",null,null,null,null,null,null,"",null,"",0,0,0,0,0,0,0,{"$f":"IF($B39=\"X\",IF(#REF!=\"X\",1,0),0)","v":0},0,0,0,0,0,0,0]
["Gällivare",null,"X",null,null,"X",null,"X",null,null,null,null,"",null,"",0,0,0,0,0,0,0,{"$f":"IF($B40=\"X\",IF(#REF!=\"X\",1,0),0)","v":0},0,0,0,0,0,0,0]
["Gävle",null,"X",null,null,"X",null,"X",null,null,null,null,"",null,"",0,0,0,0,0,0,0,{"$f":"IF($B41=\"X\",IF(#REF!=\"X\",1,0),0)","v":0},0,0,0,0,0,0,0]
["Göteborg",null,"X",null,null,"X",null,"X",null,null,"X","X",null,null,null,0,0,0,0,0,0,0,{"$f":"IF($B42=\"X\",IF(#REF!=\"X\",1,0),0)","v":0},0,0,0,0,0,0,0]
["Götene",null,"X",null,null,"X",null,null,null,null,null,null,"",null,"",0,0,0,0,0,0,0,{"$f":"IF($B43=\"X\",IF(#REF!=\"X\",1,0),0)","v":0},0,0,0,0,0,0,0]
["Habo",null,"X",null,null,null,null,null,null,null,null,null,null,null,"",0,0,0,0,0,0,0,{"$f":"IF($B44=\"X\",IF(#REF!=\"X\",1,0),0)","v":0},0,0,0,0,0,0,0]
["Hagfors",null,null,null,null,"X",null,null,null,null,null,null,"",null,"",0,0,0,0,0,0,0,{"$f":"IF($B45=\"X\",IF(#REF!=\"X\",1,0),0)","v":0},0,0,0,0,0,0,0]
["Hallsberg",null,"X",null,null,null,null,"X",null,null,null,null,"",null,"",0,0,0,0,0,0,0,{"$f":"IF($B46=\"X\",IF(#REF!=\"X\",1,0),0)","v":0},0,0,0,0,0,0,0]
["Hallstahammar",null,null,null,null,"X",null,null,null,null,null,null,"",null,"",0,0,0,0,0,0,0,{"$f":"IF($B47=\"X\",IF(#REF!=\"X\",1,0),0)","v":0},{"$f":"IF($B47=\"X\",IF(I47=\"X\",1,0),0)","v":0},0,0,0,0,0,0]
["Halmstad",null,"X",null,null,"X",null,"X",null,null,null,"X","",null,"",0,0,0,0,0,0,0,{"$f":"IF($B48=\"X\",IF(#REF!=\"X\",1,0),0)","v":0},0,0,0,0,0,0,0]
["Haparanda",null,null,null,null,"X",null,null,null,null,null,null,"",null,"",0,0,0,0,0,0,0,{"$f":"IF($B49=\"X\",IF(#REF!=\"X\",1,0),0)","v":0},0,0,0,0,0,0,0]
["Hedemora",null,"X",null,null,"X",null,null,null,null,null,null,null,null,null,0,0,0,0,0,0,0,{"$f":"IF($B50=\"X\",IF(#REF!=\"X\",1,0),0)","v":0},0,0,0,0,0,0,0]
["Helsingborg",null,"X",null,null,"X",null,"X",null,null,null,null,"",null,"",0,0,0,0,0,0,0,{"$f":"IF($B51=\"X\",IF(#REF!=\"X\",1,0),0)","v":0},0,0,0,0,0,0,0]
["Herrljunga",null,null,null,null,"X",null,null,null,null,null,null,"",null,"",0,0,0,0,0,0,0,{"$f":"IF($B52=\"X\",IF(#REF!=\"X\",1,0),0)","v":0},0,0,0,0,0,0,0]
["Hjo",null,null,null,null,"X",null,null,null,null,null,null,"",null,"",0,0,0,0,0,0,0,{"$f":"IF($B53=\"X\",IF(#REF!=\"X\",1,0),0)","v":0},0,0,0,0,0,0,0]
["Hofors",null,"X",null,null,null,null,null,null,null,null,null,"",null,"",0,0,0,0,0,0,0,{"$f":"IF($B54=\"X\",IF(#REF!=\"X\",1,0),0)","v":0},0,0,0,0,0,0,0]
["Huddinge",null,"X",null,null,"X",null,"X",null,null,null,null,"",null,"",0,0,0,0,0,0,0,{"$f":"IF($B55=\"X\",IF(#REF!=\"X\",1,0),0)","v":0},0,0,0,0,0,0,0]
["Hudiksvall",null,"X",null,null,"X",null,null,null,null,null,null,"",null,"",0,0,0,0,0,0,0,{"$f":"IF($B56=\"X\",IF(#REF!=\"X\",1,0),0)","v":0},0,0,0,0,0,0,0]
["Hultsfred",null,null,null,null,"X",null,null,null,null,null,null,"",null,"X",0,0,0,0,0,0,0,{"$f":"IF($B57=\"X\",IF(#REF!=\"X\",1,0),0)","v":0},0,0,0,0,0,0,0]
["Huskvarna",null,null,null,null,"X",null,null,null,null,null,null,"",null,"",0,0,0,0,0,0,0,{"$f":"IF($B58=\"X\",IF(#REF!=\"X\",1,0),0)","v":0},0,0,0,0,0,0,0]
["Husum",null,"X",null,null,null,null,null,null,null,null,null,"",null,"",0,0,0,0,0,0,0,{"$f":"IF($B59=\"X\",IF(#REF!=\"X\",1,0),0)","v":0},0,0,0,0,0,0,0]
["Hyltebruk",null,null,null,null,"X",null,null,null,null,null,null,"",null,"",0,0,0,0,0,0,0,{"$f":"IF($B60=\"X\",IF(#REF!=\"X\",1,0),0)","v":0},0,0,0,0,0,0,0]
["Hällefors",null,null,null,null,"X",null,null,null,null,null,null,"",null,"",0,0,0,0,0,0,0,{"$f":"IF($B61=\"X\",IF(#REF!=\"X\",1,0),0)","v":0},0,0,0,0,0,0,0]
["Härnösand",null,"X",null,null,"X",null,"X",null,null,null,null,null,null,"",0,0,0,0,0,0,0,{"$f":"IF($B62=\"X\",IF(#REF!=\"X\",1,0),0)","v":0},0,0,0,0,0,0,0]
["Hässleholm",null,"X",null,null,null,null,"X",null,null,null,null,"",null,"",0,0,0,0,0,0,0,{"$f":"IF($B63=\"X\",IF(#REF!=\"X\",1,0),0)","v":0},0,0,0,0,0,0,0]
["Hörby",null,null,null,null,null,null,"X",null,null,null,null,"",null,"",0,0,0,0,0,0,0,{"$f":"IF($B64=\"X\",IF(#REF!=\"X\",1,0),0)","v":0},0,0,0,0,0,0,0]
["Johanneshov",null,"X",null,null,null,null,null,null,null,null,null,"",null,"",0,0,0,0,0,0,0,{"$f":"IF($B65=\"X\",IF(#REF!=\"X\",1,0),0)","v":0},0,0,0,0,0,0,0]
["Jokkmokk",null,null,null,null,"X",null,"X",null,null,null,null,"",null,"",0,0,0,0,0,0,0,{"$f":"IF($B66=\"X\",IF(#REF!=\"X\",1,0),0)","v":0},0,0,0,0,0,0,0]
["Järfälla",null,null,null,null,"X",null,null,null,null,null,null,"",null,"",0,0,0,0,0,0,0,{"$f":"IF($B67=\"X\",IF(#REF!=\"X\",1,0),0)","v":0},0,0,0,0,0,0,0]
["Jönköping",null,"X","X",null,"X",null,"X",null,null,null,null,"",null,"",0,0,0,0,0,0,0,{"$f":"IF($B68=\"X\",IF(#REF!=\"X\",1,0),0)","v":0},0,0,0,0,0,0,0]
["Kalix",null,null,null,null,"X",null,null,null,null,null,null,"",null,"",{"$f":"IF($B69=\"X\",IF(C69=\"X\",1,0),0)","v":0},{"$f":"IF($B69=\"X\",IF(D69=\"X\",1,0),0)","v":0},{"$f":"IF($B69=\"X\",IF(E69=\"X\",1,0),0)","v":0},{"$f":"IF($B69=\"X\",IF(F69=\"X\",1,0),0)","v":0},{"$f":"IF($B69=\"X\",IF(L69=\"X\",1,0),0)","v":0},{"$f":"IF($B69=\"X\",IF(G69=\"X\",1,0),0)","v":0},{"$f":"IF($B69=\"X\",IF(H69=\"X\",1,0),0)","v":0},{"$f":"IF($B69=\"X\",IF(#REF!=\"X\",1,0),0)","v":0},0,0,0,{"$f":"IF($B69=\"X\",IF(M69=\"X\",1,0),0)","v":0},0,0,{"$f":"SUM(P69:AC69)","v":0}]
["Kalmar",null,"X",null,null,"X",null,"X",null,null,null,null,"",null,"",0,0,0,0,0,0,0,{"$f":"IF($B70=\"X\",IF(#REF!=\"X\",1,0),0)","v":0},0,0,0,0,0,0,0]
["Karlsborg",null,"X",null,null,"X",null,null,null,null,null,null,null,null,"",0,0,0,0,0,0,0,{"$f":"IF($B71=\"X\",IF(#REF!=\"X\",1,0),0)","v":0},0,0,0,0,0,0,0]
["Karlshamn",null,"X",null,null,"X",null,null,null,null,null,null,"",null,"",0,0,0,0,0,0,0,{"$f":"IF($B72=\"X\",IF(#REF!=\"X\",1,0),0)","v":0},0,0,0,0,0,0,0]
["Karlskoga",null,"X",null,null,"X",null,"X",null,null,null,null,"",null,"",0,0,0,0,0,0,0,{"$f":"IF($B73=\"X\",IF(#REF!=\"X\",1,0),0)","v":0},0,0,0,0,0,0,0]
["Karlskrona",null,"X",null,null,"X",null,"X",null,null,null,null,null,null,null,0,0,0,0,0,0,0,{"$f":"IF($B74=\"X\",IF(#REF!=\"X\",1,0),0)","v":0},0,0,0,0,0,0,0]
["Karlstad ",null,"X",null,null,"X","X","X",null,null,null,null,"",null,"",0,0,0,0,0,0,0,{"$f":"IF($B75=\"X\",IF(#REF!=\"X\",1,0),0)","v":0},0,0,0,0,0,0,0]
["Katrineholm",null,"X",null,null,"X",null,"X",null,null,null,null,"",null,"",0,0,0,0,0,0,0,{"$f":"IF($B76=\"X\",IF(#REF!=\"X\",1,0),0)","v":0},0,0,0,0,0,0,0]
["Kil",null,null,null,null,null,null,"X",null,null,null,null,"",null,"",0,0,0,0,0,0,0,{"$f":"IF($B77=\"X\",IF(#REF!=\"X\",1,0),0)","v":0},0,0,0,0,0,0,0]
["Kiruna",null,"X",null,null,"X",null,"X",null,null,null,null,"",null,"",0,0,0,0,0,0,0,{"$f":"IF($B78=\"X\",IF(#REF!=\"X\",1,0),0)","v":0},0,0,0,0,0,0,0]
["Kisa",null,null,null,null,"X",null,null,null,null,null,null,"",null,"",0,0,0,0,0,0,0,{"$f":"IF($B79=\"X\",IF(#REF!=\"X\",1,0),0)","v":0},0,0,0,0,0,0,0]
["Kista",null,"X",null,null,null,null,"X",null,null,null,null,"",null,"",0,0,0,0,0,0,0,{"$f":"IF($B80=\"X\",IF(#REF!=\"X\",1,0),0)","v":0},0,0,0,0,0,0,0]
["Klippan",null,null,null,null,null,null,"X",null,null,null,null,"",null,"",0,0,0,0,0,0,0,{"$f":"IF($B81=\"X\",IF(#REF!=\"X\",1,0),0)","v":0},0,0,0,0,0,0,0]
["Kramfors",null,"X",null,null,"X",null,"X",null,null,null,null,"",null,"",0,0,0,0,0,0,0,{"$f":"IF($B82=\"X\",IF(#REF!=\"X\",1,0),0)","v":0},0,0,0,0,0,0,0]
["Kristianstad",null,"X",null,null,"X",null,"X",null,null,null,null,"",null,"",0,0,0,0,0,0,0,{"$f":"IF($B83=\"X\",IF(#REF!=\"X\",1,0),0)","v":0},0,0,0,0,0,0,0]
["Kristinedal",null,null,null,null,null,null,"X",null,null,null,null,null,null,"",0,0,0,0,0,0,0,{"$f":"IF($B84=\"X\",IF(#REF!=\"X\",1,0),0)","v":0},0,0,0,0,0,0,0]
["Kristinehamn",null,"X",null,null,"X",null,null,null,null,null,null,null,null,"",0,0,0,0,0,0,0,{"$f":"IF($B85=\"X\",IF(#REF!=\"X\",1,0),0)","v":0},0,0,0,0,0,0,0]
["Kungsbacka",null,null,null,null,"X",null,null,null,null,null,"X",null,null,"",0,0,0,0,0,0,0,{"$f":"IF($B86=\"X\",IF(#REF!=\"X\",1,0),0)","v":0},0,0,0,0,0,0,0]
["Kungshamn",null,null,null,null,"X",null,null,null,null,null,null,"",null,"",0,0,0,0,0,0,0,{"$f":"IF($B87=\"X\",IF(#REF!=\"X\",1,0),0)","v":0},0,0,0,0,0,0,0]
["Kungsör",null,null,null,null,"X",null,null,null,null,null,null,"",null,"",0,0,0,0,0,0,0,{"$f":"IF($B88=\"X\",IF(#REF!=\"X\",1,0),0)","v":0},0,0,0,0,0,0,0]
["Kungälv",null,null,null,null,"X",null,null,null,null,null,"X","",null,"X",0,0,0,0,0,0,0,{"$f":"IF($B89=\"X\",IF(#REF!=\"X\",1,0),0)","v":0},0,0,0,0,0,0,0]
["Kvänum",null,null,null,null,"X",null,null,null,null,null,null,"",null,"",0,0,0,0,0,0,0,{"$f":"IF($B90=\"X\",IF(#REF!=\"X\",1,0),0)","v":0},0,0,0,0,0,0,0]
["Kävlinge",null,null,null,null,"X",null,null,null,null,null,null,"",null,null,0,0,0,0,0,0,0,{"$f":"IF($B91=\"X\",IF(#REF!=\"X\",1,0),0)","v":0},0,0,0,0,0,0,0]
["Köping",null,null,null,null,"X",null,null,null,null,null,null,"",null,"",0,0,0,0,0,0,0,{"$f":"IF($B92=\"X\",IF(#REF!=\"X\",1,0),0)","v":0},0,0,0,0,0,0,0]
["Landskrona",null,"X",null,null,null,null,null,null,null,null,null,"",null,"X",0,0,0,0,0,0,0,{"$f":"IF($B93=\"X\",IF(#REF!=\"X\",1,0),0)","v":0},0,0,0,0,0,0,0]
["Leksand",null,"X",null,null,"X",null,null,null,null,null,null,"",null,"",0,0,0,0,0,0,0,{"$f":"IF($B94=\"X\",IF(#REF!=\"X\",1,0),0)","v":0},0,0,0,0,0,0,0]
["Lessebo",null,"X",null,null,null,null,null,null,null,null,null,"",null,"",0,0,0,0,0,0,0,{"$f":"IF($B95=\"X\",IF(#REF!=\"X\",1,0),0)","v":0},0,0,0,0,0,0,0]
["Lidköping",null,"X",null,null,"X",null,"X",null,null,null,null,"",null,"",0,0,0,0,0,0,0,{"$f":"IF($B96=\"X\",IF(#REF!=\"X\",1,0),0)","v":0},0,0,0,0,0,0,0]
["Lilla Edet",null,null,null,null,"X",null,null,null,null,null,null,"",null,"",0,0,0,0,0,0,0,{"$f":"IF($B97=\"X\",IF(#REF!=\"X\",1,0),0)","v":0},0,0,0,0,0,0,0]
["Linköping",null,"X",null,null,"X",null,"X",null,null,null,null,"",null,"",0,0,0,0,0,0,0,{"$f":"IF($B98=\"X\",IF(#REF!=\"X\",1,0),0)","v":0},0,0,0,0,0,0,0]
["Ljungby",null,"X",null,null,"X",null,null,null,null,null,null,"",null,"X",0,0,0,0,0,0,0,{"$f":"IF($B99=\"X\",IF(#REF!=\"X\",1,0),0)","v":0},0,0,0,0,0,0,0]
["Ljusdal",null,"X",null,null,"X",null,null,null,null,null,null,"",null,"",0,0,0,0,0,0,0,{"$f":"IF($B100=\"X\",IF(#REF!=\"X\",1,0),0)","v":0},0,0,0,0,0,0,0]
["Ludvika",null,"X",null,null,"X",null,null,null,null,null,null,"",null,"",0,0,0,0,0,0,0,{"$f":"IF($B101=\"X\",IF(#REF!=\"X\",1,0),0)","v":0},0,0,0,0,0,0,0]
["Luleå",null,"X",null,null,"X",null,"X",null,null,null,null,"",null,"",0,0,0,0,0,0,0,{"$f":"IF($B102=\"X\",IF(#REF!=\"X\",1,0),0)","v":0},0,0,0,0,0,0,0]
["Lund",null,"X",null,null,"X",null,"X",null,null,null,null,"",null,"",0,0,0,0,0,0,0,{"$f":"IF($B103=\"X\",IF(#REF!=\"X\",1,0),0)","v":0},0,0,0,0,0,0,0]
["Lycksele",null,"X",null,null,null,null,null,null,null,null,null,"",null,"",0,0,0,0,0,0,0,{"$f":"IF($B104=\"X\",IF(#REF!=\"X\",1,0),0)","v":0},0,0,0,0,0,0,0]
["Lysekil",null,"X",null,null,"X",null,null,null,null,null,null,"",null,"",0,0,0,0,0,0,0,{"$f":"IF($B105=\"X\",IF(#REF!=\"X\",1,0),0)","v":0},0,0,0,0,0,0,0]
["Malmö",null,"X","X",null,"X",null,"X",null,null,null,null,"",null,"",0,0,0,0,0,0,0,{"$f":"IF($B106=\"X\",IF(#REF!=\"X\",1,0),0)","v":0},0,0,0,0,0,0,0]
["Malung",null,"X",null,null,"X",null,null,null,null,null,null,"",null,"",0,0,0,0,0,0,0,{"$f":"IF($B107=\"X\",IF(#REF!=\"X\",1,0),0)","v":0},0,0,0,0,0,0,0]
["Mariestad",null,null,null,null,"X",null,null,null,null,null,null,"",null,"",0,0,0,0,0,0,0,{"$f":"IF($B108=\"X\",IF(#REF!=\"X\",1,0),0)","v":0},0,0,0,0,0,0,0]
["Markaryd",null,null,null,null,null,null,"X",null,null,null,null,"",null,"",0,0,0,0,0,0,0,{"$f":"IF($B109=\"X\",IF(#REF!=\"X\",1,0),0)","v":0},0,0,0,0,0,0,0]
["Mellerud",null,null,null,null,"X",null,null,null,null,null,null,"",null,"",0,0,0,0,0,0,0,{"$f":"IF($B110=\"X\",IF(#REF!=\"X\",1,0),0)","v":0},0,0,0,0,0,0,0]
["Mjölby",null,"X",null,null,null,null,null,null,null,null,null,"",null,"",0,0,0,0,0,0,0,{"$f":"IF($B111=\"X\",IF(#REF!=\"X\",1,0),0)","v":0},{"$f":"IF($B111=\"X\",IF(I111=\"X\",1,0),0)","v":0},0,0,0,0,0,0]
["Mora",null,"X",null,null,"X",null,null,null,null,null,null,"",null,"",0,0,0,0,0,0,0,{"$f":"IF($B112=\"X\",IF(#REF!=\"X\",1,0),0)","v":0},{"$f":"IF($B112=\"X\",IF(I112=\"X\",1,0),0)","v":0},0,0,0,0,0,0]
["Motala",null,"X",null,null,"X",null,"X",null,null,null,null,"",null,"",0,0,0,0,0,0,0,{"$f":"IF($B113=\"X\",IF(#REF!=\"X\",1,0),0)","v":0},0,0,0,0,0,0,0]
["Munkfors",null,null,null,null,"X",null,null,null,null,null,null,"",null,"",0,0,0,0,0,0,0,{"$f":"IF($B114=\"X\",IF(#REF!=\"X\",1,0),0)","v":0},0,0,0,0,0,0,0]
["Mölndal",null,"X",null,null,null,null,null,null,null,"X",null,null,null,"",0,0,0,0,0,0,0,{"$f":"IF($B115=\"X\",IF(#REF!=\"X\",1,0),0)","v":0},0,0,0,0,0,0,0]
["Mönsterås",null,"X",null,null,null,null,null,null,null,null,null,null,null,"",0,0,0,0,0,0,0,{"$f":"IF($B116=\"X\",IF(#REF!=\"X\",1,0),0)","v":0},0,0,0,0,0,0,0]
["Nora",null,null,null,null,"X",null,null,null,null,null,null,null,null,"",0,0,0,0,0,0,0,{"$f":"IF($B117=\"X\",IF(#REF!=\"X\",1,0),0)","v":0},0,0,0,0,0,0,0]
["Nordmaling",null,null,null,null,null,null,"X",null,null,null,null,"",null,"",0,0,0,0,0,0,0,{"$f":"IF($B118=\"X\",IF(#REF!=\"X\",1,0),0)","v":0},0,0,0,0,0,0,0]
["Norrköping",null,"X",null,null,"X",null,"X",null,null,null,null,"X",null,"",0,0,0,0,0,0,0,{"$f":"IF($B119=\"X\",IF(#REF!=\"X\",1,0),0)","v":0},0,0,0,0,0,0,0]
["Norrtälje",null,"X",null,null,"X",null,null,"X",null,null,null,"",null,"",0,0,0,0,0,0,0,{"$f":"IF($B120=\"X\",IF(#REF!=\"X\",1,0),0)","v":0},0,0,0,0,0,0,0]
["Nybro",null,null,null,null,"X",null,null,null,null,null,null,"",null,"",0,0,0,0,0,0,0,{"$f":"IF($B121=\"X\",IF(#REF!=\"X\",1,0),0)","v":0},0,0,0,0,0,0,0]
["Nyköping",null,"X",null,null,"X",null,"X",null,null,null,null,"",null,"",0,0,0,0,0,0,0,{"$f":"IF($B122=\"X\",IF(#REF!=\"X\",1,0),0)","v":0},0,0,0,0,0,0,0]
["Nässjö",null,"X",null,null,"X",null,null,null,null,null,null,"",null,"",0,0,0,0,0,0,0,{"$f":"IF($B123=\"X\",IF(#REF!=\"X\",1,0),0)","v":0},0,0,0,0,0,0,0]
["Olofström",null,null,null,null,null,null,"X",null,null,null,null,"",null,"",0,0,0,0,0,0,0,{"$f":"IF($B124=\"X\",IF(#REF!=\"X\",1,0),0)","v":0},0,0,0,0,0,0,0]
["Osby",null,null,null,null,null,null,"X",null,null,null,null,"",null,"",0,0,0,0,0,0,0,{"$f":"IF($B125=\"X\",IF(#REF!=\"X\",1,0),0)","v":0},0,0,0,0,0,0,0]
["Oskarshamn",null,"X",null,null,"X",null,null,null,null,null,null,"",null,"",0,0,0,0,0,0,0,{"$f":"IF($B126=\"X\",IF(#REF!=\"X\",1,0),0)","v":0},0,0,0,0,0,0,0]
["Oxelösund",null,"X",null,null,null,null,null,null,null,null,null,"",null,"",0,0,0,0,0,0,0,{"$f":"IF($B127=\"X\",IF(#REF!=\"X\",1,0),0)","v":0},0,0,0,0,0,0,0]
["Pajala",null,"X",null,null,null,null,null,null,null,null,null,null,null,"",0,0,0,0,0,0,0,{"$f":"IF($B128=\"X\",IF(#REF!=\"X\",1,0),0)","v":0},0,0,0,0,0,0,0]
["Perstorp",null,null,null,null,null,null,"X",null,null,null,null,"",null,"",0,0,0,0,0,0,0,{"$f":"IF($B129=\"X\",IF(#REF!=\"X\",1,0),0)","v":0},0,0,0,0,0,0,0]
["Piteå",null,"X",null,null,"X",null,"X",null,null,null,null,null,null,"",0,0,0,0,0,0,0,{"$f":"IF($B130=\"X\",IF(#REF!=\"X\",1,0),0)","v":0},0,0,0,0,0,0,0]
["Ronneby",null,"X",null,null,"X",null,"X",null,null,null,null,null,null,null,0,0,0,0,0,0,0,{"$f":"IF($B131=\"X\",IF(#REF!=\"X\",1,0),0)","v":0},0,0,0,0,0,0,0]
["Rundvik",null,null,null,null,null,null,"X",null,null,null,null,"",null,"X",0,0,0,0,0,0,0,{"$f":"IF($B132=\"X\",IF(#REF!=\"X\",1,0),0)","v":0},0,0,0,{"$f":"IF($B132=\"X\",IF(M132=\"X\",1,0),0)","v":0},0,0,0]
["Sala",null,"X",null,null,"X",null,null,null,null,null,null,"",null,"",{"$f":"IF($B133=\"X\",IF(C133=\"X\",1,0),0)","v":0},{"$f":"IF($B133=\"X\",IF(D133=\"X\",1,0),0)","v":0},{"$f":"IF($B133=\"X\",IF(E133=\"X\",1,0),0)","v":0},{"$f":"IF($B133=\"X\",IF(F133=\"X\",1,0),0)","v":0},{"$f":"IF($B133=\"X\",IF(L133=\"X\",1,0),0)","v":0},{"$f":"IF($B133=\"X\",IF(G133=\"X\",1,0),0)","v":0},{"$f":"IF($B133=\"X\",IF(H133=\"X\",1,0),0)","v":0},{"$f":"IF($B133=\"X\",IF(#REF!=\"X\",1,0),0)","v":0},0,0,0,0,0,0,{"$f":"SUM(P133:AC133)","v":0}]
["Sandviken",null,"X",null,null,null,null,null,null,null,null,null,"",null,"",0,0,0,0,0,0,0,{"$f":"IF($B134=\"X\",IF(#REF!=\"X\",1,0),0)","v":0},0,0,0,0,0,0,0]
["Simrishamn",null,"X",null,null,null,null,"X",null,null,null,null,null,null,null,0,0,0,0,0,0,0,{"$f":"IF($B135=\"X\",IF(#REF!=\"X\",1,0),0)","v":0},0,0,0,0,0,0,0]
["Sjöbo",null,"X",null,null,null,null,null,null,null,null,null,"",null,"",0,0,0,0,0,0,0,{"$f":"IF($B136=\"X\",IF(#REF!=\"X\",1,0),0)","v":0},0,0,0,0,0,0,0]
["Skara",null,null,null,null,"X",null,null,null,null,null,null,"",null,"",0,0,0,0,0,0,0,{"$f":"IF($B137=\"X\",IF(#REF!=\"X\",1,0),0)","v":0},0,0,0,0,0,0,0]
["Skellefteå",null,"X",null,null,"X",null,"X",null,null,null,null,null,null,"",0,0,0,0,0,0,0,{"$f":"IF($B138=\"X\",IF(#REF!=\"X\",1,0),0)","v":0},0,0,0,0,0,0,0]
["Skene",null,"X",null,null,null,null,null,null,null,null,null,"",null,"",0,0,0,0,0,0,0,{"$f":"IF($B139=\"X\",IF(#REF!=\"X\",1,0),0)","v":0},0,0,0,0,0,0,0]
["Skillingaryd",null,null,null,null,"X",null,null,null,null,null,null,null,null,"",0,0,0,0,0,0,0,{"$f":"IF($B140=\"X\",IF(#REF!=\"X\",1,0),0)","v":0},0,0,0,0,0,0,0]
["Skoghall",null,"X",null,null,null,null,null,null,null,null,null,"",null,"",0,0,0,0,0,0,0,{"$f":"IF($B141=\"X\",IF(#REF!=\"X\",1,0),0)","v":0},0,0,0,0,0,0,0]
["Skutskär",null,"X",null,null,null,null,null,null,null,null,null,null,null,"",0,0,0,0,0,0,0,{"$f":"IF($B142=\"X\",IF(#REF!=\"X\",1,0),0)","v":0},0,0,0,0,0,0,0]
["Skärblacka",null,null,null,null,"X",null,null,null,null,null,null,"",null,"",0,0,0,0,0,0,0,{"$f":"IF($B143=\"X\",IF(#REF!=\"X\",1,0),0)","v":0},0,0,0,0,0,0,0]
["Skövde",null,"X",null,null,"X",null,"X",null,null,null,null,"",null,"",0,0,0,0,0,0,0,{"$f":"IF($B144=\"X\",IF(#REF!=\"X\",1,0),0)","v":0},0,0,0,0,0,0,0]
["Sollefteå",null,"X",null,null,"X",null,"X",null,null,null,null,null,null,"",0,0,0,0,0,0,0,{"$f":"IF($B145=\"X\",IF(#REF!=\"X\",1,0),0)","v":0},0,0,0,0,0,0,0]
["Sollentuna",null,null,null,"X",null,null,null,null,null,null,null,"",null,"",0,0,0,0,0,0,0,{"$f":"IF($B146=\"X\",IF(#REF!=\"X\",1,0),0)","v":0},0,0,0,0,0,0,0]
["Solna",null,"X",null,null,"X",null,"X",null,null,null,null,"X",null,"",0,0,0,0,0,0,0,{"$f":"IF($B147=\"X\",IF(#REF!=\"X\",1,0),0)","v":0},0,0,0,0,0,0,0]
["Sorsele",null,"X",null,null,null,null,null,null,null,null,null,"",null,"",0,0,0,0,0,0,0,{"$f":"IF($B148=\"X\",IF(#REF!=\"X\",1,0),0)","v":0},0,0,0,0,0,0,0]
["Stenungsund",null,null,null,null,"X",null,null,null,null,null,null,"",null,"",0,0,0,0,0,0,0,{"$f":"IF($B149=\"X\",IF(#REF!=\"X\",1,0),0)","v":0},0,0,0,0,0,0,0]
["Stockholm",null,"X","X",null,"X",null,"X",null,null,null,null,"",null,"",0,0,0,0,0,0,0,{"$f":"IF($B150=\"X\",IF(#REF!=\"X\",1,0),0)","v":0},0,0,0,0,0,0,0]
["Storuman",null,"X",null,null,null,null,null,null,null,null,null,"",null,"",0,0,0,0,0,0,0,{"$f":"IF($B151=\"X\",IF(#REF!=\"X\",1,0),0)","v":0},0,0,0,0,0,0,0]
["Strängnäs",null,null,null,null,"X",null,null,null,null,null,null,"",null,"",0,0,0,0,0,0,0,{"$f":"IF($B152=\"X\",IF(#REF!=\"X\",1,0),0)","v":0},0,0,0,0,0,0,0]
["Strömsund",null,"X",null,null,null,null,null,null,null,null,null,"",null,"",0,0,0,0,0,0,0,{"$f":"IF($B153=\"X\",IF(#REF!=\"X\",1,0),0)","v":0},0,0,0,0,0,0,0]
["Sundsvall",null,"X",null,null,"X",null,"X",null,null,null,null,"",null,"",0,0,0,0,0,0,0,{"$f":"IF($B154=\"X\",IF(#REF!=\"X\",1,0),0)","v":0},{"$f":"IF($B154=\"X\",IF(I154=\"X\",1,0),0)","v":0},0,0,0,0,0,0]
["Sunne",null,"X",null,null,"X",null,null,null,null,null,null,"",null,"",0,0,0,0,0,0,0,{"$f":"IF($B155=\"X\",IF(#REF!=\"X\",1,0),0)","v":0},0,0,0,0,0,0,0]
["Sveg",null,"X",null,null,"X",null,null,null,null,null,null,"",null,"",0,0,0,0,0,0,0,{"$f":"IF($B156=\"X\",IF(#REF!=\"X\",1,0),0)","v":0},0,0,0,0,0,0,0]
["Svenljunga",null,null,null,null,"X",null,null,null,null,null,null,"",null,"",0,0,0,0,0,0,0,{"$f":"IF($B157=\"X\",IF(#REF!=\"X\",1,0),0)","v":0},0,0,0,0,0,0,0]
["Säffle",null,"X",null,null,"X",null,"X",null,null,null,null,"",null,"",0,0,0,0,0,0,0,{"$f":"IF($B158=\"X\",IF(#REF!=\"X\",1,0),0)","v":0},0,0,0,0,0,0,0]
["Säter",null,null,null,null,"X",null,null,null,null,null,null,"",null,"",0,0,0,0,0,0,0,{"$f":"IF($B159=\"X\",IF(#REF!=\"X\",1,0),0)","v":0},0,0,0,0,0,0,0]
["Söderhamn",null,"X",null,null,"X",null,"X",null,null,null,null,"",null,"",0,0,0,0,0,0,0,{"$f":"IF($B160=\"X\",IF(#REF!=\"X\",1,0),0)","v":0},0,0,0,0,0,0,0]
["Södertälje",null,"X",null,null,null,null,"X",null,null,null,null,"",null,"",0,0,0,0,0,0,0,{"$f":"IF($B161=\"X\",IF(#REF!=\"X\",1,0),0)","v":0},0,0,0,0,0,0,0]
["Sölvesborg",null,null,null,null,"X",null,null,null,null,null,null,"",null,"",0,0,0,0,0,0,0,{"$f":"IF($B162=\"X\",IF(#REF!=\"X\",1,0),0)","v":0},0,0,0,0,0,0,0]
["Tannefors",null,null,null,null,null,null,"X",null,null,null,null,"",null,"",0,0,0,0,0,0,0,{"$f":"IF($B163=\"X\",IF(#REF!=\"X\",1,0),0)","v":0},0,0,0,0,0,0,0]
["Tanumshede",null,"X",null,null,"X",null,null,null,null,null,null,"",null,"",0,0,0,0,0,0,0,{"$f":"IF($B164=\"X\",IF(#REF!=\"X\",1,0),0)","v":0},0,0,0,0,0,0,0]
["Tibro",null,"X",null,null,"X",null,null,null,null,null,null,"",null,"",0,0,0,0,0,0,0,{"$f":"IF($B165=\"X\",IF(#REF!=\"X\",1,0),0)","v":0},0,0,0,0,0,0,0]
["Tidaholm",null,null,null,null,"X",null,null,null,null,null,null,null,null,null,0,0,0,0,0,0,0,{"$f":"IF($B166=\"X\",IF(#REF!=\"X\",1,0),0)","v":0},0,0,0,0,0,0,0]
["Tierp",null,null,null,null,"X",null,null,null,"X",null,null,"",null,"",0,0,0,0,0,0,0,{"$f":"IF($B167=\"X\",IF(#REF!=\"X\",1,0),0)","v":0},0,0,0,0,0,0,0]
["Timrå",null,"X",null,null,null,null,null,null,null,null,null,"",null,"",0,0,0,0,0,0,0,{"$f":"IF($B168=\"X\",IF(#REF!=\"X\",1,0),0)","v":0},0,0,0,0,0,0,0]
["Tingsryd",null,"X",null,null,null,null,null,null,null,null,null,"",null,"",0,0,0,0,0,0,0,{"$f":"IF($B169=\"X\",IF(#REF!=\"X\",1,0),0)","v":0},0,0,0,0,0,0,0]
["Tomelilla",null,"X",null,null,null,null,null,null,null,null,null,"",null,"",0,0,0,0,0,0,0,{"$f":"IF($B170=\"X\",IF(#REF!=\"X\",1,0),0)","v":0},0,0,0,0,0,0,0]
["Torsby",null,"X",null,null,"X",null,null,null,null,null,null,null,null,null,0,0,0,0,0,0,0,{"$f":"IF($B171=\"X\",IF(#REF!=\"X\",1,0),0)","v":0},0,0,0,0,0,0,0]
["Torslanda",null,null,null,null,null,null,"X",null,null,null,null,"",null,"",0,0,0,0,0,0,0,{"$f":"IF($B172=\"X\",IF(#REF!=\"X\",1,0),0)","v":0},0,0,0,0,0,0,0]
["Torsvik",null,null,null,null,"X",null,null,null,null,null,null,null,null,null,0,0,0,0,0,0,0,{"$f":"IF($B173=\"X\",IF(#REF!=\"X\",1,0),0)","v":0},0,0,0,0,0,0,0]
["Tranemo",null,null,null,null,"X",null,null,null,null,null,null,null,null,"",0,0,0,0,0,0,0,{"$f":"IF($B174=\"X\",IF(#REF!=\"X\",1,0),0)","v":0},0,0,0,0,0,0,0]
["Transtrand",null,null,null,null,"X",null,null,null,null,null,null,"",null,"X",0,0,0,0,0,0,0,{"$f":"IF($B175=\"X\",IF(#REF!=\"X\",1,0),0)","v":0},0,0,0,0,0,0,0]
["Tranås",null,null,null,null,"X",null,null,null,null,null,null,"",null,"",0,0,0,0,0,0,0,{"$f":"IF($B176=\"X\",IF(#REF!=\"X\",1,0),0)","v":0},0,0,0,0,0,0,0]
["Trelleborg",null,"X",null,null,null,null,null,null,null,null,null,"",null,"",0,0,0,0,0,0,0,{"$f":"IF($B177=\"X\",IF(#REF!=\"X\",1,0),0)","v":0},0,0,0,0,0,0,0]
["Trollhättan",null,"X",null,null,"X",null,null,null,null,null,null,"",null,"",0,0,0,0,0,0,0,{"$f":"IF($B178=\"X\",IF(#REF!=\"X\",1,0),0)","v":0},0,0,0,0,0,0,0]
["Täby",null,"X",null,null,null,null,null,null,null,null,null,"",null,"",0,0,0,0,0,0,0,{"$f":"IF($B179=\"X\",IF(#REF!=\"X\",1,0),0)","v":0},0,0,0,0,0,0,0]
["Töreboda",null,null,null,null,"X",null,null,null,null,null,null,"",null,"",0,0,0,0,0,0,0,{"$f":"IF($B180=\"X\",IF(#REF!=\"X\",1,0),0)","v":0},0,0,0,0,0,0,0]
["Uddevalla",null,"X",null,null,"X",null,"X",null,null,null,null,"",null,"",0,0,0,0,0,0,0,{"$f":"IF($B181=\"X\",IF(#REF!=\"X\",1,0),0)","v":0},0,0,0,0,0,0,0]
["Ulricehamn",null,null,null,null,"X",null,null,null,null,null,null,"",null,"",0,0,0,0,0,0,0,{"$f":"IF($B182=\"X\",IF(#REF!=\"X\",1,0),0)","v":0},0,0,0,0,0,0,0]
["Umeå",null,"X",null,null,"X",null,"X",null,null,null,null,"",null,"",0,0,0,0,0,0,0,{"$f":"IF($B183=\"X\",IF(#REF!=\"X\",1,0),0)","v":0},0,0,0,0,0,0,0]
["Uppsala",null,"X",null,null,"X",null,"X",null,"X",null,null,null,null,"",0,0,0,0,0,0,0,{"$f":"IF($B184=\"X\",IF(#REF!=\"X\",1,0),0)","v":0},0,0,0,0,0,0,0]
["Valdemarsvik",null,null,null,null,"X",null,null,null,null,null,null,"",null,"",0,0,0,0,0,0,0,{"$f":"IF($B185=\"X\",IF(#REF!=\"X\",1,0),0)","v":0},0,0,0,0,0,0,0]
["Vallda",null,"X",null,null,null,null,null,null,null,null,null,"",null,"",0,0,0,0,0,0,0,{"$f":"IF($B186=\"X\",IF(#REF!=\"X\",1,0),0)","v":0},0,0,0,0,0,0,0]
["Vansbro",null,"X",null,null,"X",null,null,null,null,null,null,"",null,"",0,0,0,0,0,0,0,{"$f":"IF($B187=\"X\",IF(#REF!=\"X\",1,0),0)","v":0},0,0,0,0,0,0,0]
["Vara",null,null,null,null,"X",null,null,null,null,null,null,"",null,"",0,0,0,0,0,0,0,{"$f":"IF($B188=\"X\",IF(#REF!=\"X\",1,0),0)","v":0},0,0,0,0,0,0,0]
["Varberg",null,"X",null,null,"X",null,"X",null,null,null,"X","",null,"",0,0,0,0,0,0,0,{"$f":"IF($B189=\"X\",IF(#REF!=\"X\",1,0),0)","v":0},0,0,0,0,0,0,0]
["Vetlanda",null,"X",null,null,"X",null,null,null,null,null,null,"","X","",0,0,0,0,0,0,0,{"$f":"IF($B190=\"X\",IF(#REF!=\"X\",1,0),0)","v":0},0,0,0,0,0,0,0]
["Villhelmina",null,"X",null,null,null,null,null,null,null,null,null,null,null,null,0,0,0,0,0,0,0,{"$f":"IF($B191=\"X\",IF(#REF!=\"X\",1,0),0)","v":0},0,0,0,0,0,0,0]
["Vimmerby",null,"X",null,null,"X",null,null,null,null,null,null,null,null,"",0,0,0,0,0,0,0,{"$f":"IF($B192=\"X\",IF(#REF!=\"X\",1,0),0)","v":0},0,0,0,0,0,0,0]
["Vindeln",null,"X",null,null,null,null,null,null,null,null,null,"",null,"",0,0,0,0,0,0,0,{"$f":"IF($B193=\"X\",IF(#REF!=\"X\",1,0),0)","v":0},0,0,0,0,0,0,0]
["Visby",null,"X",null,null,"X",null,"X",null,null,null,null,"",null,"X",0,0,0,0,0,0,0,{"$f":"IF($B194=\"X\",IF(#REF!=\"X\",1,0),0)","v":0},0,0,0,0,0,0,0]
["Vårgårda",null,null,null,null,"X",null,null,null,null,null,null,null,null,"",0,0,0,0,0,0,0,{"$f":"IF($B195=\"X\",IF(#REF!=\"X\",1,0),0)","v":0},0,0,0,{"$f":"IF($B195=\"X\",IF(M195=\"X\",1,0),0)","v":0},0,0,0]
["Vänersborg",null,null,null,null,"X",null,null,null,null,null,null,"",null,"",0,0,0,0,0,0,0,{"$f":"IF($B196=\"X\",IF(#REF!=\"X\",1,0),0)","v":0},0,0,0,0,0,0,0]
["Vännäs",null,"X",null,null,null,null,null,null,null,null,null,"",null,"",{"$f":"IF($B197=\"X\",IF(C197=\"X\",1,0),0)","v":0},{"$f":"IF($B197=\"X\",IF(D197=\"X\",1,0),0)","v":0},{"$f":"IF($B197=\"X\",IF(E197=\"X\",1,0),0)","v":0},{"$f":"IF($B197=\"X\",IF(F197=\"X\",1,0),0)","v":0},{"$f":"IF($B197=\"X\",IF(L197=\"X\",1,0),0)","v":0},{"$f":"IF($B197=\"X\",IF(G197=\"X\",1,0),0)","v":0},{"$f":"IF($B197=\"X\",IF(H197=\"X\",1,0),0)","v":0},{"$f":"IF($B197=\"X\",IF(#REF!=\"X\",1,0),0)","v":0},0,0,0,0,0,0,{"$f":"SUM(P197:AC197)","v":0}]
["Värnamo",null,"X",null,null,"X",null,null,null,null,null,null,null,null,"",0,0,0,0,0,0,0,{"$f":"IF($B198=\"X\",IF(#REF!=\"X\",1,0),0)","v":0},0,0,0,0,0,0,0]
["Västervik",null,"X",null,null,"X",null,null,null,null,null,null,"",null,"",0,0,0,0,0,0,0,{"$f":"IF($B199=\"X\",IF(#REF!=\"X\",1,0),0)","v":0},0,0,0,0,0,0,0]
["Västerås",null,"X",null,null,"X",null,"X",null,null,null,null,"",null,"",0,0,0,0,0,0,0,{"$f":"IF($B200=\"X\",IF(#REF!=\"X\",1,0),0)","v":0},0,0,0,0,0,0,0]
["Västra Frölunda",null,null,null,null,null,null,null,null,null,"X",null,null,null,null,0,0,0,0,0,0,0,{"$f":"IF($B201=\"X\",IF(#REF!=\"X\",1,0),0)","v":0},0,0,0,0,0,0,0]
["Växjö",null,"X",null,null,"X",null,"X",null,null,null,null,null,null,null,0,0,0,0,0,0,0,{"$f":"IF($B202=\"X\",IF(#REF!=\"X\",1,0),0)","v":0},0,0,0,0,0,0,0]
["Ystad",null,"X",null,null,"X",null,"X",null,null,null,null,"",null,"",0,0,0,0,0,0,0,{"$f":"IF($B203=\"X\",IF(#REF!=\"X\",1,0),0)","v":0},0,0,0,0,0,0,0]
["Åhus",null,null,null,null,"X",null,null,null,null,null,null,"",null,"",0,0,0,0,0,0,0,{"$f":"IF($B204=\"X\",IF(#REF!=\"X\",1,0),0)","v":0},0,0,0,0,0,0,0]
["Åkersberga",null,"X",null,null,null,null,null,"X",null,null,null,"",null,"",0,0,0,0,0,0,0,{"$f":"IF($B205=\"X\",IF(#REF!=\"X\",1,0),0)","v":0},0,0,0,0,0,0,0]
["Åmål",null,"X",null,null,"X",null,null,null,null,null,null,"",null,"",0,0,0,0,0,0,0,{"$f":"IF($B206=\"X\",IF(#REF!=\"X\",1,0),0)","v":0},0,0,0,0,0,0,0]
["Ånge",null,"X",null,null,"X",null,null,null,null,null,null,null,null,"",0,0,0,0,0,0,0,{"$f":"IF($B207=\"X\",IF(#REF!=\"X\",1,0),0)","v":0},0,0,0,0,0,0,0]
["Årjäng",null,"X",null,null,"X",null,null,null,null,null,null,null,"X","",0,0,0,0,0,0,0,{"$f":"IF($B208=\"X\",IF(#REF!=\"X\",1,0),0)","v":0},0,0,0,0,0,0,0]
["Åseda",null,"X",null,null,null,null,null,null,null,null,null,"",null,"",0,0,0,0,0,0,0,{"$f":"IF($B209=\"X\",IF(#REF!=\"X\",1,0),0)","v":0},0,0,0,0,0,0,0]
["Åsele",null,"X",null,null,null,null,null,null,null,null,null,null,null,"",0,0,0,0,0,0,0,{"$f":"IF($B210=\"X\",IF(#REF!=\"X\",1,0),0)","v":0},0,0,0,0,0,0,0]
["Älmhult",null,"X",null,null,"X",null,"X",null,null,null,null,"",null,"",0,0,0,0,0,0,0,{"$f":"IF($B211=\"X\",IF(#REF!=\"X\",1,0),0)","v":0},0,0,0,0,0,0,0]
["Ängelholm",null,"X",null,null,null,null,null,null,null,null,null,"",null,"",0,0,0,0,0,0,0,{"$f":"IF($B212=\"X\",IF(#REF!=\"X\",1,0),0)","v":0},0,0,0,0,0,0,0]
["Örebro",null,"X",null,null,"X",null,"X",null,null,null,null,"",null,"",0,0,0,0,0,0,0,{"$f":"IF($B213=\"X\",IF(#REF!=\"X\",1,0),0)","v":0},0,0,0,0,0,0,0]
["Örnsköldsvik",null,null,null,null,"X",null,"X",null,null,null,null,null,null,"",0,0,0,0,0,0,0,{"$f":"IF($B214=\"X\",IF(#REF!=\"X\",1,0),0)","v":0},0,0,0,0,0,0,0]
["Österbymo",null,null,null,null,"X",null,null,null,null,null,null,"",null,"",0,0,0,0,0,0,0,{"$f":"IF($B215=\"X\",IF(#REF!=\"X\",1,0),0)","v":0},0,0,0,0,0,0,0]
["Östersund",null,"X",null,null,"X",null,"X",null,null,null,null,null,null,"",0,0,0,0,0,0,0,{"$f":"IF($B216=\"X\",IF(#REF!=\"X\",1,0),0)","v":0},0,0,0,0,0,0,0]
["Östhammar",null,null,null,null,null,null,null,null,null,null,null,"",null,"",0,0,0,0,0,0,0,{"$f":"IF($B217=\"X\",IF(#REF!=\"X\",1,0),0)","v":0},{"$f":"IF($B217=\"X\",IF(I217=\"X\",1,0),0)","v":0},0,0,0,0,0,0]

{"sheet":"Admin","index":5,"n_rows":122,"n_cols":30,"rows_kept":122,"cut":false,"hidden":true,"merged":[]}
[null,null,null,null,null,null,null,null,null,"ResVarTja"]
[null,null,null,"Delområde 1","Delområde 2","Delområde 3","Delområde 4","Delområde 5","Delområde 6"]
[null,null,"TblDelområde","Välj vara/tjänst","Välj vara/tjänst","Välj vara/tjänst","Välj vara/tjänst","Välj vara/tjänst","Välj vara/tjänst",{"$f":"IFERROR(IF(INDEX(D3:I3,MATCH(J$2,D$2:I$2,0))=0,\"\",INDEX(D3:I3,MATCH(J$2,D$2:I$2,0))),\"\")","v":""}]
[null,null,"Välj delområde","Delområde 1/Vara/Tjanst 1","Delområde 2/Vara/Tjanst 1","Delområde 3/Vara/Tjanst 1","Delområde 4/Vara/Tjanst 1","Delområde 5/Vara/Tjanst 1","Delområde 6/Vara/Tjanst 1",{"$f":"IFERROR(IF(INDEX(D4:I4,MATCH(J$2,D$2:I$2,0))=0,\"\",INDEX(D4:I4,MATCH(J$2,D$2:I$2,0))),\"\")","v":""}]
[null,null,"Delområde 1","Delområde 1/Vara/Tjanst 2","Delområde 2/Vara/Tjanst 2","Delområde 3/Vara/Tjanst 2","Delområde 4/Vara/Tjanst 2","Delområde 5/Vara/Tjanst 2","Delområde 6/Vara/Tjanst 2",{"$f":"IFERROR(IF(INDEX(D5:I5,MATCH(J$2,D$2:I$2,0))=0,\"\",INDEX(D5:I5,MATCH(J$2,D$2:I$2,0))),\"\")","v":""}]
[null,null,"Delområde 2","Delområde 1/Vara/Tjanst 3","Delområde 2/Vara/Tjanst 3","Delområde 3/Vara/Tjanst 3","Delområde 4/Vara/Tjanst 3","Delområde 5/Vara/Tjanst 3","Delområde 6/Vara/Tjanst 3",""]
[null,null,"Delområde 3","Delområde 1/Vara/Tjanst 4","Delområde 2/Vara/Tjanst 4","Delområde 3/Vara/Tjanst 4","Delområde 4/Vara/Tjanst 4","Delområde 5/Vara/Tjanst 4","Delområde 6/Vara/Tjanst 4","",null,"TblJaNej"]
[null,null,"Delområde 4","Delområde 1/Vara/Tjanst 5","Delområde 2/Vara/Tjanst 5","Delområde 3/Vara/Tjanst 5","Delområde 4/Vara/Tjanst 5","Delområde 5/Vara/Tjanst 5","Delområde 6/Vara/Tjanst 5","",null,"Ja/Nej"]
[null,null,"Delområde 5","Delområde 1/Vara/Tjanst 6","Delområde 2/Vara/Tjanst 6","Delområde 3/Vara/Tjanst 6","Delområde 4/Vara/Tjanst 6","Delområde 5/Vara/Tjanst 6","Delområde 6/Vara/Tjanst 6","",null,"Ja"]
[null,null,"Delområde 6","Delområde 1/Vara/Tjanst 7","Delområde 2/Vara/Tjanst 7","Delområde 3/Vara/Tjanst 7","Delområde 4/Vara/Tjanst 7","Delområde 5/Vara/Tjanst 7","Delområde 6/Vara/Tjanst 7","",null,"Nej"]
[null,null,null,"Delområde 1/Vara/Tjanst 8","Delområde 2/Vara/Tjanst 8","Delområde 3/Vara/Tjanst 8","Delområde 4/Vara/Tjanst 8","Delområde 5/Vara/Tjanst 8","Delområde 6/Vara/Tjanst 8",""]
[null,null,null,"Delområde 1/Vara/Tjanst 9","Delområde 2/Vara/Tjanst 9","Delområde 3/Vara/Tjanst 9","Delområde 4/Vara/Tjanst 9","Delområde 5/Vara/Tjanst 9","Delområde 6/Vara/Tjanst 9",""]
[null,null,null,"Delområde 1/Vara/Tjanst 10","Delområde 2/Vara/Tjanst 10","Delområde 3/Vara/Tjanst 10","Delområde 4/Vara/Tjanst 10","Delområde 5/Vara/Tjanst 10","Delområde 6/Vara/Tjanst 10",""]
[null,null,null,"Delområde 1/Vara/Tjanst 11","Delområde 2/Vara/Tjanst 11","Delområde 3/Vara/Tjanst 11","Delområde 4/Vara/Tjanst 11","Delområde 5/Vara/Tjanst 11","Delområde 6/Vara/Tjanst 11",""]
[null,null,null,"Delområde 1/Vara/Tjanst 12","Delområde 2/Vara/Tjanst 12","Delområde 3/Vara/Tjanst 12","Delområde 4/Vara/Tjanst 12","Delområde 5/Vara/Tjanst 12","Delområde 6/Vara/Tjanst 12",""]
[null,null,null,"Delområde 1/Vara/Tjanst 13","Delområde 2/Vara/Tjanst 13","Delområde 3/Vara/Tjanst 13","Delområde 4/Vara/Tjanst 13","Delområde 5/Vara/Tjanst 13","Delområde 6/Vara/Tjanst 13",""]
[null,null,null,"Delområde 1/Vara/Tjanst 14","Delområde 2/Vara/Tjanst 14","Delområde 3/Vara/Tjanst 14","Delområde 4/Vara/Tjanst 14","Delområde 5/Vara/Tjanst 14","Delområde 6/Vara/Tjanst 14",""]
[null,null,null,"Delområde 1/Vara/Tjanst 15","Delområde 2/Vara/Tjanst 15","Delområde 3/Vara/Tjanst 15","Delområde 4/Vara/Tjanst 15","Delområde 5/Vara/Tjanst 15","Delområde 6/Vara/Tjanst 15",""]
[null,null,null,"Delområde 1/Vara/Tjanst 16","Delområde 2/Vara/Tjanst 16","Delområde 3/Vara/Tjanst 16","Delområde 4/Vara/Tjanst 16","Delområde 5/Vara/Tjanst 16","Delområde 6/Vara/Tjanst 16",""]
[null,null,null,"Delområde 1/Vara/Tjanst 17","Delområde 2/Vara/Tjanst 17","Delområde 3/Vara/Tjanst 17","Delområde 4/Vara/Tjanst 17","Delområde 5/Vara/Tjanst 17","Delområde 6/Vara/Tjanst 17","",null,"TblSamordning"]
[null,null,null,"Delområde 1/Vara/Tjanst 18","Delområde 2/Vara/Tjanst 18","Delområde 3/Vara/Tjanst 18","Delområde 4/Vara/Tjanst 18","Delområde 5/Vara/Tjanst 18","Delområde 6/Vara/Tjanst 18","",null,"Företagssköterska"]
[null,null,null,"Delområde 1/Vara/Tjanst 19","Delområde 2/Vara/Tjanst 19","Delområde 3/Vara/Tjanst 19","Delområde 4/Vara/Tjanst 19","Delområde 5/Vara/Tjanst 19","Delområde 6/Vara/Tjanst 19","",null,"Legitimerad sjuksköterska"]
[null,null,null,"Delområde 1/Vara/Tjanst 20","Delområde 2/Vara/Tjanst 20","Delområde 3/Vara/Tjanst 20","Delområde 4/Vara/Tjanst 20","Delområde 5/Vara/Tjanst 20","Delområde 6/Vara/Tjanst 20","",null,"Rehaabiliteringskoordinator"]
[null,null,null,"Delområde 1/Vara/Tjanst 21","Delområde 2/Vara/Tjanst 21","Delområde 3/Vara/Tjanst 21","Delområde 4/Vara/Tjanst 21","Delområde 5/Vara/Tjanst 21","Delområde 6/Vara/Tjanst 21","",null,"Annan adekvat kompetens"]
[]
[]
[null,null,null,"Vara/Tjanster",null,null,null,null,null,"ResOpt",null,"TblMålgrupp1",null,"TblKompetensAlla","TblHälsoTest5211","TblHälsoTest5214","TblArbMiljSAM5311","TblErgGenomg5323","TblHälsoUndLiten5331","TblBesökAllm5334","TblBesökÖvr5335","TblVaccination5341","TblSamtalsstödFörebyggande5351","TblStödGrupper5352","TblStödGrupperKriser5353","TblUtbSemArbMilj5361","TblArbFörBed5411","TblUtredStödMissbruk5412","TblTelefonråd551","TblArbanpassn"]
[null,null,null,"Välj Vara/Tjanst",{"$f":"D28","v":"Välj Vara/Tjanst"},{"$f":"E28","v":"Välj Vara/Tjanst"},{"$f":"F28","v":"Välj Vara/Tjanst"},{"$f":"G28","v":"Välj Vara/Tjanst"},{"$f":"H28","v":"Välj Vara/Tjanst"},{"$f":"INDEX(D28:I28,MATCH(J$2,D$2:I$2,0))","v":{"$error":"#N/A"}},null,"Organisation",null,"Annan adekvat kompetens","Annan adekvat kompetens","Annan adekvat kompetens","Annan adekvat kompetens","Annan adekvat kompetens","Annan adekvat kompetens","Annan adekvat kompetens","Annan adekvat kompetens","Annan adekvat kompetens","Annan adekvat kompetens","Annan adekvat kompetens","Annan adekvat kompetens","Annan adekvat kompetens","Annan adekvat kompetens","Annan adekvat kompetens","Annan adekvat kompetens","Annan adekvat kompetens"]
[null,null,null,"Delområde 1/Vara/Tjanst 1","Delområde 2/Vara/Tjanst 1","Delområde 3/Vara/Tjanst 1","Delområde 4/Vara/Tjanst 1","Delområde 5/Vara/Tjanst 1","Delområde 6/Vara/Tjanst 1",{"$f":"IFERROR(IF(INDEX(D29:I29,MATCH(J$2,D$2:I$2,0))=0,\"\",INDEX(D29:I29,MATCH(J$2,D$2:I$2,0))),\"\")","v":""},null,"Grupp",null,"Företagsläkare","Företagssköterska","Hälsopedagog","Företagsläkare","Arbetsmiljöingenjör","Företagsläkare","Företagsläkare","Dipl. massör","Företagsläkare","Beteendevetare","Beteendevetare","Beteendevetare","Företagsläkare","Företagsläkare","Företagsläkare","Företagsläkare","Företagsläkare"]
[null,null,null,"Delområde 1/Vara/Tjanst 2","Delområde 2/Vara/Tjanst 2","Delområde 3/Vara/Tjanst 2","Delområde 4/Vara/Tjanst 2","Delområde 5/Vara/Tjanst 2","Delområde 6/Vara/Tjanst 2",{"$f":"IFERROR(IF(INDEX(D30:I30,MATCH(J$2,D$2:I$2,0))=0,\"\",INDEX(D30:I30,MATCH(J$2,D$2:I$2,0))),\"\")","v":""},null,"Individ",null,"Legitimerad läkare","Hälsopedagog","Organisations konsult","Legitimerad läkare","Ergonom/fysioterapeut","Företagssköterska","Företagssköterska","Leg. naprapat","Företagssköterska","Legitimerad psykolog","Legitimerad psykolog","Legitimerad psykolog","Legitimerad läkare","Företagssköterska","Företagssköterska","Legitimerad läkare","Företagssköterska"]
[null,null,null,"Delområde 1/Vara/Tjanst 3","Delområde 2/Vara/Tjanst 3","Delområde 3/Vara/Tjanst 3","Delområde 4/Vara/Tjanst 3","Delområde 5/Vara/Tjanst 3","Delområde 6/Vara/Tjanst 3","",null,null,null,"Företagssköterska",null,null,"Företagssköterska",null,null,"Beteendevetare","Leg. kiropraktor","Legitimerad sjuksköterska","Företagssköterska",null,"Arbetsmiljöingenjör","Företagssköterska","Beteendevetare","Beteendevetare","Företagssköterska","Fysioterapeut."]
[null,null,null,"Delområde 1/Vara/Tjanst 4","Delområde 2/Vara/Tjanst 4","Delområde 3/Vara/Tjanst 4","Delområde 4/Vara/Tjanst 4","Delområde 5/Vara/Tjanst 4","Delområde 6/Vara/Tjanst 4","",null,"TblMålgrupp2",null,"Legitimerad sjuksköterska","TblErgonomikomp",null,"Legitimerad sjuksköterska",null,null,"Legitimerad psykolog","Dietist",null,null,null,"Organisations konsult","Legitimerad sjuksköterska","Legitimerad psykolog","Legitimerad psykolog","Legitimerad sjuksköterska","Legitimerad psykolog"]
[null,null,null,"Delområde 1/Vara/Tjanst 5","Delområde 2/Vara/Tjanst 5","Delområde 3/Vara/Tjanst 5","Delområde 4/Vara/Tjanst 5","Delområde 5/Vara/Tjanst 5","Delområde 6/Vara/Tjanst 5","",null,"Organisation",null,"Beteendevetare","Annan adekvat kompetens",null,"Beteendevetare",null,null,"Ergonom/fysioterapeut",null,null,null,null,null,"Beteendevetare","Fysioterapeut.",null,"Beteendevetare"]
[null,null,null,"Delområde 1/Vara/Tjanst 6","Delområde 2/Vara/Tjanst 6","Delområde 3/Vara/Tjanst 6","Delområde 4/Vara/Tjanst 6","Delområde 5/Vara/Tjanst 6","Delområde 6/Vara/Tjanst 6","",null,"Grupp",null,"Legitimerad psykolog","Ergonom",null,"Legitimerad psykolog",null,null,"Legitimerad sjukgymnast",null,null,null,null,null,"Legitimerad psykolog",null,null,"Legitimerad psykolog"]
[null,null,null,"Delområde 1/Vara/Tjanst 7","Delområde 2/Vara/Tjanst 7","Delområde 3/Vara/Tjanst 7","Delområde 4/Vara/Tjanst 7","Delområde 5/Vara/Tjanst 7","Delområde 6/Vara/Tjanst 7","",null,null,null,"Arbetsmiljöingenjör",null,null,"Arbetsmiljöingenjör",null,null,"Hälsopedagog",null,null,null,null,null,"Arbetsmiljöingenjör",null,null,"Arbetsmiljöingenjör"]
[null,null,null,"Delområde 1/Vara/Tjanst 8","Delområde 2/Vara/Tjanst 8","Delområde 3/Vara/Tjanst 8","Delområde 4/Vara/Tjanst 8","Delområde 5/Vara/Tjanst 8","Delområde 6/Vara/Tjanst 8","",null,"TblMålgrupp3",null,"Ergonom/fysioterapeut",null,null,"Ergonom/fysioterapeut",null,null,null,null,null,null,null,null,"Ergonom/fysioterapeut",null,null,"Ergonom/fysioterapeut"]
[null,null,null,"Delområde 1/Vara/Tjanst 9","Delområde 2/Vara/Tjanst 9","Delområde 3/Vara/Tjanst 9","Delområde 4/Vara/Tjanst 9","Delområde 5/Vara/Tjanst 9","Delområde 6/Vara/Tjanst 9","",null,"Grupp",null,"Legitimerad sjukgymnast",null,null,"Legitimerad sjukgymnast",null,null,null,null,null,null,null,null,"Legitimerad sjukgymnast",null,null,"Legitimerad sjukgymnast"]
[null,null,null,"Delområde 1/Vara/Tjanst 10","Delområde 2/Vara/Tjanst 10","Delområde 3/Vara/Tjanst 10","Delområde 4/Vara/Tjanst 10","Delområde 5/Vara/Tjanst 10","Delområde 6/Vara/Tjanst 10","",null,"Individ",null,"Organisations konsult",null,null,"Organisations konsult",null,null,null,null,null,null,null,null,"Organisations konsult",null,null,"Organisations konsult"]
[null,null,null,"Delområde 1/Vara/Tjanst 11","Delområde 2/Vara/Tjanst 11","Delområde 3/Vara/Tjanst 11","Delområde 4/Vara/Tjanst 11","Delområde 5/Vara/Tjanst 11","Delområde 6/Vara/Tjanst 11","",null,null,null,"Hälsopedagog",null,null,"Hälsopedagog",null,null,null,null,null,null,null,null,"Hälsopedagog",null,null,"Hälsopedagog"]
[null,null,null,"Delområde 1/Vara/Tjanst 12","Delområde 2/Vara/Tjanst 12","Delområde 3/Vara/Tjanst 12","Delområde 4/Vara/Tjanst 12","Delområde 5/Vara/Tjanst 12","Delområde 6/Vara/Tjanst 12","",null,"TblMålgrupp4",null,"Administratör",null,null,null,null,null,null,null,null,null,null,null,"Administratör",null,null,"Administratör"]
[null,null,null,"Delområde 1/Vara/Tjanst 13","Delområde 2/Vara/Tjanst 13","Delområde 3/Vara/Tjanst 13","Delområde 4/Vara/Tjanst 13","Delområde 5/Vara/Tjanst 13","Delområde 6/Vara/Tjanst 13","",null,"Individ",null,null,null,null,null,null,null,null,null,null,null,null,null,"Dipl. massör",null,null,"Dipl. massör"]
[null,null,null,"Delområde 1/Vara/Tjanst 14","Delområde 2/Vara/Tjanst 14","Delområde 3/Vara/Tjanst 14","Delområde 4/Vara/Tjanst 14","Delområde 5/Vara/Tjanst 14","Delområde 6/Vara/Tjanst 14","",null,"Organisation",null,null,null,null,null,null,null,null,null,null,null,null,null,"Leg. naprapat",null,null,"Leg. naprapat"]
[null,null,null,"Delområde 1/Vara/Tjanst 15","Delområde 2/Vara/Tjanst 15","Delområde 3/Vara/Tjanst 15","Delområde 4/Vara/Tjanst 15","Delområde 5/Vara/Tjanst 15","Delområde 6/Vara/Tjanst 15","",null,null,null,null,null,null,null,null,null,null,null,null,null,null,null,"Leg. kiropraktor",null,null,"Leg. kiropraktor"]
[null,null,null,"Delområde 1/Vara/Tjanst 16","Delområde 2/Vara/Tjanst 16","Delområde 3/Vara/Tjanst 16","Delområde 4/Vara/Tjanst 16","Delområde 5/Vara/Tjanst 16","Delområde 6/Vara/Tjanst 16","",null,"TblPlats",null,null,null,null,null,null,null,null,null,null,null,null,null,"Dietist",null,null,"Dietist"]
[null,null,null,"Delområde 1/Vara/Tjanst 17","Delområde 2/Vara/Tjanst 17","Delområde 3/Vara/Tjanst 17","Delområde 4/Vara/Tjanst 17","Delområde 5/Vara/Tjanst 17","Delområde 6/Vara/Tjanst 17","",null,"Hos avropsberättigad"]
[null,null,null,"Delområde 1/Vara/Tjanst 18","Delområde 2/Vara/Tjanst 18","Delområde 3/Vara/Tjanst 18","Delområde 4/Vara/Tjanst 18","Delområde 5/Vara/Tjanst 18","Delområde 6/Vara/Tjanst 18","",null,"Hos leverantör"]
[null,null,null,"Delområde 1/Vara/Tjanst 19","Delområde 2/Vara/Tjanst 19","Delområde 3/Vara/Tjanst 19","Delområde 4/Vara/Tjanst 19","Delområde 5/Vara/Tjanst 19","Delområde 6/Vara/Tjanst 19",""]
[null,null,null,"Delområde 1/Vara/Tjanst 20","Delområde 2/Vara/Tjanst 20","Delområde 3/Vara/Tjanst 20","Delområde 4/Vara/Tjanst 20","Delområde 5/Vara/Tjanst 20","Delområde 6/Vara/Tjanst 20","",null,"TblEnheter"]
[null,null,null,"Delområde 1/Vara/Tjanst 21","Delområde 2/Vara/Tjanst 21","Delområde 3/Vara/Tjanst 21","Delområde 4/Vara/Tjanst 21","Delområde 5/Vara/Tjanst 21","Delområde 6/Vara/Tjanst 21","",null,"Personer"]
[null,null,null,"Delområde 1/Vara/Tjanst 22","Delområde 2/Vara/Tjanst 22","Delområde 3/Vara/Tjanst 22","Delområde 4/Vara/Tjanst 22","Delområde 5/Vara/Tjanst 22","Delområde 6/Vara/Tjanst 22","",null,"Grupp"]
[null,null,null,"Delområde 1/Vara/Tjanst 23","Delområde 2/Vara/Tjanst 23","Delområde 3/Vara/Tjanst 23","Delområde 4/Vara/Tjanst 23","Delområde 5/Vara/Tjanst 23","Delområde 6/Vara/Tjanst 23","",null,"Timmar"]
[null,null,null,"Delområde 1/Vara/Tjanst 24","Delområde 2/Vara/Tjanst 24","Delområde 3/Vara/Tjanst 24","Delområde 4/Vara/Tjanst 24","Delområde 5/Vara/Tjanst 24","Delområde 6/Vara/Tjanst 24",""]
[null,null,null,"Delområde 1/Vara/Tjanst 25","Delområde 2/Vara/Tjanst 25","Delområde 3/Vara/Tjanst 25","Delområde 4/Vara/Tjanst 25","Delområde 5/Vara/Tjanst 25","Delområde 6/Vara/Tjanst 25","",null,"TblEnheter2"]
[null,null,null,null,null,null,null,null,null,null,null,"Timmar"]
[null,null,null,null,null,null,null,null,null,"Region",null,"Styck"]
[null,null,null,"TblGrundTilldeln",null,"Tbl krav",null,"TblEnhet",null,"Multiregionalt"]
[null,null,null,null,null,"Välj krav",null,"Styck",null,"Blekinge län"]
[null,null,null,null,null,"Krav 1",null,"Timmar",null,"Dalarnas län"]
[null,null,null,"Alt. 2. Ekonomiskt mest fördelaktiga (bästa förhållande mellan pris och kvalitet)",null,"Krav 2",null,"Totalpris",null,"Gotlands län"]
[null,null,null,null,null,"Krav 3",null,"År",null,"Gävleborgs län"]
[null,null,null,"TblUtVrd",null,"Krav 4",null,"Bilaga",null,"Hallands län"]
[null,null,null,"Välj utvärdering…..",null,"Krav 5",null,null,null,"Jämtlands län"]
[null,null,null,"Alt. 1. Lägsta pris",null,"Krav 6",null,null,null,"Jönköpings län"]
[null,null,null,"Alt. 2. Relativ viktning - summan av viktade poäng för pris och uppfyllda bör-krav",null,"Se bilaga",null,null,null,"Kalmars län"]
[null,null,null,"Alt. 3. Mervärdesmodell - prisavdrag för uppfyllda bör-krav",null,null,null,null,null,"Kronobergs län"]
[null,null,null,"Alt. 4. Annan utvärderingsmodell",null,"ValBilaga",null,null,null,"Norrbottens län"]
[null,null,null,null,null,null,null,null,null,"Skånes län"]
[null,null,null,null,null,"Ja",null,null,null,"Stockholms län"]
[null,null,null,null,null,null,null,null,null,"Södermanlands län"]
[null,null,null,null,null,null,null,null,null,"Uppsala län"]
[null,null,null,null,null,null,null,null,null,"Värmlands län"]
[null,null,null,null,null,null,null,null,null,"Västerbottens län"]
[null,null,null,null,null,null,null,null,null,"Västernorrlands län"]
[null,null,null,null,null,null,null,null,null,"Västmanlands län"]
[null,null,null,null,null,null,null,null,null,"Västra Götalands län"]
[null,null,null,null,null,null,null,null,null,"Örebro län"]
[null,null,null,null,null,null,null,null,null,"Östergötlands lön"]
[]
[null,null,"TblLeverantörer"]
[null,null,"Juridiskt Namn","Förvaltningens avtalsnummer ","Organisations-nummer","Adress","Postnummer","Postadress","Telefon Växel","Telefon kundtjänst","Hemsida","Kontaktperson ","Telefon","E-post kontaktperson","Befattning Kontaktperson","Fax","E-post Gruppbrevlåda"]
[]
[null,null,{"$f":"\"Välj \"&C80","v":"Välj Juridiskt Namn"},{"$f":"D80","v":"Förvaltningens avtalsnummer "},"Organisations-nummer","Adress","Postnummer","Postadress","Telefon Växel","Telefon kundtjänst","Hemsida","Kontaktperson ","Telefon","E-post kontaktperson","Befattning Kontaktperson","Fax","E-post Gruppbrevlåda"]
[null,null,"Välj Juridiskt Namn 2","Förvaltningens avtalsnummer  2","Organisations-nummer 2","Adress 2","Postnummer 2","Postadress 2","Telefon Växel 2","Telefon kundtjänst 2","Hemsida 2","Kontaktperson  2","Telefon 2","E-post kontaktperson 2","Befattning Kontaktperson 2","Fax 2","E-post Gruppbrevlåda 2"]
[]
[]
[]
[]
[]
[]
[]
[]
[]
[]
[]
[]
[]
[null,null,null,null,null,null,null,null,null,null,null,null,null,null,null,null,null,null,null,null,null,null,null,null,null,null,null,{"$f":"AA99+1","v":52}]
[null,null,null,null,null,null,null,null,null,null,null,null,null,null,null,null,null,null,null,null,null,null,null,null,null,null,null,{"$f":"INDIRECT(\"J\"&AB97)","v":""}]
[null,null,null,null,"TblKrv2",30,{"$f":"F99+1","v":31},{"$f":"G99+1","v":32},33,34,35,36,37,38,39,40,41,42,43,44,45,46,47,48,49,50,51,"Delområde 1/Vara/Tjanst 24/Krav1",{"$f":"AB97+1","v":53}]
[null,null,"TblSpecTjnstr",null,{"$f":"J29","v":""},{"$f":"INDIRECT(\"J\"&F99)","v":""},{"$f":"INDIRECT(\"J\"&G99)","v":""},"","","","","","","","","","","","","","","","","","","","","Delområde 1/Vara/Tjanst 24/Krav2",""]
[null,null,{"$f":"IF('1 Specifikation'!B121=\"\",\"\",'1 Specifikation'!B121)","v":"Utvärderingskriterie"},null,"Delområde 1/Vara/Tjanst 1/Krav1","Delområde 1/Vara/Tjanst 2/Krav1","Delområde 1/Vara/Tjanst 3/Krav1","Delområde 1/Vara/Tjanst 4/Krav1","Delområde 1/Vara/Tjanst 5/Krav1","Delområde 1/Vara/Tjanst 6/Krav1","Delområde 1/Vara/Tjanst 7/Krav1","Delområde 1/Vara/Tjanst 8/Krav1","Delområde 1/Vara/Tjanst 9/Krav1","Delområde 1/Vara/Tjanst 10/Krav1","Delområde 1/Vara/Tjanst 11/Krav1","Delområde 1/Vara/Tjanst 12/Krav1","Delområde 1/Vara/Tjanst 13/Krav1","Delområde 1/Vara/Tjanst 14/Krav1","Delområde 1/Vara/Tjanst 15/Krav1","Delområde 1/Vara/Tjanst 16/Krav1","Delområde 1/Vara/Tjanst 17/Krav1","Delområde 1/Vara/Tjanst 18/Krav1","Delområde 1/Vara/Tjanst 19/Krav1","Delområde 1/Vara/Tjanst 20/Krav1","Delområde 1/Vara/Tjanst 21/Krav1","Delområde 1/Vara/Tjanst 22/Krav1","Delområde 1/Vara/Tjanst 23/Krav1","Delområde 1/Vara/Tjanst 24/Krav3","Delområde 1/Vara/Tjanst 25/Krav1"]
[null,null,{"$f":"IF('1 Specifikation'!B122=\"\",\"\",'1 Specifikation'!B122)","v":"1. Pris"},null,"Delområde 1/Vara/Tjanst 1/Krav2","Delområde 1/Vara/Tjanst 2/Krav2","Delområde 1/Vara/Tjanst 3/Krav2","Delområde 1/Vara/Tjanst 4/Krav2","Delområde 1/Vara/Tjanst 5/Krav2","Delområde 1/Vara/Tjanst 6/Krav2","Delområde 1/Vara/Tjanst 7/Krav2","Delområde 1/Vara/Tjanst 8/Krav2","Delområde 1/Vara/Tjanst 9/Krav2","Delområde 1/Vara/Tjanst 10/Krav2","Delområde 1/Vara/Tjanst 11/Krav2","Delområde 1/Vara/Tjanst 12/Krav2","Delområde 1/Vara/Tjanst 13/Krav2","Delområde 1/Vara/Tjanst 14/Krav2","Delområde 1/Vara/Tjanst 15/Krav2","Delområde 1/Vara/Tjanst 16/Krav2","Delområde 1/Vara/Tjanst 17/Krav2","Delområde 1/Vara/Tjanst 18/Krav2","Delområde 1/Vara/Tjanst 19/Krav2","Delområde 1/Vara/Tjanst 20/Krav2","Delområde 1/Vara/Tjanst 21/Krav2","Delområde 1/Vara/Tjanst 22/Krav2","Delområde 1/Vara/Tjanst 23/Krav2","Delområde 1/Vara/Tjanst 24/Krav4","Delområde 1/Vara/Tjanst 25/Krav2"]
[null,null,{"$f":"IF('1 Specifikation'!B123=\"\",\"\",'1 Specifikation'!B123)","v":""},null,"Delområde 1/Vara/Tjanst 1/Krav3","Delområde 1/Vara/Tjanst 2/Krav3","Delområde 1/Vara/Tjanst 3/Krav3","Delområde 1/Vara/Tjanst 4/Krav3","Delområde 1/Vara/Tjanst 5/Krav3","Delområde 1/Vara/Tjanst 6/Krav3","Delområde 1/Vara/Tjanst 7/Krav3","Delområde 1/Vara/Tjanst 8/Krav3","Delområde 1/Vara/Tjanst 9/Krav3","Delområde 1/Vara/Tjanst 10/Krav3","Delområde 1/Vara/Tjanst 11/Krav3","Delområde 1/Vara/Tjanst 12/Krav3","Delområde 1/Vara/Tjanst 13/Krav3","Delområde 1/Vara/Tjanst 14/Krav3","Delområde 1/Vara/Tjanst 15/Krav3","Delområde 1/Vara/Tjanst 16/Krav3","Delområde 1/Vara/Tjanst 17/Krav3","Delområde 1/Vara/Tjanst 18/Krav3","Delområde 1/Vara/Tjanst 19/Krav3","Delområde 1/Vara/Tjanst 20/Krav3","Delområde 1/Vara/Tjanst 21/Krav3","Delområde 1/Vara/Tjanst 22/Krav3","Delområde 1/Vara/Tjanst 23/Krav3","Delområde 1/Vara/Tjanst 24/Krav5","Delområde 1/Vara/Tjanst 25/Krav3"]
[null,null,{"$f":"IF('1 Specifikation'!B124=\"\",\"\",'1 Specifikation'!B124)","v":"2. Tillgänglighet"},null,"Delområde 1/Vara/Tjanst 1/Krav4","Delområde 1/Vara/Tjanst 2/Krav4","Delområde 1/Vara/Tjanst 3/Krav4","Delområde 1/Vara/Tjanst 4/Krav4","Delområde 1/Vara/Tjanst 5/Krav4","Delområde 1/Vara/Tjanst 6/Krav4","Delområde 1/Vara/Tjanst 7/Krav4","Delområde 1/Vara/Tjanst 8/Krav4","Delområde 1/Vara/Tjanst 9/Krav4","Delområde 1/Vara/Tjanst 10/Krav4","Delområde 1/Vara/Tjanst 11/Krav4","Delområde 1/Vara/Tjanst 12/Krav4","Delområde 1/Vara/Tjanst 13/Krav4","Delområde 1/Vara/Tjanst 14/Krav4","Delområde 1/Vara/Tjanst 15/Krav4","Delområde 1/Vara/Tjanst 16/Krav4","Delområde 1/Vara/Tjanst 17/Krav4","Delområde 1/Vara/Tjanst 18/Krav4","Delområde 1/Vara/Tjanst 19/Krav4","Delområde 1/Vara/Tjanst 20/Krav4","Delområde 1/Vara/Tjanst 21/Krav4","Delområde 1/Vara/Tjanst 22/Krav4","Delområde 1/Vara/Tjanst 23/Krav4","Delområde 1/Vara/Tjanst 24/Krav6","Delområde 1/Vara/Tjanst 25/Krav4"]
[null,null,{"$f":"IF('1 Specifikation'!B125=\"\",\"\",'1 Specifikation'!B125)","v":""},null,"Delområde 1/Vara/Tjanst 1/Krav5","Delområde 1/Vara/Tjanst 2/Krav5","Delområde 1/Vara/Tjanst 3/Krav5","Delområde 1/Vara/Tjanst 4/Krav5","Delområde 1/Vara/Tjanst 5/Krav5","Delområde 1/Vara/Tjanst 6/Krav5","Delområde 1/Vara/Tjanst 7/Krav5","Delområde 1/Vara/Tjanst 8/Krav5","Delområde 1/Vara/Tjanst 9/Krav5","Delområde 1/Vara/Tjanst 10/Krav5","Delområde 1/Vara/Tjanst 11/Krav5","Delområde 1/Vara/Tjanst 12/Krav5","Delområde 1/Vara/Tjanst 13/Krav5","Delområde 1/Vara/Tjanst 14/Krav5","Delområde 1/Vara/Tjanst 15/Krav5","Delområde 1/Vara/Tjanst 16/Krav5","Delområde 1/Vara/Tjanst 17/Krav5","Delområde 1/Vara/Tjanst 18/Krav5","Delområde 1/Vara/Tjanst 19/Krav5","Delområde 1/Vara/Tjanst 20/Krav5","Delområde 1/Vara/Tjanst 21/Krav5","Delområde 1/Vara/Tjanst 22/Krav5","Delområde 1/Vara/Tjanst 23/Krav5","Delområde 1/Vara/Tjanst 24/Krav7","Delområde 1/Vara/Tjanst 25/Krav5"]
[null,null,{"$f":"IF('1 Specifikation'!B126=\"\",\"\",'1 Specifikation'!B126)","v":"3. Statistik"},null,"Delområde 1/Vara/Tjanst 1/Krav6","Delområde 1/Vara/Tjanst 2/Krav6","Delområde 1/Vara/Tjanst 3/Krav6","Delområde 1/Vara/Tjanst 4/Krav6","Delområde 1/Vara/Tjanst 5/Krav6","Delområde 1/Vara/Tjanst 6/Krav6","Delområde 1/Vara/Tjanst 7/Krav6","Delområde 1/Vara/Tjanst 8/Krav6","Delområde 1/Vara/Tjanst 9/Krav6","Delområde 1/Vara/Tjanst 10/Krav6","Delområde 1/Vara/Tjanst 11/Krav6","Delområde 1/Vara/Tjanst 12/Krav6","Delområde 1/Vara/Tjanst 13/Krav6","Delområde 1/Vara/Tjanst 14/Krav6","Delområde 1/Vara/Tjanst 15/Krav6","Delområde 1/Vara/Tjanst 16/Krav6","Delområde 1/Vara/Tjanst 17/Krav6","Delområde 1/Vara/Tjanst 18/Krav6","Delområde 1/Vara/Tjanst 19/Krav6","Delområde 1/Vara/Tjanst 20/Krav6","Delområde 1/Vara/Tjanst 21/Krav6","Delområde 1/Vara/Tjanst 22/Krav6","Delområde 1/Vara/Tjanst 23/Krav6","Delområde 1/Vara/Tjanst 24/Krav8","Delområde 1/Vara/Tjanst 25/Krav6"]
[null,null,{"$f":"IF('1 Specifikation'!B127=\"\",\"\",'1 Specifikation'!B127)","v":""},null,"Delområde 1/Vara/Tjanst 1/Krav7","Delområde 1/Vara/Tjanst 2/Krav7","Delområde 1/Vara/Tjanst 3/Krav7","Delområde 1/Vara/Tjanst 4/Krav7","Delområde 1/Vara/Tjanst 5/Krav7","Delområde 1/Vara/Tjanst 6/Krav7","Delområde 1/Vara/Tjanst 7/Krav7","Delområde 1/Vara/Tjanst 8/Krav7","Delområde 1/Vara/Tjanst 9/Krav7","Delområde 1/Vara/Tjanst 10/Krav7","Delområde 1/Vara/Tjanst 11/Krav7","Delområde 1/Vara/Tjanst 12/Krav7","Delområde 1/Vara/Tjanst 13/Krav7","Delområde 1/Vara/Tjanst 14/Krav7","Delområde 1/Vara/Tjanst 15/Krav7","Delområde 1/Vara/Tjanst 16/Krav7","Delområde 1/Vara/Tjanst 17/Krav7","Delområde 1/Vara/Tjanst 18/Krav7","Delområde 1/Vara/Tjanst 19/Krav7","Delområde 1/Vara/Tjanst 20/Krav7","Delområde 1/Vara/Tjanst 21/Krav7","Delområde 1/Vara/Tjanst 22/Krav7","Delområde 1/Vara/Tjanst 23/Krav7","Delområde 1/Vara/Tjanst 24/Krav9","Delområde 1/Vara/Tjanst 25/Krav7"]
[null,null,{"$f":"IF('1 Specifikation'!B128=\"\",\"\",'1 Specifikation'!B128)","v":"4. Uppdrag"},null,"Delområde 1/Vara/Tjanst 1/Krav8","Delområde 1/Vara/Tjanst 2/Krav8","Delområde 1/Vara/Tjanst 3/Krav8","Delområde 1/Vara/Tjanst 4/Krav8","Delområde 1/Vara/Tjanst 5/Krav8","Delområde 1/Vara/Tjanst 6/Krav8","Delområde 1/Vara/Tjanst 7/Krav8","Delområde 1/Vara/Tjanst 8/Krav8","Delområde 1/Vara/Tjanst 9/Krav8","Delområde 1/Vara/Tjanst 10/Krav8","Delområde 1/Vara/Tjanst 11/Krav8","Delområde 1/Vara/Tjanst 12/Krav8","Delområde 1/Vara/Tjanst 13/Krav8","Delområde 1/Vara/Tjanst 14/Krav8","Delområde 1/Vara/Tjanst 15/Krav8","Delområde 1/Vara/Tjanst 16/Krav8","Delområde 1/Vara/Tjanst 17/Krav8","Delområde 1/Vara/Tjanst 18/Krav8","Delområde 1/Vara/Tjanst 19/Krav8","Delområde 1/Vara/Tjanst 20/Krav8","Delområde 1/Vara/Tjanst 21/Krav8","Delområde 1/Vara/Tjanst 22/Krav8","Delområde 1/Vara/Tjanst 23/Krav8",null,"Delområde 1/Vara/Tjanst 25/Krav8"]
[null,null,{"$f":"IF('1 Specifikation'!B131=\"\",\"\",'1 Specifikation'!B131)","v":""},null,"Delområde 1/Vara/Tjanst 1/Krav9","Delområde 1/Vara/Tjanst 2/Krav9","Delområde 1/Vara/Tjanst 3/Krav9","Delområde 1/Vara/Tjanst 4/Krav9","Delområde 1/Vara/Tjanst 5/Krav9","Delområde 1/Vara/Tjanst 6/Krav9","Delområde 1/Vara/Tjanst 7/Krav9","Delområde 1/Vara/Tjanst 8/Krav9","Delområde 1/Vara/Tjanst 9/Krav9","Delområde 1/Vara/Tjanst 10/Krav9","Delområde 1/Vara/Tjanst 11/Krav9","Delområde 1/Vara/Tjanst 12/Krav9","Delområde 1/Vara/Tjanst 13/Krav9","Delområde 1/Vara/Tjanst 14/Krav9","Delområde 1/Vara/Tjanst 15/Krav9","Delområde 1/Vara/Tjanst 16/Krav9","Delområde 1/Vara/Tjanst 17/Krav9","Delområde 1/Vara/Tjanst 18/Krav9","Delområde 1/Vara/Tjanst 19/Krav9","Delområde 1/Vara/Tjanst 20/Krav9","Delområde 1/Vara/Tjanst 21/Krav9","Delområde 1/Vara/Tjanst 22/Krav9","Delområde 1/Vara/Tjanst 23/Krav9",null,"Delområde 1/Vara/Tjanst 25/Krav9"]
[null,null,{"$f":"IF('1 Specifikation'!B132=\"\",\"\",'1 Specifikation'!B132)","v":"6. Åtgärdsförslag"}]
[null,null,{"$f":"IF('1 Specifikation'!B133=\"\",\"\",'1 Specifikation'!B133)","v":1},null,{"$f":"IFERROR(RIGHT(INDIRECT(\"C\"&E112),LEN(INDIRECT(\"C\"&E112))-6),\"\")","v":"s"},"","lgänglighet","","tistik","","drag","","ärdsförslag","","","","","","",". Summan av viktade poäng för pris och uppfyllda bör-krav, högsta slutsumma vinner."," jämförs mellan avropssvaren. Poäng för uppfyllda bör-krav jämförs med möjlig maxpoäng. ","lningskriterier","riterievikt för pris respektive bör-krav i tabellen nedan",""]
[null,null,{"$f":"IF('1 Specifikation'!B134=\"\",\"\",'1 Specifikation'!B134)","v":""},null,102,{"$f":"E112+1","v":103},{"$f":"F112+1","v":104},105,106,107,108,109,110,111,112,113,114,115,116,117,118,119,120,121,122]
[null,null,{"$f":"IF('1 Specifikation'!B135=\"\",\"\",'1 Specifikation'!B135)","v":""},null,"TblKrvRes1","TblKrvRes2","TblKrvRes3","TblKrvRes4","TblKrvRes5","TblKrvRes6","TblKrvRes7","TblKrvRes8","TblKrvRes9","TblKrvRes10","TblKrvRes11","TblKrvRes12","TblKrvRes13","TblKrvRes14","TblKrvRes15","TblKrvRes16","TblKrvRes17","TblKrvRes18","TblKrvRes19","TblKrvRes20"]
[null,null,{"$f":"IF('1 Specifikation'!B136=\"\",\"\",'1 Specifikation'!B136)","v":""},null,{"$f":"IFERROR(INDEX($E101:$AC101,MATCH(E$111,$E$100:$AC$100,0)),\"\")","v":""},{"$f":"IFERROR(INDEX($E101:$AC101,MATCH(F$111,$E$100:$AC$100,0)),\"\")","v":"Delområde 1/Vara/Tjanst 1/Krav1"},"","Delområde 1/Vara/Tjanst 1/Krav1","","Delområde 1/Vara/Tjanst 1/Krav1","","Delområde 1/Vara/Tjanst 1/Krav1","","Delområde 1/Vara/Tjanst 1/Krav1","Delområde 1/Vara/Tjanst 1/Krav1","Delområde 1/Vara/Tjanst 1/Krav1","Delområde 1/Vara/Tjanst 1/Krav1","Delområde 1/Vara/Tjanst 1/Krav1","Delområde 1/Vara/Tjanst 1/Krav1","","","","","Delområde 1/Vara/Tjanst 1/Krav1",{"$f":"IFERROR(RIGHT(INDIRECT(\"C\"&Y112),LEN(INDIRECT(\"C\"&Y112))-6),\"\")","v":"eringskrav \n(bör-krav)"}]
[null,null,{"$f":"IF('1 Specifikation'!B137=\"\",\"\",'1 Specifikation'!B137)","v":""},null,"",{"$f":"IFERROR(INDEX($E102:$AC102,MATCH(F$111,$E$100:$AC$100,0)),\"\")","v":"Delområde 1/Vara/Tjanst 1/Krav2"},"","Delområde 1/Vara/Tjanst 1/Krav2","","Delområde 1/Vara/Tjanst 1/Krav2","","Delområde 1/Vara/Tjanst 1/Krav2","","Delområde 1/Vara/Tjanst 1/Krav2","Delområde 1/Vara/Tjanst 1/Krav2","Delområde 1/Vara/Tjanst 1/Krav2","Delområde 1/Vara/Tjanst 1/Krav2","Delområde 1/Vara/Tjanst 1/Krav2","Delområde 1/Vara/Tjanst 1/Krav2","","","","","Delområde 1/Vara/Tjanst 1/Krav2"]
[null,null,{"$f":"IF('1 Specifikation'!B138=\"\",\"\",'1 Specifikation'!B138)","v":""},null,"","Delområde 1/Vara/Tjanst 1/Krav3","","Delområde 1/Vara/Tjanst 1/Krav3","","Delområde 1/Vara/Tjanst 1/Krav3","","Delområde 1/Vara/Tjanst 1/Krav3","","Delområde 1/Vara/Tjanst 1/Krav3","Delområde 1/Vara/Tjanst 1/Krav3","Delområde 1/Vara/Tjanst 1/Krav3","Delområde 1/Vara/Tjanst 1/Krav3","Delområde 1/Vara/Tjanst 1/Krav3","Delområde 1/Vara/Tjanst 1/Krav3","","","","","Delområde 1/Vara/Tjanst 1/Krav3"]
[null,null,{"$f":"IF('1 Specifikation'!B139=\"\",\"\",'1 Specifikation'!B139)","v":"Alt. 2. Summan av viktade poäng för pris och uppfyllda bör-krav, högsta slutsumma vinner."},null,"","Delområde 1/Vara/Tjanst 1/Krav4","","Delområde 1/Vara/Tjanst 1/Krav4","","Delområde 1/Vara/Tjanst 1/Krav4","","Delområde 1/Vara/Tjanst 1/Krav4","","Delområde 1/Vara/Tjanst 1/Krav4","Delområde 1/Vara/Tjanst 1/Krav4","Delområde 1/Vara/Tjanst 1/Krav4","Delområde 1/Vara/Tjanst 1/Krav4","Delområde 1/Vara/Tjanst 1/Krav4","Delområde 1/Vara/Tjanst 1/Krav4","","","","","Delområde 1/Vara/Tjanst 1/Krav4"]
[null,null,{"$f":"IF('1 Specifikation'!B140=\"\",\"\",'1 Specifikation'!B140)","v":"Priset jämförs mellan avropssvaren. Poäng för uppfyllda bör-krav jämförs med möjlig maxpoäng. "},null,"","Delområde 1/Vara/Tjanst 1/Krav5","","Delområde 1/Vara/Tjanst 1/Krav5","","Delområde 1/Vara/Tjanst 1/Krav5","","Delområde 1/Vara/Tjanst 1/Krav5","","Delområde 1/Vara/Tjanst 1/Krav5","Delområde 1/Vara/Tjanst 1/Krav5","Delområde 1/Vara/Tjanst 1/Krav5","Delområde 1/Vara/Tjanst 1/Krav5","Delområde 1/Vara/Tjanst 1/Krav5","Delområde 1/Vara/Tjanst 1/Krav5","","","","","Delområde 1/Vara/Tjanst 1/Krav5"]
[null,null,{"$f":"IF('1 Specifikation'!B141=\"\",\"\",'1 Specifikation'!B141)","v":"Tilldelningskriterier"},null,"","Delområde 1/Vara/Tjanst 1/Krav6","","Delområde 1/Vara/Tjanst 1/Krav6","","Delområde 1/Vara/Tjanst 1/Krav6","","Delområde 1/Vara/Tjanst 1/Krav6","","Delområde 1/Vara/Tjanst 1/Krav6","Delområde 1/Vara/Tjanst 1/Krav6","Delområde 1/Vara/Tjanst 1/Krav6","Delområde 1/Vara/Tjanst 1/Krav6","Delområde 1/Vara/Tjanst 1/Krav6","Delområde 1/Vara/Tjanst 1/Krav6","","","","","Delområde 1/Vara/Tjanst 1/Krav6"]
[null,null,{"$f":"IF('1 Specifikation'!B142=\"\",\"\",'1 Specifikation'!B142)","v":"Ange kriterievikt för pris respektive bör-krav i tabellen nedan"},null,"","Delområde 1/Vara/Tjanst 1/Krav7","","Delområde 1/Vara/Tjanst 1/Krav7","","Delområde 1/Vara/Tjanst 1/Krav7","","Delområde 1/Vara/Tjanst 1/Krav7","","Delområde 1/Vara/Tjanst 1/Krav7","Delområde 1/Vara/Tjanst 1/Krav7","Delområde 1/Vara/Tjanst 1/Krav7","Delområde 1/Vara/Tjanst 1/Krav7","Delområde 1/Vara/Tjanst 1/Krav7","Delområde 1/Vara/Tjanst 1/Krav7","","","","","Delområde 1/Vara/Tjanst 1/Krav7"]
[null,null,{"$f":"IF('1 Specifikation'!B143=\"\",\"\",'1 Specifikation'!B143)","v":"Pris"},null,"","Delområde 1/Vara/Tjanst 1/Krav8","","Delområde 1/Vara/Tjanst 1/Krav8","","Delområde 1/Vara/Tjanst 1/Krav8","","Delområde 1/Vara/Tjanst 1/Krav8","","Delområde 1/Vara/Tjanst 1/Krav8","Delområde 1/Vara/Tjanst 1/Krav8","Delområde 1/Vara/Tjanst 1/Krav8","Delområde 1/Vara/Tjanst 1/Krav8","Delområde 1/Vara/Tjanst 1/Krav8","Delområde 1/Vara/Tjanst 1/Krav8","","","","","Delområde 1/Vara/Tjanst 1/Krav8"]
[null,null,{"$f":"IF('1 Specifikation'!B144=\"\",\"\",'1 Specifikation'!B144)","v":"Utvärderingskrav \n(bör-krav)"},null,"","Delområde 1/Vara/Tjanst 1/Krav9","","Delområde 1/Vara/Tjanst 1/Krav9","","Delområde 1/Vara/Tjanst 1/Krav9","","Delområde 1/Vara/Tjanst 1/Krav9","","Delområde 1/Vara/Tjanst 1/Krav9","Delområde 1/Vara/Tjanst 1/Krav9","Delområde 1/Vara/Tjanst 1/Krav9","Delområde 1/Vara/Tjanst 1/Krav9","Delområde 1/Vara/Tjanst 1/Krav9","Delområde 1/Vara/Tjanst 1/Krav9","","","","","Delområde 1/Vara/Tjanst 1/Krav9"]

{"sheet":"SysAdmin","index":6,"n_rows":9,"n_cols":5,"rows_kept":9,"cut":false,"hidden":true,"merged":[]}
["LockStatus",false]
["UKey","Förvaltning21",null,2,{"$f":"INDEX(E3:E5,D2)","v":"Avroppsblanketten är nu upplåst, klicka här för att låsa avropsblanketten."}]
["pkey","Förvaltning21",null,null,"Adminläge! Klicka här för att låsa vita celler."]
["Wkey","Förvaltning21","RGB",null,"Avroppsblanketten är nu upplåst, klicka här för att låsa avropsblanketten."]
["YColor"," ","255, 255, 153",null,"Avroppsblanketten är nu låst, klicka här för att låsa upp avropsblanketten."]
[null,null,"204, 255, 255"]
[null,null,"150, 150, 150",null,"Grund för tilldelning av kontrakt & Utvärderingsmodell"]
[null,null,"204, 255, 204",null,{"$f":"VALUE(IF(ISNUMBER(SEARCH(\"2\",DpDwnTDV))=TRUE,\"2\",\"1\"))","v":2}]
[null,null,"250, 191, 143",null,{"$f":"\"Alt\"&IF(ISNUMBER(SEARCH(\"1\",DpDwnUtvddrop))=TRUE,\"1\",IF(ISNUMBER(SEARCH(\"2\",DpDwnUtvddrop))=TRUE,\"2\",IF(ISNUMBER(SEARCH(\"3\",DpDwnUtvddrop))=TRUE,\"3\",IF(ISNUMBER(SEARCH(\"4\",DpDwnUtvddrop))=TRUE,\"4\"))))","v":"AltFALSE"}]